Workbook

Sheet Input
E11: KSU Farm Specific Supplemental Cover Option (SCO) Payment Calculator*
G13: Enter Your State, County and Crop
E14: Harvest Year: | G14: 2016 | L14: Place cursor on data entry and drop down arrow will appear,
E15: Select State: | G15: Kansas | L15: Or type over the default (need correct spelling)
E16: Select County: | G16: Rawlins
E17: Select Crop: | G17: Wheat
E18: Crop Practice: | G18: Summerfallow | L18: Most crops are Non-Irrigated or Irrigated, but lots of other practices
E19: Type: | G19: Winter | L19: Commodity, spring, winter, or durum
E20: Insurance Type: | G20: Risk Protection (RP)
E21: Insurance Coverage %: | G21: 0.75
E22: History Yields Pract: | G22: Non-Irrigated
F25: Calculate SCO Estimated Payment1
F27: =G21 -> 0.75 | G27: =G20 -> Risk Protection (RP)
F28: 0.86 | G28: SCO Area loss trigger
F29: =IFERROR(INDEX(Model!$B$10:$N$292000,MATCH(1,(Model!$B$10:B$292000=G14)*(Model!$C$10:$C$292000=G15)*(Model!$D$10:$D$292000=G16)*(Model!$E$10:$E$292000=G17)*(Model!$F$10:$F$292000=G18)*(Model!$H$10:$H$292000=G19),0),9),"N/A") -> 5.2 | G29: Base Price2
F30: ='Other Dropdowns'!I12 -> 4.5 | G30: Harvest Price (2017 not final) | L30: Enter price of 2017 only, Prices are final for 2015 & 2016
F31: =IFERROR(INDEX(Model!$B$10:$N$292000,MATCH(1,(Model!$B$10:B$292000=G14)*(Model!$C$10:$C$292000=G15)*(Model!$D$10:$D$292000=G16)*(Model!$E$10:$E$292000=G17)*(Model!$F$10:$F$292000=G18)*(Model!$H$10:$H$292000=G19),0),10),"N/A") -> 38 | G31: RMA Expected County Yield2,3
F32: ='Other Dropdowns'!I13 -> 35.4 | G32: County Yield (only 2015 final)4
F33: =F28-F27 -> 0.11 | G33: SCO coverage range (86%-75%)
F34: =IFERROR(MIN(MAX((F28-('Other Dropdowns'!I4/'Other Dropdowns'!I3))/F33,0),1),"N/A") -> 0.489326463 | G34: Payment Factor5
F35: ='Other Dropdowns'!I14 -> 39.9 | G35: Type over with your farm's APH6
F36: =IFERROR(F33*'Other Dropdowns'!I5,"N/A") -> 22.8228 | G36: SCO $ Coverage on all planted acres
F37: =IFERROR(F34*F36,"N/A") -> 11.1678 | G37: Indemnity Payment
F39: =IFERROR(IF(G20="Yield Protection (YP)",F27*'Other Dropdowns'!I3/F29,F27*'Other Dropdowns'!I3/F30),"N/A") -> 32.93333333 | G39: bu. or less to trigger max. SCO Pymt
F40: =IFERROR(IF(G20="Yield Protection (YP)",F28*'Other Dropdowns'!I3/F29,F28*'Other Dropdowns'!I3/F30),"N/A") -> 37.76355556 | G40: bu. or less to trigger any payment
E43: Historical County Yields Published by RMA7
E44: Year | F44: Final Yd | G44: Trend Yd | H44: Year | I44: Final Yd | J44: Trend Yd
E45: 2015 | F45: ='Other Dropdowns'!L27 -> 32.1 | G45: ='Other Dropdowns'!M27 -> 35.2 | H45: ='Other Dropdowns'!K14 -> 2002 | I45: ='Other Dropdowns'!L14 -> 26 | J45: ='Other Dropdowns'!M14 -> 35.3
E46: 2014 | F46: ='Other Dropdowns'!L26 -> 28.9 | G46: ='Other Dropdowns'!M26 -> 35.2 | H46: ='Other Dropdowns'!K13 -> 2001 | I46: ='Other Dropdowns'!L13 -> 37.1 | J46: ='Other Dropdowns'!M13 -> 35.3
E47: 2013 | F47: ='Other Dropdowns'!L25 -> 14.7 | G47: ='Other Dropdowns'!M25 -> 35.2 | H47: ='Other Dropdowns'!K12 -> 2000 | I47: ='Other Dropdowns'!L12 -> 27.9 | J47: ='Other Dropdowns'!M12 -> 35.3
E48: 2012 | F48: ='Other Dropdowns'!L24 -> 52.2 | G48: ='Other Dropdowns'!M24 -> 35.2 | H48: ='Other Dropdowns'!K11 -> 1999 | I48: ='Other Dropdowns'!L11 -> 48 | J48: ='Other Dropdowns'!M11 -> 35.3
E49: 2011 | F49: ='Other Dropdowns'!L23 -> 48.9 | G49: ='Other Dropdowns'!M23 -> 35.2 | H49: ='Other Dropdowns'!K10 -> 1998 | I49: ='Other Dropdowns'!L10 -> 48.1 | J49: ='Other Dropdowns'!M10 -> 35.3
E50: 2010 | F50: ='Other Dropdowns'!L22 -> 52.7 | G50: ='Other Dropdowns'!M22 -> 35.2 | H50: ='Other Dropdowns'!K9 -> 1997 | I50: ='Other Dropdowns'!L9 -> 38.5 | J50: ='Other Dropdowns'!M9 -> 35.4
E51: 2009 | F51: ='Other Dropdowns'!L21 -> 51.9 | G51: ='Other Dropdowns'!M21 -> 35.2 | H51: ='Other Dropdowns'!K8 -> 1996 | I51: ='Other Dropdowns'!L8 -> 27.2 | J51: ='Other Dropdowns'!M8 -> 35.4
E52: 2008 | F52: ='Other Dropdowns'!L20 -> 40 | G52: ='Other Dropdowns'!M20 -> 35.2 | H52: ='Other Dropdowns'!K7 -> 1995 | I52: ='Other Dropdowns'!L7 -> 44.3 | J52: ='Other Dropdowns'!M7 -> 35.4
E53: ='Other Dropdowns'!K19 -> 2007 | F53: ='Other Dropdowns'!L19 -> 48.1 | G53: ='Other Dropdowns'!M19 -> 35.2 | H53: ='Other Dropdowns'!K6 -> 1994 | I53: ='Other Dropdowns'!L6 -> 40.8 | J53: ='Other Dropdowns'!M6 -> 35.4
E54: ='Other Dropdowns'!K18 -> 2006 | F54: ='Other Dropdowns'!L18 -> 13.6 | G54: ='Other Dropdowns'!M18 -> 35.3 | H54: ='Other Dropdowns'!K5 -> 1993 | I54: ='Other Dropdowns'!L5 -> 38.2 | J54: ='Other Dropdowns'!M5 -> 35.4
E55: ='Other Dropdowns'!K17 -> 2005 | F55: ='Other Dropdowns'!L17 -> 28.7 | G55: ='Other Dropdowns'!M17 -> 35.3 | H55: ='Other Dropdowns'!K4 -> 1992 | I55: ='Other Dropdowns'!L4 -> 18.5 | J55: ='Other Dropdowns'!M4 -> 35.4
E56: ='Other Dropdowns'!K16 -> 2004 | F56: ='Other Dropdowns'!L16 -> 6 | G56: ='Other Dropdowns'!M16 -> 35.3 | H56: ='Other Dropdowns'!K3 -> 1991 | I56: ='Other Dropdowns'!L3 -> 33 | J56: ='Other Dropdowns'!M3 -> 35.4
E57: ='Other Dropdowns'!K15 -> 2003 | F57: ='Other Dropdowns'!L15 -> 40.3 | G57: ='Other Dropdowns'!M15 -> 35.3
E59: 1Formula: (Area loss trigger minus (final area revenue divided by (expected area yield times the higher of the projected price or harvest price))) divided by supplemental coverage range equals payment factor
E62: 2R2If the model comes back with no Base Price or RMA Expected Yield, then you likely have entered a crop practice that is not approved for your county and crop. For example you enter non-irrigated for a crop practice, but only the summer fallow is an approved practice for your county and the model will return a N/A. You can type in the requested data, but it is suggested new users should click on the down error to get started. This will provide a list of inputs that are on the list and spelled correctly. 2If the model comes back with no Base Price or RMA Expected Yield, then you likely have entered a crop practice that is not approved for your county and crop. For example you enter non-irrigated for a crop practice, but only the summer fallow is an approved practice for your county and the model will return a N/A. You can type in the requested data, but it is suggested new users should click on the down error to get started. This will provide a list of inputs that are on the list and spelled correctly. MA county yields are final for 2015 only. KSU has estimated county yields for 2016 based on NASS yields, but crop practice do not match between agencies. There are no estimates for 2017.
E68: 3If 3The RMA Expected Yield in most cases will not equal the historical trend yield presented in the Historical County Yield table for several reasons. One possibility is the RMA calculates the trend yield line and then extends it out for two years. So if the yield is trending up in 2015, RMA assumes the trend will continue and they extend the trend up for the next two years to generate the 2017 RMA Expected County Yield. However, the reverse is also true, if the yield is trending down the RMA Expected County Yield will be lower in 2017 than the 2015 trend yield. Another reason is the historical yields are for only two practices, irrigated and non-irrigated, therefore other practices such as double crop soybeans’ Expected County Yield may be less than the 2015 historical trend yield.
E76: 4T4RMA county yields are final for 2015 only. KSU has estimated county yields for 2016 based on NASS yields, but crop practices do not match between agencies so our estimate may have a large error. Users should enter their own estimated county yield especially if they have better information than NASS. There are no estimates for 2017.
E80: 5The payment factor is determined by county yields only and the factor is unique for each percent coverage level. The payment factor is multiplied by the dollars of coverage that is higher for farmers with larger APH's and have purchased RP rather than YP. For farmers with coverage greater than 75%, there is little coverage in SCO. For example, at 85% RP, SCO will only cover 1% of the expected revenue (86%-85%=1%). While at 75% RP, SCO will cover 11% of the expected revenue (86%-75%=11%) and the SCO coverage will start to exceed the free ARC coverage.
E85: 6If your APH is higher than RMA's expected county yield then any payment will be higher than the county average, unlike ARC where all payments are the same. In many cases farmers with higher yields will have higher guarantees under SCO than ARC for two reasons. First, the 5 year Olympic average price has declined lowering the ARC guarantee. Second, the ARC coverage is only on 85% of the base acres so SCO covers 15% more acres and SCO is not subject to sequestration. However, SCO does require farmer paid premiums. Also, SCO uses crop insurance prices based on futures that are very different from NASS' MYA prices used to settle ARC payments. RMA's SCO payments for wheat are expected in April and spring crops in June. ARC payments will be paid later in October. Base acres enrolled in ARC are not eligible for SCO on those base acres assuming the base crop was planted. SCO can be purchased for acres planted with no base or base acres enrolled in PLC. This could be a good option for many Kansas grain sorghum producers because a large percentage of the sorghum acres were enrolled in PLC.
E96: 7There are multiple practices for each crop, but RMA's county yields are of the same for many of those practices. The historical yields are split between non-irrigated and irrigated, however if one practice dominates in a county then RMA's county yield will show the same county yield for both practices. FSA calls that a combined yield.
E100: *Prepared by G. A. (Art) Barnaby, Jr., Professor, Department of Agricultural Economics, K-State Research and Extension, Kansas State University, Manhattan, KS 66506, March 20, 2017.

Sheet Other Dropdowns (hidden)
A2: Crop | B2: Practice | C2: Type | D2: InsType | E2: CoveragePer | F2: Year | G2: Est Yield | H2: Price | I2: Temp Values | K2: Yields | L2: RMA co yd | P2: =IFERROR(INDEX(yields!$B$5:$G$5259,MATCH(1,(yields!$B$5:$B$5259=C19)*(yields!$C$5:$C$5259=D19)*(yields!$D$5:$D$5259=E19)*(yields!$E$5:$E$5259=H19)*(yields!$F$5:$F$5259=F19),0),6),"N/A")
A3: Corn | B3: Non-Irrigated | C3: Grain | D3: Risk Protection (RP) | E3: 0.5 | F3: 2016 | G3: =IFERROR(INDEX(Model!$B$10:$N$292000,MATCH(1,(Model!$B$10:B$195264=Input!G14)*(Model!$C$10:$C$292000=Input!G15)*(Model!$D$10:$D$292000=Input!G16)*(Model!$E$10:$E$292000=Input!G17)*(Model!$F$10:$F$292000=Input!G18)*(Model!$H$10:$H$292000=Input!G19),0),13),"N/A") -> 35.4 | H3: =IFERROR(INDEX(Model!$B$10:$N$292000,MATCH(1,(Model!$B$10:B$292000=Input!G14)*(Model!$C$10:$C$292000=Input!G15)*(Model!$D$10:$D$292000=Input!G16)*(Model!$E$10:$E$292000=Input!G17)*(Model!$F$10:$F$292000=Input!G18)*(Model!$H$10:$H$292000=Input!G19),0),12),"N/A") -> 4.5 | I3: =IF(Input!G20="Risk Protection (RP)",MAX(Input!F29,Input!F30)*Input!F31,Input!F29*Input!F31) -> 197.6 | J3: County Exp | K3: 1991 | L3: =IFERROR(INDEX(hist!$B$10:$H$434000,MATCH(1,(hist!$B$10:$B$434000=Input!$G$15)*(hist!$C$10:$C$434000=Input!$G$16)*(hist!$D$10:$D$434000=Input!$G$17)*(hist!$E$10:$E$434000=Input!$G$22)*(hist!$F$10:$F$434000=K3),0),6),"N/A") -> 33 | M3: =IFERROR(INDEX(hist!$B$10:$H$434000,MATCH(1,(hist!$B$10:$B$434000=Input!$G$15)*(hist!$C$10:$C$434000=Input!$G$16)*(hist!$D$10:$D$434000=Input!$G$17)*(hist!$E$10:$E$434000=Input!$G$22)*(hist!$F$10:$F$434000=K3),0),7),"N/A") -> 35.4 | P3: http://www.rma.usda.gov/ftp/Miscellaneous_Files/Area_Yield_Data/
A4: Soybeans | B4: Irrigated | C4: Durum | D4: RP with Harvest Price Exclusion(RP-HPE) | E4: 0.55 | F4: 2015 | I4: =IF(Input!G20="Yield Protection (YP)",Input!F29*Input!F32,Input!F30*Input!F32) -> 159.3 | J4: harvest $ | K4: 1992 | L4: =IFERROR(INDEX(hist!$B$10:$H$434000,MATCH(1,(hist!$B$10:$B$434000=Input!$G$15)*(hist!$C$10:$C$434000=Input!$G$16)*(hist!$D$10:$D$434000=Input!$G$17)*(hist!$E$10:$E$434000=Input!$G$22)*(hist!$F$10:$F$434000=K4),0),6),"N/A") -> 18.5 | M4: =IFERROR(INDEX(hist!$B$10:$H$434000,MATCH(1,(hist!$B$10:$B$434000=Input!$G$15)*(hist!$C$10:$C$434000=Input!$G$16)*(hist!$D$10:$D$434000=Input!$G$17)*(hist!$E$10:$E$434000=Input!$G$22)*(hist!$F$10:$F$434000=K4),0),7),"N/A") -> 35.4
A5: Grain Sorghum | B5: Continuous Cropping | C5: Spring | D5: Yield Protection (YP) | E5: 0.6 | F5: 2017 | I5: =IF(Input!G20="Risk Protection (RP)",MAX(Input!F29,Input!F30)*Input!F35,Input!F29*Input!F35) -> 207.48 | J5: APH converge | K5: 1993 | L5: =IFERROR(INDEX(hist!$B$10:$H$434000,MATCH(1,(hist!$B$10:$B$434000=Input!$G$15)*(hist!$C$10:$C$434000=Input!$G$16)*(hist!$D$10:$D$434000=Input!$G$17)*(hist!$E$10:$E$434000=Input!$G$22)*(hist!$F$10:$F$434000=K5),0),6),"N/A") -> 38.2 | M5: =IFERROR(INDEX(hist!$B$10:$H$434000,MATCH(1,(hist!$B$10:$B$434000=Input!$G$15)*(hist!$C$10:$C$434000=Input!$G$16)*(hist!$D$10:$D$434000=Input!$G$17)*(hist!$E$10:$E$434000=Input!$G$22)*(hist!$F$10:$F$434000=K5),0),7),"N/A") -> 35.4
A6: Wheat | B6: Summerfallow | C6: Winter | E6: 0.65 | I6: ='Other Dropdowns'!G3 -> 35.4 | J6: NASS YIELD | K6: 1994 | L6: =IFERROR(INDEX(hist!$B$10:$H$434000,MATCH(1,(hist!$B$10:$B$434000=Input!$G$15)*(hist!$C$10:$C$434000=Input!$G$16)*(hist!$D$10:$D$434000=Input!$G$17)*(hist!$E$10:$E$434000=Input!$G$22)*(hist!$F$10:$F$434000=K6),0),6),"N/A") -> 40.8 | M6: =IFERROR(INDEX(hist!$B$10:$H$434000,MATCH(1,(hist!$B$10:$B$434000=Input!$G$15)*(hist!$C$10:$C$434000=Input!$G$16)*(hist!$D$10:$D$434000=Input!$G$17)*(hist!$E$10:$E$434000=Input!$G$22)*(hist!$F$10:$F$434000=K6),0),7),"N/A") -> 35.4
B7: Fac (Irrigated) | C7: Silage | E7: 0.7 | I7: =Input!F31 -> 38 | J7: No NASS YIELD | K7: 1995 | L7: =IFERROR(INDEX(hist!$B$10:$H$434000,MATCH(1,(hist!$B$10:$B$434000=Input!$G$15)*(hist!$C$10:$C$434000=Input!$G$16)*(hist!$D$10:$D$434000=Input!$G$17)*(hist!$E$10:$E$434000=Input!$G$22)*(hist!$F$10:$F$434000=K7),0),6),"N/A") -> 44.3 | M7: =IFERROR(INDEX(hist!$B$10:$H$434000,MATCH(1,(hist!$B$10:$B$434000=Input!$G$15)*(hist!$C$10:$C$434000=Input!$G$16)*(hist!$D$10:$D$434000=Input!$G$17)*(hist!$E$10:$E$434000=Input!$G$22)*(hist!$F$10:$F$434000=K7),0),7),"N/A") -> 35.4
B8: Fac (Non-Irrigated) | C8: Blue | E8: 0.75 | I8: =IFERROR(Input!F31*1.05,"N/A") -> 39.9 | J8: APH estimate | K8: 1996 | L8: =IFERROR(INDEX(hist!$B$10:$H$434000,MATCH(1,(hist!$B$10:$B$434000=Input!$G$15)*(hist!$C$10:$C$434000=Input!$G$16)*(hist!$D$10:$D$434000=Input!$G$17)*(hist!$E$10:$E$434000=Input!$G$22)*(hist!$F$10:$F$434000=K8),0),6),"N/A") -> 27.2 | M8: =IFERROR(INDEX(hist!$B$10:$H$434000,MATCH(1,(hist!$B$10:$B$434000=Input!$G$15)*(hist!$C$10:$C$434000=Input!$G$16)*(hist!$D$10:$D$434000=Input!$G$17)*(hist!$E$10:$E$434000=Input!$G$22)*(hist!$F$10:$F$434000=K8),0),7),"N/A") -> 35.4
B9: Nfac (Irrigated) | C9: High Amylase | E9: 0.8 | I9: ='Other Dropdowns'!H3 -> 4.5 | J9: KSU Est Price | K9: 1997 | L9: =IFERROR(INDEX(hist!$B$10:$H$434000,MATCH(1,(hist!$B$10:$B$434000=Input!$G$15)*(hist!$C$10:$C$434000=Input!$G$16)*(hist!$D$10:$D$434000=Input!$G$17)*(hist!$E$10:$E$434000=Input!$G$22)*(hist!$F$10:$F$434000=K9),0),6),"N/A") -> 38.5 | M9: =IFERROR(INDEX(hist!$B$10:$H$434000,MATCH(1,(hist!$B$10:$B$434000=Input!$G$15)*(hist!$C$10:$C$434000=Input!$G$16)*(hist!$D$10:$D$434000=Input!$G$17)*(hist!$E$10:$E$434000=Input!$G$22)*(hist!$F$10:$F$434000=K9),0),7),"N/A") -> 35.4
B10: Nfac (Non-Irrigated) | C10: High Amylose | E10: 0.85 | I10: 3 | K10: 1998 | L10: =IFERROR(INDEX(hist!$B$10:$H$434000,MATCH(1,(hist!$B$10:$B$434000=Input!$G$15)*(hist!$C$10:$C$434000=Input!$G$16)*(hist!$D$10:$D$434000=Input!$G$17)*(hist!$E$10:$E$434000=Input!$G$22)*(hist!$F$10:$F$434000=K10),0),6),"N/A") -> 48.1 | M10: =IFERROR(INDEX(hist!$B$10:$H$434000,MATCH(1,(hist!$B$10:$B$434000=Input!$G$15)*(hist!$C$10:$C$434000=Input!$G$16)*(hist!$D$10:$D$434000=Input!$G$17)*(hist!$E$10:$E$434000=Input!$G$22)*(hist!$F$10:$F$434000=K10),0),7),"N/A") -> 35.3
B11: Non-Conventional(Irr) | C11: High Protein | K11: 1999 | L11: =IFERROR(INDEX(hist!$B$10:$H$434000,MATCH(1,(hist!$B$10:$B$434000=Input!$G$15)*(hist!$C$10:$C$434000=Input!$G$16)*(hist!$D$10:$D$434000=Input!$G$17)*(hist!$E$10:$E$434000=Input!$G$22)*(hist!$F$10:$F$434000=K11),0),6),"N/A") -> 48 | M11: =IFERROR(INDEX(hist!$B$10:$H$434000,MATCH(1,(hist!$B$10:$B$434000=Input!$G$15)*(hist!$C$10:$C$434000=Input!$G$16)*(hist!$D$10:$D$434000=Input!$G$17)*(hist!$E$10:$E$434000=Input!$G$22)*(hist!$F$10:$F$434000=K11),0),7),"N/A") -> 35.3
B12: Non-Conventional(Non-Irr) | C12: Khorasan | I12: =IFERROR(IF(I9="N/A",Input!F29*0.9,IF(I9=0,Input!F29*0.9,I9)),"N/A") -> 4.5 | J12: harvest price | K12: 2000 | L12: =IFERROR(INDEX(hist!$B$10:$H$434000,MATCH(1,(hist!$B$10:$B$434000=Input!$G$15)*(hist!$C$10:$C$434000=Input!$G$16)*(hist!$D$10:$D$434000=Input!$G$17)*(hist!$E$10:$E$434000=Input!$G$22)*(hist!$F$10:$F$434000=K12),0),6),"N/A") -> 27.9 | M12: =IFERROR(INDEX(hist!$B$10:$H$434000,MATCH(1,(hist!$B$10:$B$434000=Input!$G$15)*(hist!$C$10:$C$434000=Input!$G$16)*(hist!$D$10:$D$434000=Input!$G$17)*(hist!$E$10:$E$434000=Input!$G$22)*(hist!$F$10:$F$434000=K12),0),7),"N/A") -> 35.3
B13: Water Fallow | C13: Large Seeded Food Grade | I13: =IF('Other Dropdowns'!I6="N/A",Input!F31,'Other Dropdowns'!I6) -> 35.4 | J13: Expected Yd | K13: 2001 | L13: =IFERROR(INDEX(hist!$B$10:$H$434000,MATCH(1,(hist!$B$10:$B$434000=Input!$G$15)*(hist!$C$10:$C$434000=Input!$G$16)*(hist!$D$10:$D$434000=Input!$G$17)*(hist!$E$10:$E$434000=Input!$G$22)*(hist!$F$10:$F$434000=K13),0),6),"N/A") -> 37.1 | M13: =IFERROR(INDEX(hist!$B$10:$H$434000,MATCH(1,(hist!$B$10:$B$434000=Input!$G$15)*(hist!$C$10:$C$434000=Input!$G$16)*(hist!$D$10:$D$434000=Input!$G$17)*(hist!$E$10:$E$434000=Input!$G$22)*(hist!$F$10:$F$434000=K13),0),7),"N/A") -> 35.3
B14: Continuous Cropping(OC) | C14: Small Seeded Food Grade | I14: ='Other Dropdowns'!I8 -> 39.9 | J14: APH | K14: 2002 | L14: =IFERROR(INDEX(hist!$B$10:$H$434000,MATCH(1,(hist!$B$10:$B$434000=Input!$G$15)*(hist!$C$10:$C$434000=Input!$G$16)*(hist!$D$10:$D$434000=Input!$G$17)*(hist!$E$10:$E$434000=Input!$G$22)*(hist!$F$10:$F$434000=K14),0),6),"N/A") -> 26 | M14: =IFERROR(INDEX(hist!$B$10:$H$434000,MATCH(1,(hist!$B$10:$B$434000=Input!$G$15)*(hist!$C$10:$C$434000=Input!$G$16)*(hist!$D$10:$D$434000=Input!$G$17)*(hist!$E$10:$E$434000=Input!$G$22)*(hist!$F$10:$F$434000=K14),0),7),"N/A") -> 35.3
B15: Continuous Cropping(OT) | C15: All Other Food Grades | K15: 2003 | L15: =IFERROR(INDEX(hist!$B$10:$H$434000,MATCH(1,(hist!$B$10:$B$434000=Input!$G$15)*(hist!$C$10:$C$434000=Input!$G$16)*(hist!$D$10:$D$434000=Input!$G$17)*(hist!$E$10:$E$434000=Input!$G$22)*(hist!$F$10:$F$434000=K15),0),6),"N/A") -> 40.3 | M15: =IFERROR(INDEX(hist!$B$10:$H$434000,MATCH(1,(hist!$B$10:$B$434000=Input!$G$15)*(hist!$C$10:$C$434000=Input!$G$16)*(hist!$D$10:$D$434000=Input!$G$17)*(hist!$E$10:$E$434000=Input!$G$22)*(hist!$F$10:$F$434000=K15),0),7),"N/A") -> 35.3
B16: Fac (Irrigated)(OC) | C16: Low Linolenic Acid | I16: =IF(I9="N/A",999,888) -> 888 | K16: 2004 | L16: =IFERROR(INDEX(hist!$B$10:$H$434000,MATCH(1,(hist!$B$10:$B$434000=Input!$G$15)*(hist!$C$10:$C$434000=Input!$G$16)*(hist!$D$10:$D$434000=Input!$G$17)*(hist!$E$10:$E$434000=Input!$G$22)*(hist!$F$10:$F$434000=K16),0),6),"N/A") -> 6 | M16: =IFERROR(INDEX(hist!$B$10:$H$434000,MATCH(1,(hist!$B$10:$B$434000=Input!$G$15)*(hist!$C$10:$C$434000=Input!$G$16)*(hist!$D$10:$D$434000=Input!$G$17)*(hist!$E$10:$E$434000=Input!$G$22)*(hist!$F$10:$F$434000=K16),0),7),"N/A") -> 35.3
B17: Fac (Irrigated)(OT) | C17: Low Saturated Fat | I17: =IF(OR(I9="N/A",I9=0),9999,8888) -> 8888 | K17: 2005 | L17: =IFERROR(INDEX(hist!$B$10:$H$434000,MATCH(1,(hist!$B$10:$B$434000=Input!$G$15)*(hist!$C$10:$C$434000=Input!$G$16)*(hist!$D$10:$D$434000=Input!$G$17)*(hist!$E$10:$E$434000=Input!$G$22)*(hist!$F$10:$F$434000=K17),0),6),"N/A") -> 28.7 | M17: =IFERROR(INDEX(hist!$B$10:$H$434000,MATCH(1,(hist!$B$10:$B$434000=Input!$G$15)*(hist!$C$10:$C$434000=Input!$G$16)*(hist!$D$10:$D$434000=Input!$G$17)*(hist!$E$10:$E$434000=Input!$G$22)*(hist!$F$10:$F$434000=K17),0),7),"N/A") -> 35.3
B18: Fac (Non-Irrigated)(OC) | I18: =IF(I9="N/A",777,IF(I9=0,999,888)) -> 888 | K18: 2006 | L18: =IFERROR(INDEX(hist!$B$10:$H$434000,MATCH(1,(hist!$B$10:$B$434000=Input!$G$15)*(hist!$C$10:$C$434000=Input!$G$16)*(hist!$D$10:$D$434000=Input!$G$17)*(hist!$E$10:$E$434000=Input!$G$22)*(hist!$F$10:$F$434000=K18),0),6),"N/A") -> 13.6 | M18: =IFERROR(INDEX(hist!$B$10:$H$434000,MATCH(1,(hist!$B$10:$B$434000=Input!$G$15)*(hist!$C$10:$C$434000=Input!$G$16)*(hist!$D$10:$D$434000=Input!$G$17)*(hist!$E$10:$E$434000=Input!$G$22)*(hist!$F$10:$F$434000=K18),0),7),"N/A") -> 35.3
B19: Fac (Non-Irrigated)(OT) | I19: =IF(I9="N/A",Input!F29*0.9,IF(I9=0,Input!F29*0.9,I9)) -> 4.5 | K19: 2007 | L19: =IFERROR(INDEX(hist!$B$10:$H$434000,MATCH(1,(hist!$B$10:$B$434000=Input!$G$15)*(hist!$C$10:$C$434000=Input!$G$16)*(hist!$D$10:$D$434000=Input!$G$17)*(hist!$E$10:$E$434000=Input!$G$22)*(hist!$F$10:$F$434000=K19),0),6),"N/A") -> 48.1 | M19: =IFERROR(INDEX(hist!$B$10:$H$434000,MATCH(1,(hist!$B$10:$B$434000=Input!$G$15)*(hist!$C$10:$C$434000=Input!$G$16)*(hist!$D$10:$D$434000=Input!$G$17)*(hist!$E$10:$E$434000=Input!$G$22)*(hist!$F$10:$F$434000=K19),0),7),"N/A") -> 35.2
B20: Nfac (Irrigated)(OC) | K20: 2008 | L20: =IFERROR(INDEX(hist!$B$10:$H$434000,MATCH(1,(hist!$B$10:$B$434000=Input!$G$15)*(hist!$C$10:$C$434000=Input!$G$16)*(hist!$D$10:$D$434000=Input!$G$17)*(hist!$E$10:$E$434000=Input!$G$22)*(hist!$F$10:$F$434000=K20),0),6),"N/A") -> 40 | M20: =IFERROR(INDEX(hist!$B$10:$H$434000,MATCH(1,(hist!$B$10:$B$434000=Input!$G$15)*(hist!$C$10:$C$434000=Input!$G$16)*(hist!$D$10:$D$434000=Input!$G$17)*(hist!$E$10:$E$434000=Input!$G$22)*(hist!$F$10:$F$434000=K20),0),7),"N/A") -> 35.2
B21: Nfac (Irrigated)(OT) | K21: 2009 | L21: =IFERROR(INDEX(hist!$B$10:$H$434000,MATCH(1,(hist!$B$10:$B$434000=Input!$G$15)*(hist!$C$10:$C$434000=Input!$G$16)*(hist!$D$10:$D$434000=Input!$G$17)*(hist!$E$10:$E$434000=Input!$G$22)*(hist!$F$10:$F$434000=K21),0),6),"N/A") -> 51.9 | M21: =IFERROR(INDEX(hist!$B$10:$H$434000,MATCH(1,(hist!$B$10:$B$434000=Input!$G$15)*(hist!$C$10:$C$434000=Input!$G$16)*(hist!$D$10:$D$434000=Input!$G$17)*(hist!$E$10:$E$434000=Input!$G$22)*(hist!$F$10:$F$434000=K21),0),7),"N/A") -> 35.2
B22: Nfac (Non-Irrigated)(OC) | K22: 2010 | L22: =IFERROR(INDEX(hist!$B$10:$H$434000,MATCH(1,(hist!$B$10:$B$434000=Input!$G$15)*(hist!$C$10:$C$434000=Input!$G$16)*(hist!$D$10:$D$434000=Input!$G$17)*(hist!$E$10:$E$434000=Input!$G$22)*(hist!$F$10:$F$434000=K22),0),6),"N/A") -> 52.7 | M22: =IFERROR(INDEX(hist!$B$10:$H$434000,MATCH(1,(hist!$B$10:$B$434000=Input!$G$15)*(hist!$C$10:$C$434000=Input!$G$16)*(hist!$D$10:$D$434000=Input!$G$17)*(hist!$E$10:$E$434000=Input!$G$22)*(hist!$F$10:$F$434000=K22),0),7),"N/A") -> 35.2
B23: Nfac (Non-Irrigated)(OT) | K23: 2011 | L23: =IFERROR(INDEX(hist!$B$10:$H$434000,MATCH(1,(hist!$B$10:$B$434000=Input!$G$15)*(hist!$C$10:$C$434000=Input!$G$16)*(hist!$D$10:$D$434000=Input!$G$17)*(hist!$E$10:$E$434000=Input!$G$22)*(hist!$F$10:$F$434000=K23),0),6),"N/A") -> 48.9 | M23: =IFERROR(INDEX(hist!$B$10:$H$434000,MATCH(1,(hist!$B$10:$B$434000=Input!$G$15)*(hist!$C$10:$C$434000=Input!$G$16)*(hist!$D$10:$D$434000=Input!$G$17)*(hist!$E$10:$E$434000=Input!$G$22)*(hist!$F$10:$F$434000=K23),0),7),"N/A") -> 35.2
B24: Non-Conventional(Irr)(OC) | K24: 2012 | L24: =IFERROR(INDEX(hist!$B$10:$H$434000,MATCH(1,(hist!$B$10:$B$434000=Input!$G$15)*(hist!$C$10:$C$434000=Input!$G$16)*(hist!$D$10:$D$434000=Input!$G$17)*(hist!$E$10:$E$434000=Input!$G$22)*(hist!$F$10:$F$434000=K24),0),6),"N/A") -> 52.2 | M24: =IFERROR(INDEX(hist!$B$10:$H$434000,MATCH(1,(hist!$B$10:$B$434000=Input!$G$15)*(hist!$C$10:$C$434000=Input!$G$16)*(hist!$D$10:$D$434000=Input!$G$17)*(hist!$E$10:$E$434000=Input!$G$22)*(hist!$F$10:$F$434000=K24),0),7),"N/A") -> 35.2
B25: Non-Conventional(Irr)(OT) | K25: 2013 | L25: =IFERROR(INDEX(hist!$B$10:$H$434000,MATCH(1,(hist!$B$10:$B$434000=Input!$G$15)*(hist!$C$10:$C$434000=Input!$G$16)*(hist!$D$10:$D$434000=Input!$G$17)*(hist!$E$10:$E$434000=Input!$G$22)*(hist!$F$10:$F$434000=K25),0),6),"N/A") -> 14.7 | M25: =IFERROR(INDEX(hist!$B$10:$H$434000,MATCH(1,(hist!$B$10:$B$434000=Input!$G$15)*(hist!$C$10:$C$434000=Input!$G$16)*(hist!$D$10:$D$434000=Input!$G$17)*(hist!$E$10:$E$434000=Input!$G$22)*(hist!$F$10:$F$434000=K25),0),7),"N/A") -> 35.2
B26: Non-Conventional(Non-Irr)(OC) | K26: 2014 | L26: =IFERROR(INDEX(hist!$B$10:$H$434000,MATCH(1,(hist!$B$10:$B$434000=Input!$G$15)*(hist!$C$10:$C$434000=Input!$G$16)*(hist!$D$10:$D$434000=Input!$G$17)*(hist!$E$10:$E$434000=Input!$G$22)*(hist!$F$10:$F$434000=K26),0),6),"N/A") -> 28.9 | M26: =IFERROR(INDEX(hist!$B$10:$H$434000,MATCH(1,(hist!$B$10:$B$434000=Input!$G$15)*(hist!$C$10:$C$434000=Input!$G$16)*(hist!$D$10:$D$434000=Input!$G$17)*(hist!$E$10:$E$434000=Input!$G$22)*(hist!$F$10:$F$434000=K26),0),7),"N/A") -> 35.2
B27: Non-Conventional(Non-Irr)(OT) | K27: 2015 | L27: =IFERROR(INDEX(hist!$B$10:$H$434000,MATCH(1,(hist!$B$10:$B$434000=Input!$G$15)*(hist!$C$10:$C$434000=Input!$G$16)*(hist!$D$10:$D$434000=Input!$G$17)*(hist!$E$10:$E$434000=Input!$G$22)*(hist!$F$10:$F$434000=K27),0),6),"N/A") -> 32.1 | M27: =IFERROR(INDEX(hist!$B$10:$H$434000,MATCH(1,(hist!$B$10:$B$434000=Input!$G$15)*(hist!$C$10:$C$434000=Input!$G$16)*(hist!$D$10:$D$434000=Input!$G$17)*(hist!$E$10:$E$434000=Input!$G$22)*(hist!$F$10:$F$434000=K27),0),7),"N/A") -> 35.2
B28: Organic(Certified) Irr.
B29: Organic(Certified) Non-Irr.
B30: Organic(Transitional) Irr.
B31: Organic(Transitional) Non-Irr.
B32: Summerfallow(OC)
B33: Summerfallow(OT)
B34: Water Fallow(OC)
B35: Water Fallow(OT)

Sheet States & Counties (hidden)
A1: State# | B1: Lookup | C1: Alabama | D1: Alaska | E1: Arizona | F1: Arkansas | G1: California | H1: Colorado | I1: Connecticut | J1: Delaware | K1: Florida | L1: Georgia | M1: Idaho | N1: Illinois | O1: Indiana | P1: Iowa | Q1: Kansas | R1: Kentucky | S1: Louisiana | T1: Maine | U1: Maryland | V1: Massachusetts | W1: Michigan | X1: Minnesota | Y1: Mississippi | Z1: Missouri | AA1: Montana | AB1: Nebraska | AC1: Nevada | AD1: New Hampshire | AE1: New Jersey | AF1: New Mexico | AG1: New York | AH1: North Carolina | AI1: North Dakota | AJ1: Ohio | AK1: Oklahoma | AL1: Oregon | AM1: Pennsylvania | AN1: Rhode Island | AO1: South Carolina | AP1: South Dakota | AQ1: Tennessee | AR1: Texas | AS1: Utah | AT1: Vermont | AU1: Virginia | AV1: Washington | AW1: West Virginia | AX1: Wisconsin | AY1: Wyoming
A2: 35 | C2: 67 | D2: 2 | E2: 10 | F2: 75 | G2: 58 | H2: 64 | I2: 8 | J2: 3 | K2: 52 | L2: 159 | M2: 43 | N2: 102 | O2: 92 | P2: 100 | Q2: 105 | R2: 120 | S2: 60 | T2: 16 | U2: 23 | V2: 11 | W2: 83 | X2: 90 | Y2: 82 | Z2: 114 | AA2: 56 | AB2: 106 | AC2: 14 | AD2: 10 | AE2: 20 | AF2: 32 | AG2: 55 | AH2: 100 | AI2: 53 | AJ2: 89 | AK2: 77 | AL2: 36 | AM2: 67 | AN2: 5 | AO2: 46 | AP2: 66 | AQ2: 95 | AR2: 236 | AS2: 29 | AT2: 14 | AU2: 112 | AV2: 39 | AW2: 53 | AX2: 72 | AY2: 23
A3: Alabama | B3: Alabama | C3: Autauga | D3: Homer | E3: Cochise | F3: Arkansas | G3: Alameda | H3: Adams | I3: Fairfield | J3: Kent | K3: Alachua | L3: Appling | M3: Ada | N3: Adams | O3: Adams | P3: Adair | Q3: Allen | R3: Adair | S3: Acadia | T3: Androscoggin | U3: Allegany | V3: Berkshire | W3: Alcona | X3: Aitkin | Y3: Adams | Z3: Adair | AA3: Beaverhead | AB3: Adams | AC3: Carson City | AD3: Belknap | AE3: Atlantic | AF3: Bernalillo | AG3: Albany | AH3: Alamance | AI3: Adams | AJ3: Adams | AK3: Adair | AL3: Baker | AM3: Adams | AN3: Bristol | AO3: Abbeville | AP3: Aurora | AQ3: Anderson | AR3: Anderson | AS3: Beaver | AT3: Addison | AU3: Accomack | AV3: Adams | AW3: Barbour | AX3: Adams | AY3: Albany
A4: Alaska | B4: Alaska | C4: Baldwin | D4: Delta | E4: Graham | F4: Ashley | G4: Alpine | H4: Alamosa | I4: Hartford | J4: New Castle | K4: Baker | L4: Atkinson | M4: Adams | N4: Alexander | O4: Allen | P4: Adams | Q4: Anderson | R4: Allen | S4: Allen | T4: Aroostook | U4: Anne Arundel | V4: Bristol | W4: Alger | X4: Anoka | Y4: Alcorn | Z4: Andrew | AA4: Big Horn | AB4: Antelope | AC4: Churchill | AD4: Carroll | AE4: Bergen | AF4: Chaves | AG4: Allegany | AH4: Alexander | AI4: Barnes | AJ4: Allen | AK4: Alfalfa | AL4: Benton | AM4: Allegheny | AN4: Kent | AO4: Aiken | AP4: Beadle | AQ4: Bedford | AR4: Andrews | AS4: Box Elder | AT4: Bennington | AU4: Albemarle, Charlottesville City | AV4: Asotin | AW4: Berkeley | AX4: Ashland | AY4: Big Horn
A5: Arizona | B5: Arizona | C5: Barbour | E5: Greenlee | F5: Baxter | G5: Amador | H5: Arapahoe | I5: Litchfield | J5: Sussex | K5: Bay | L5: Bacon | M5: Bannock | N5: Bond | O5: Bartholomew | P5: Allamakee | Q5: Atchison | R5: Anderson | S5: Ascension | T5: Cumberland | U5: Baltimore | V5: Dukes | W5: Allegan | X5: Becker | Y5: Amite | Z5: Atchison | AA5: Blaine | AB5: Arthur | AC5: Clark | AD5: Cheshire | AE5: Burlington | AF5: Cibola | AG5: Broome | AH5: Alleghany | AI5: Benson | AJ5: Ashland | AK5: Atoka | AL5: Clackamas | AM5: Armstrong | AN5: Newport | AO5: Allendale | AP5: Bennett | AQ5: Benton | AR5: Angelina | AS5: Cache | AT5: Caledonia | AU5: Alexandria | AV5: Benton | AW5: Boone | AX5: Barron | AY5: Campbell
A6: Arkansas | B6: Arkansas | C6: Bibb | E6: La Paz | F6: Benton | G6: Butte | H6: Archuleta | I6: Middlesex | K6: Brevard | L6: Baker | M6: Bear Lake | N6: Boone | O6: Benton | P6: Appanoose | Q6: Barber | R6: Ballard | S6: Assumption | T6: Franklin | U6: Calvert | V6: Essex | W6: Alpena | X6: Beltrami | Y6: Attala | Z6: Audrain | AA6: Broadwater | AB6: Banner | AC6: Douglas | AD6: Coos | AE6: Camden | AF6: Colfax | AG6: Cattaraugus | AH6: Anson | AI6: Billings | AJ6: Ashtabula | AK6: Beaver | AL6: Clatsop | AM6: Beaver | AN6: Providence | AO6: Anderson | AP6: Bon Homme | AQ6: Bledsoe | AR6: Aransas | AS6: Carbon | AT6: Chittenden | AU6: Alleghany, Covington City | AV6: Chelan | AW6: Braxton | AX6: Bayfield | AY6: Carbon
A7: California | B7: California | C7: Blount | E7: Maricopa | F7: Boone | G7: Calaveras | H7: Baca | I7: New Haven | K7: Calhoun | L7: Baldwin | M7: Benewah, South Shoshone | N7: Brown | O7: Blackford | P7: Audubon | Q7: Barton | R7: Barren | S7: Avoyelles | T7: Hancock | U7: Caroline | V7: Franklin | W7: Antrim | X7: Benton | Y7: Benton | Z7: Barry | AA7: Carbon | AB7: Blaine | AC7: Eureka | AD7: Grafton | AE7: Cape May | AF7: Curry | AG7: Cayuga | AH7: Ashe | AI7: Bottineau | AJ7: Athens | AK7: Beckham | AL7: Columbia | AM7: Bedford | AN7: Washington | AO7: Bamberg | AP7: Brookings | AQ7: Blount | AR7: Archer | AS7: Daggett | AT7: Essex | AU7: Amelia | AV7: Clallam | AW7: Brooke | AX7: Brown | AY7: Converse
A8: Colorado | B8: Colorado | C8: Bullock | E8: Mohave | F8: Bradley | G8: Colusa | H8: Bent | I8: New London | K8: Columbia | L8: Banks | M8: Bingham | N8: Bureau | O8: Boone | P8: Benton | Q8: Bourbon | R8: Bath | S8: Beauregard | T8: Kennebec | U8: Carroll | V8: Hampden | W8: Arenac | X8: Big Stone | Y8: Bolivar | Z8: Barton | AA8: Carter | AB8: Boone | AC8: Humboldt | AD8: Hillsborough | AE8: Cumberland | AF8: De Baca | AG8: Chautauqua | AH8: Avery | AI8: Bowman | AJ8: Auglaize | AK8: Blaine | AL8: Coos | AM8: Berks | AO8: Barnwell | AP8: Brown | AQ8: Bradley | AR8: Armstrong | AS8: Davis | AT8: Franklin | AU8: Amherst | AV8: Clark | AW8: Cabell | AX8: Buffalo | AY8: Crook
A9: Connecticut | B9: Connecticut | C9: Butler | E9: Pima | F9: Calhoun | G9: Contra Costa | H9: Boulder | I9: Tolland | K9: Dixie | L9: Barrow | M9: Blaine | N9: Calhoun | O9: Brown | P9: Black Hawk | Q9: Brown | R9: Bell | S9: Bienville | T9: Knox | U9: Cecil | V9: Hampshire | W9: Baraga | X9: Blue Earth | Y9: Calhoun | Z9: Bates | AA9: Cascade | AB9: Box Butte | AC9: Lander | AD9: Merrimack | AE9: Essex | AF9: Dona Ana | AG9: Chemung | AH9: Beaufort | AI9: Burke | AJ9: Belmont | AK9: Bryan | AL9: Crook | AM9: Blair | AO9: Beaufort | AP9: Brule | AQ9: Campbell | AR9: Atascosa | AS9: Duchesne | AT9: Grand Isle | AU9: Appomattox | AV9: Columbia | AW9: Calhoun | AX9: Burnett | AY9: Fremont
A10: Delaware | B10: Delaware | C10: Calhoun | E10: Pinal | F10: Carroll | G10: El Dorado | H10: Cheyenne | I10: Windham | K10: Duval | L10: Bartow | M10: Boise | N10: Carroll | O10: Carroll | P10: Boone | Q10: Butler | R10: Boone | S10: Bossier | T10: Lincoln | U10: Charles | V10: Middlesex | W10: Barry | X10: Brown | Y10: Carroll | Z10: Benton | AA10: Chouteau | AB10: Boyd | AC10: Lyon | AD10: Rockingham | AE10: Gloucester | AF10: Eddy | AG10: Chenango | AH10: Bertie | AI10: Burleigh | AJ10: Brown | AK10: Caddo | AL10: Curry | AM10: Bradford | AO10: Berkeley | AP10: Buffalo | AQ10: Cannon | AR10: Austin | AS10: Emery | AT10: Lamoille | AU10: Arlington | AV10: Cowlitz | AW10: Clay | AX10: Calumet | AY10: Goshen
A11: Florida | B11: Florida | C11: Chambers | E11: Yavapai | F11: Chicot | G11: Fresno | H11: Conejas | K11: Escambia | L11: Ben Hill | M11: Bonner | N11: Cass | O11: Cass | P11: Bremer | Q11: Chase | R11: Bourbon | S11: Caddo | T11: Oxford | U11: Dorchester | V11: Norfolk | W11: Bay | X11: Carlton | Y11: Chickasaw | Z11: Bollinger | AA11: Custer | AB11: Brown | AC11: Northwest Nye | AD11: Strafford | AE11: Hudson | AF11: Grant | AG11: Clinton | AH11: Bladen | AI11: Cass | AJ11: Butler | AK11: Canadian | AL11: Deschutes | AM11: Bucks | AO11: Calhoun | AP11: Butte | AQ11: Carroll | AR11: Bailey | AS11: Garfield | AT11: Orange | AU11: Augusta | AV11: Douglas | AW11: Doddridge | AX11: Chippewa | AY11: Hot Springs
A12: Georgia | B12: Georgia | C12: Cherokee | E12: Yuma | F12: Clark | G12: Glenn | H12: Conejos | K12: Franklin | L12: Berrien | M12: Bonneville | N12: Champaign | O12: Clark | P12: Buchanan | Q12: Chautauqua | R12: Boyd | S12: Calcasieu | T12: Penobscot | U12: Frederick | V12: Plymouth | W12: Benzie | X12: Carver | Y12: Choctaw | Z12: Boone | AA12: Daniels | AB12: Buffalo | AC12: Pershing | AD12: Sullivan | AE12: Hunterdon, Union | AF12: Guadalupe | AG12: Columbia | AH12: Brunswick | AI12: Cavalier | AJ12: Carroll | AK12: Carter | AL12: Douglas | AM12: Butler | AO12: Charleston | AP12: Campbell | AQ12: Carter | AR12: Bandera | AS12: Grand | AT12: Orleans | AU12: Bath | AV12: Ferry | AW12: Fayette | AX12: Clark | AY12: Johnson
A13: Idaho | B13: Idaho | C13: Chilton | F13: Clay | G13: Humboldt | H13: Costilla | K13: Gadsden | L13: Bibb | M13: Boundary | N13: Christian | O13: Clay | P13: Buena Vista | Q13: Cherokee | R13: Boyle | S13: Caldwell | T13: Piscataquis | U13: Garrett | V13: Worcester | W13: Berrien | X13: Cass | Y13: Claiborne | Z13: Buchanan | AA13: Dawson | AB13: Burt | AC13: Southeast Nye | AE13: Mercer | AF13: Harding | AG13: Cortland | AH13: Buncombe | AI13: Dickey | AJ13: Champaign | AK13: Cherokee | AL13: Gilliam | AM13: Cambria | AO13: Cherokee | AP13: Charles Mix | AQ13: Cheatham | AR13: Bastrop | AS13: Iron | AT13: Rutland | AU13: Bedford | AV13: Franklin | AW13: Gilmer | AX13: Columbia | AY13: Laramie
A14: Illinois | B14: Illinois | C14: Choctaw | F14: Cleburne | G14: Imperial | H14: Crowley | K14: Gilchrist | L14: Bleckley | M14: Butte | N14: Clark | O14: Clinton | P14: Butler | Q14: Cheyenne | R14: Bracken | S14: Cameron | T14: Sagadahoc | U14: Harford | W14: Branch | X14: Chippewa | Y14: Clarke | Z14: Butler | AA14: Deer Lodge | AB14: Butler | AC14: Storey | AE14: Middlesex | AF14: Hidalgo | AG14: Delaware | AH14: Burke | AI14: Divide | AJ14: Clark | AK14: Choctaw | AL14: Grant | AM14: Cameron | AO14: Chester | AP14: Clark | AQ14: Chester | AR14: Baylor | AS14: Juab | AT14: Washington | AU14: Bland | AV14: Garfield | AW14: Grant | AX14: Crawford | AY14: Lincoln
A15: Indiana | B15: Indiana | C15: Clarke | F15: Cleveland | G15: Inyo | H15: Custer | K15: Gulf | L15: Brantley | M15: Camas | N15: Clay | O15: Crawford | P15: Calhoun | Q15: Clark | R15: Breathitt | S15: Catahoula | T15: Somerset | U15: Howard | W15: Calhoun | X15: Chisago | Y15: Clay | Z15: Caldwell | AA15: Fallon | AB15: Carson City | AC15: Washoe | AE15: Monmouth | AF15: Lea | AG15: Dutchess | AH15: Cabarrus | AI15: Dunn | AJ15: Clermont | AK15: Cimarron | AL15: Harney | AM15: Carbon | AO15: Chesterfield | AP15: Clay | AQ15: Claiborne | AR15: Bee | AS15: Kane | AT15: Windham | AU15: Botetourt | AV15: Grant | AW15: Greenbrier | AX15: Dane | AY15: Natrona
A16: Iowa | B16: Iowa | C16: Clay | F16: Columbia | G16: Kern | H16: Delta | K16: Hamilton | L16: Brooks | M16: Canyon | N16: Clinton | O16: Daviess | P16: Carroll | Q16: Clay | R16: Breckinridge | S16: Claiborne | T16: Waldo | U16: Kent | W16: Cass | X16: Clay | Y16: Coahoma | Z16: Callaway | AA16: Fergus | AB16: Cass | AC16: White Pine | AE16: Morris | AF16: Lincoln | AG16: Erie | AH16: Caldwell | AI16: Eddy | AJ16: Clinton | AK16: Cleveland | AL16: Hood River | AM16: Centre | AO16: Clarendon | AP16: Codington | AQ16: Clay | AR16: Bell | AS16: Millard | AT16: Windsor | AU16: Brunswick | AV16: Grays Harbor | AW16: Hampshire | AX16: Dodge | AY16: Niobrara
A17: Kansas | B17: Kansas | C17: Cleburne | F17: Conway | G17: Kings | H17: Denver | K17: Holmes | L17: Bryan | M17: Caribou | N17: Coles | O17: Dearborn | P17: Cass | Q17: Cloud | R17: Bullitt | S17: Concordia | T17: Washington | U17: Montgomery | W17: Charlevoix | X17: Clearwater | Y17: Copiah | Z17: Camden | AA17: Flathead | AB17: Cedar | AE17: Ocean | AF17: Los Alamos | AG17: Essex | AH17: Camden | AI17: Emmons | AJ17: Columbiana | AK17: Coal | AL17: Jackson | AM17: Chester | AO17: Colleton | AP17: Corson | AQ17: Cocke | AR17: Bexar | AS17: Morgan | AU17: Buchanan | AV17: Island | AW17: Hancock | AX17: Door | AY17: Park
A18: Kentucky | B18: Kentucky | C18: Coffee | F18: Craighead | G18: Lake | H18: Dolores | K18: Jackson | L18: Bulloch | M18: Cassia | N18: Cook | O18: Decatur | P18: Cedar | Q18: Coffey | R18: Butler | S18: De Soto | T18: York | U18: Prince George's | W18: Cheboygan | X18: Cook | Y18: Covington | Z18: Cape Girardeau | AA18: Gallatin | AB18: Chase | AE18: Passaic | AF18: Luna | AG18: Franklin | AH18: Carteret | AI18: Foster | AJ18: Coshocton | AK18: Comanche | AL18: Jefferson | AM18: Clarion | AO18: Darlington | AP18: Custer | AQ18: Coffee | AR18: Blanco | AS18: Piute | AU18: Buckingham | AV18: Jefferson | AW18: Hardy | AX18: Douglas | AY18: Platte
A19: Louisiana | B19: Louisiana | C19: Colbert | F19: Crawford | G19: Lassen | H19: Douglas | K19: Jefferson | L19: Burke | M19: Clark | N19: Crawford | O19: DeKalb | P19: Cerro Gordo | Q19: Comanche | R19: Caldwell | S19: East Baton Rouge | U19: Queen Anne's | W19: Chippewa | X19: Cottonwood | Y19: DeSoto | Z19: Carroll | AA19: Garfield | AB19: Cherry | AE19: Salem | AF19: McKinley | AG19: Fulton | AH19: Caswell | AI19: Golden Valley | AJ19: Crawford | AK19: Cotton | AL19: Josephine | AM19: Clearfield | AO19: Dillon | AP19: Davison | AQ19: Crockett | AR19: Borden | AS19: Rich | AU19: Campbell, Lynchburg City | AV19: Kitsap | AW19: Harrison | AX19: Dunn | AY19: Sheridan
A20: Maine | B20: Maine | C20: Conecuh | F20: Crittenden | G20: Los Angeles | H20: Eagle | K20: Lafayette | L20: Butts | M20: Clearwater | N20: Cumberland | O20: Delaware | P20: Cherokee | Q20: Cowley | R20: Calloway | S20: East Carroll | U20: Somerset | W20: Clare | X20: Crow Wing | Y20: Forrest | Z20: Carter | AA20: Glacier | AB20: Cheyenne | AE20: Somerset | AF20: Mora | AG20: Genesee | AH20: Catawba | AI20: Grand Forks | AJ20: Cuyahoga | AK20: Craig | AL20: Klamath | AM20: Clinton | AO20: Dorchester | AP20: Day | AQ20: Cumberland | AR20: Bosque | AS20: Salt Lake | AU20: Caroline | AV20: Kittitas | AW20: Jackson | AX20: Eau Claire | AY20: Sublette
A21: Maryland | B21: Maryland | C21: Coosa | F21: Cross | G21: Madera | H21: El Paso | K21: Lake | L21: Calhoun | M21: Elmore | N21: DeKalb | O21: Dubois | P21: Chickasaw | Q21: Crawford | R21: Campbell | S21: East Feliciana | U21: St. Mary's | W21: Clinton | X21: Dakota | Y21: Franklin | Z21: Cass | AA21: Golden Valley | AB21: Churchill | AE21: Sussex | AF21: Otero | AG21: Greene | AH21: Chatham | AI21: Grant | AJ21: Darke | AK21: Creek | AL21: Lake | AM21: Columbia | AO21: Edgefield | AP21: Deuel | AQ21: Davidson | AR21: Bowie | AS21: San Juan | AU21: Carroll, East Galax City | AV21: Klickitat | AW21: Jefferson | AX21: Florence | AY21: Sweetwater
A22: Massachusetts | B22: Massachusetts | C22: Covington | F22: Dallas | G22: Marin | H22: Elbert | K22: Lee | L22: Camden | M22: Franklin | N22: DeWitt | O22: Elkhart | P22: Clarke | Q22: Decatur | R22: Carlisle | S22: Evangeline | U22: Talbot | W22: Crawford | X22: Dodge | Y22: George | Z22: Cedar | AA22: Granite | AB22: Clark | AE22: Warren | AF22: Quay | AG22: Hamilton | AH22: Cherokee | AI22: Griggs | AJ22: Defiance | AK22: Custer | AL22: Lane | AM22: Crawford | AO22: Fairfield | AP22: Dewey | AQ22: Decatur | AR22: Brazoria | AS22: Sanpete | AU22: Charles City | AV22: Lewis | AW22: Kanawha | AX22: Fond du Lac | AY22: Teton
A23: Michigan | B23: Michigan | C23: Crenshaw | F23: Desha | G23: Mariposa | H23: Fremont | K23: Leon | L23: Candler | M23: Fremont | N23: Douglas | O23: Fayette | P23: Clay | Q23: Dickinson | R23: Carroll | S23: Franklin | U23: Washington | W23: Delta | X23: Douglas | Y23: Greene | Z23: Chariton | AA23: Hill | AB23: Clay | AF23: Rio Arriba | AG23: Herkimer | AH23: Chowan | AI23: Hettinger | AJ23: Delaware | AK23: Delaware | AL23: Lincoln | AM23: Cumberland | AO23: Florence | AP23: Douglas | AQ23: DeKalb | AR23: Brazos | AS23: Sevier | AU23: Charlotte | AV23: Lincoln | AW23: Lewis | AX23: Forest | AY23: Uinta
A24: Minnesota | B24: Minnesota | C24: Cullman | F24: Drew | G24: Merced | H24: Garfield | K24: Levy | L24: Carroll | M24: Gem | N24: DuPage | O24: Floyd | P24: Clayton | Q24: Doniphan | R24: Carter | S24: Grant | U24: Wicomico | W24: Dickinson | X24: East Otter Tail | Y24: Grenada | Z24: Christian | AA24: Jefferson | AB24: Colfax | AF24: Roosevelt | AG24: Jefferson | AH24: Clay | AI24: Kidder | AJ24: East Lucas | AK24: Dewey | AL24: Linn | AM24: Dauphin | AO24: Georgetown | AP24: Edmunds | AQ24: Dickson | AR24: Briscoe | AS24: Summit | AU24: Chesapeake | AV24: Mason | AW24: Lincoln | AX24: Grant | AY24: Washakie
A25: Mississippi | B25: Mississippi | C25: Dale | F25: Faulkner | G25: Modoc | H25: Grand | K25: Liberty | L25: Catoosa | M25: Gooding | N25: Edgar | O25: Fountain | P25: Clinton | Q25: Douglas | R25: Casey | S25: Iberia | U25: Worcester | W25: Eaton | X25: East Polk | Y25: Hancock | Z25: Clark | AA25: Judith Basin | AB25: Cuming | AF25: San Juan | AG25: Lewis | AH25: Cleveland | AI25: LaMoure | AJ25: Erie | AK25: Ellis | AL25: Malheur | AM25: Delaware | AO25: Greenville | AP25: Fall River | AQ25: Dyer | AR25: Brooks | AS25: Tooele | AU25: Chesterfield | AV25: Okanogan | AW25: Logan, Mingo | AX25: Green | AY25: Weston
A26: Missouri | B26: Missouri | C26: Dallas | F26: Franklin | G26: Mono | H26: Hinsdale | K26: Madison | L26: Charlton | M26: Idaho | N26: Edwards | O26: Franklin | P26: Crawford | Q26: Edwards | R26: Christian | S26: Iberville | W26: Emmet | X26: Faribault | Y26: Harrison | Z26: Clay | AA26: Lake | AB26: Custer | AF26: San Miguel | AG26: Livingston | AH26: Columbus | AI26: Logan | AJ26: Fairfield | AK26: Garfield | AL26: Marion | AM26: Elk | AO26: Greenwood | AP26: Faulk | AQ26: Fayette | AR26: Brown | AS26: Uintah | AU26: Clarke | AV26: Pacific | AW26: Marion | AX26: Green Lake
A27: Montana | B27: Montana | C27: DeKalb | F27: Fulton | G27: Monterey | H27: Huerfano | K27: Manatee | L27: Chatham | M27: Jefferson | N27: Effingham | O27: Fulton | P27: Dallas | Q27: Elk | R27: Clark | S27: Jackson | W27: Genesee | X27: Fillmore | Y27: Hinds | Z27: Clinton | AA27: Lewis and Clark | AB27: Dakota | AF27: Sandoval | AG27: Madison | AH27: Craven | AI27: McHenry | AJ27: Fayette | AK27: Garvin | AL27: Morrow | AM27: Erie | AO27: Hampton | AP27: Grant | AQ27: Fentress | AR27: Burleson | AS27: Utah | AU27: Colonial Heights | AV27: Pend Oreille | AW27: Marshall | AX27: Iowa
A28: Nebraska | B28: Nebraska | C28: Elmore | F28: Garland | G28: Napa | H28: Jefferson | K28: Marion | L28: Chattahoochee | M28: Jerome | N28: Fayette | O28: Gibson | P28: Davis | Q28: Ellis | R28: Clay | S28: Jefferson Davis | W28: Gladwin | X28: Freeborn | Y28: Holmes | Z28: Cole | AA28: Liberty | AB28: Dawes, North Sioux | AF28: Santa Fe | AG28: Monroe | AH28: Cumberland | AI28: McIntosh | AJ28: Franklin | AK28: Grady | AL28: Multnomah | AM28: Fayette | AO28: Horry | AP28: Gregory | AQ28: Franklin | AR28: Burnet | AS28: Wasatch | AU28: Craig | AV28: Pierce | AW28: Mason | AX28: Iron
A29: Nevada | B29: Nevada | C29: Escambia | F29: Grant | G29: Nevada | H29: Kiowa | K29: Martin | L29: Chattooga | M29: Kootenai, North Shoshone | N29: Ford | O29: Grant | P29: Decatur | Q29: Ellsworth | R29: Clinton | S29: La Salle | W29: Gogebic | X29: Goodhue | Y29: Humphreys | Z29: Cooper | AA29: Lincoln | AB29: Dawson | AF29: Sierra | AG29: Montgomery | AH29: Currituck | AI29: McKenzie | AJ29: Fulton | AK29: Grant | AL29: Polk | AM29: Forest | AO29: Jasper | AP29: Haakon | AQ29: Gibson | AR29: Caldwell | AS29: Washington | AU29: Culpeper | AV29: San Juan | AW29: Mercer, McDowell | AX29: Jackson
A30: New Hampshire | B30: NewHampshire | C30: Etowah | F30: Greene | G30: Orange | H30: Kit Carson | K30: Miami-Dade | L30: Cherokee | M30: Latah | N30: Franklin | O30: Greene | P30: Delaware | Q30: Finney | R30: Crittenden | S30: Lafayette | W30: Grand Traverse | X30: Grant | Y30: Issaquena | Z30: Crawford | AA30: Madison | AB30: Deuel | AF30: Socorro | AG30: Niagara | AH30: Dare | AI30: McLean | AJ30: Gallia | AK30: Greer | AL30: Sherman | AM30: Franklin | AO30: Kershaw | AP30: Hamlin | AQ30: Giles | AR30: Calhoun | AS30: Wayne | AU30: Cumberland | AV30: Skagit | AW30: Mineral | AX30: Jefferson
A31: New Jersey | B31: NewJersey | C31: Fayette | F31: Hempstead | G31: Placer | H31: La Plata | K31: Monroe | L31: Clarke | M31: Lemhi, North Custer | N31: Fulton | O31: Hamilton | P31: Des Moines | Q31: Ford | R31: Cumberland | S31: Lafourche | W31: Gratiot | X31: Hennepin | Y31: Itawamba | Z31: Dade | AA31: McCone | AB31: Dixon | AF31: Taos | AG31: Oneida | AH31: Davidson | AI31: Mercer | AJ31: Geauga | AK31: Harmon | AL31: Tillamook | AM31: Fulton | AO31: Lancaster | AP31: Hand | AQ31: Grainger | AR31: Callahan | AS31: Weber | AU31: Danville | AV31: Skamania | AW31: Monongalia | AX31: Juneau
A32: New Mexico | B32: NewMexico | C32: Franklin | F32: Hot Spring | G32: Plumas | H32: Larimer | K32: Nassau | L32: Clay | M32: Lewis | N32: Gallatin | O32: Hancock | P32: Dickinson | Q32: Franklin | R32: Daviess | S32: Lincoln | W32: Hillsdale | X32: Houston | Y32: Jackson | Z32: Dallas | AA32: Meagher | AB32: Dodge | AF32: Torrance | AG32: Onondaga | AH32: Davie | AI32: Morton | AJ32: Greene | AK32: Harper | AL32: Umatilla | AM32: Greene | AO32: Laurens | AP32: Hanson | AQ32: Greene | AR32: Cameron | AU32: Dickenson | AV32: Snohomish, North King | AW32: Monroe | AX32: Kenosha
A33: New York | B33: NewYork | C33: Geneva | F33: Howard | G33: Riverside | H33: Las Animas | K33: Okaloosa | L33: Clayton | M33: Lincoln | N33: Greene | O33: Harrison | P33: Dubuque | Q33: Geary | R33: Edmonson | S33: Livingston | W33: Houghton | X33: Hubbard | Y33: Jasper | Z33: Daviess | AA33: Mineral | AB33: Douglas | AF33: Union | AG33: Ontario | AH33: Duplin | AI33: Mountrail | AJ33: Guernsey | AK33: Haskell | AL33: Union | AM33: Huntingdon | AO33: Lee | AP33: Harding | AQ33: Grundy | AR33: Camp | AU33: Dinwiddie, Petersburg City | AV33: South King | AW33: Morgan | AX33: Kewaunee
A34: North Carolina | B34: NorthCarolina | C34: Greene | F34: Independence | G34: Sacramento | H34: Lincoln | K34: Okeechobee | L34: Clinch | M34: Madison | N34: Grundy | O34: Hendricks | P34: East Pottawattamie | Q34: Gove | R34: Elliott | S34: Madison | W34: Huron | X34: Isanti | Y34: Jefferson | Z34: DeKalb | AA34: Missoula | AB34: Dundy | AF34: Valencia | AG34: Orange, Rockland | AH34: Durham | AI34: Nelson | AJ34: Hamilton | AK34: Hughes | AL34: Wallowa | AM34: Indiana | AO34: Lexington | AP34: Hughes | AQ34: Hamblen | AR34: Carson | AU34: Essex | AV34: Spokane | AW34: Nicholas | AX34: La Crosse
A35: North Dakota | B35: NorthDakota | C35: Hale | F35: Izard | G35: San Benito | H35: Logan | K35: Orange | L35: Cobb | M35: Minidoka | N35: Hamilton | O35: Henry | P35: Emmet | Q35: Graham | R35: Estill | S35: Morehouse | W35: Ingham | X35: Itasca | Y35: Jefferson Davis | Z35: Dent | AA35: Musselshell | AB35: Eureka | AG35: Orleans | AH35: Edgecombe | AI35: Oliver | AJ35: Hancock | AK35: Jackson | AL35: Wasco | AM35: Jefferson | AO35: Marion | AP35: Hutchinson | AQ35: Hamilton | AR35: Cass | AU35: Fairfax | AV35: Stevens | AW35: Ohio | AX35: Lafayette
A36: Ohio | B36: Ohio | C36: Henry | F36: Jackson | G36: San Bernardino | H36: Mesa | K36: Osceola | L36: Coffee | M36: Nez Perce | N36: Hancock | O36: Howard | P36: Fayette | Q36: Grant | R36: Fayette | S36: Natchitoches | W36: Ionia | X36: Jackson | Y36: Jones | Z36: Douglas | AA36: Park | AB36: Fillmore | AG36: Oswego | AH36: Forsyth | AI36: Pembina | AJ36: Hardin | AK36: Jefferson | AL36: Washington | AM36: Juniata | AO36: Marlboro | AP36: Hyde | AQ36: Hancock | AR36: Castro | AU36: Falls Church | AV36: Thurston | AW36: Pendleton | AX36: Langlade
A37: Oklahoma | B37: Oklahoma | C37: Houston | F37: Jefferson | G37: San Diego | H37: Mineral | K37: Palm Beach | L37: Colquitt | M37: Oneida | N37: Hardin | O37: Huntington | P37: Floyd | Q37: Gray | R37: Fleming | S37: Ouachita | W37: Iosco | X37: Kanabec | Y37: Kemper | Z37: Dunklin | AA37: Petroleum | AB37: Franklin | AG37: Otsego | AH37: Franklin | AI37: Pierce | AJ37: Harrison | AK37: Johnston | AL37: Wheeler | AM37: Lackawanna | AO37: McCormick | AP37: Jackson | AQ37: Hardeman | AR37: Chambers | AU37: Fauquier | AV37: Wahkiakum | AW37: Pleasants | AX37: Lincoln
A38: Oregon | B38: Oregon | C38: Jackson | F38: Johnson | G38: San Joaquin | H38: Moffat | K38: Pasco | L38: Columbia | M38: Owyhee | N38: Henderson | O38: Jackson | P38: Franklin | Q38: Greeley | R38: Floyd | S38: Pointe Coupee | W38: Iron | X38: Kandiyohi | Y38: Lafayette | Z38: Franklin | AA38: Phillips | AB38: Frontier | AG38: Putnam | AH38: Gaston | AI38: Ramsey | AJ38: Henry | AK38: Kay | AL38: Yamhill | AM38: Lancaster | AO38: Newberry | AP38: Jerauld | AQ38: Hardin | AR38: Cherokee | AU38: Floyd | AV38: Walla Walla | AW38: Pocahontas | AX38: Manitowoc
A39: Pennsylvania | B39: Pennsylvania | C39: Jefferson | F39: Lafayette | G39: San Luis Obispo | H39: Montezuma | K39: Pinellas | L39: Cook | M39: Payette | N39: Henry | O39: Jasper | P39: Fremont | Q39: Greenwood | R39: Franklin | S39: Rapides | W39: Isabella | X39: Kittson | Y39: Lamar | Z39: Gasconade | AA39: Pondera | AB39: Furnas | AG39: Rensselaer | AH39: Gates | AI39: Ransom | AJ39: Highland | AK39: Kingfisher | AM39: Lawrence | AO39: Oconee | AP39: Jones | AQ39: Hawkins | AR39: Childress | AU39: Fluvanna | AV39: Whatcom | AW39: Preston | AX39: Marathon
A40: Rhode Island | B40: RhodeIsland | C40: Lamar | F40: Lawrence | G40: San Mateo | H40: Montrose | K40: Polk | L40: Coweta | M40: Power | N40: Iroquois | O40: Jay | P40: Greene | Q40: Hamilton | R40: Fulton | S40: Red River | W40: Jackson | X40: Koochiching | Y40: Lauderdale | Z40: Gentry | AA40: Powder River | AB40: Gage | AG40: Saratoga | AH40: Graham | AI40: Renville | AJ40: Hocking | AK40: Kiowa | AM40: Lebanon | AO40: Orangeburg | AP40: Kingsbury | AQ40: Haywood | AR40: Clay | AU40: Franklin | AV40: Whitman | AW40: Putnam | AX40: Marinette
A41: South Carolina | B41: SouthCarolina | C41: Lauderdale | F41: Lee | G41: Santa Barbara | H41: Morgan | K41: Putnam | L41: Crawford | M41: South Custer | N41: Jackson | O41: Jefferson | P41: Grundy | Q41: Harper | R41: Gallatin | S41: Richland | W41: Kalamazoo | X41: Lac qui Parle | Y41: Lawrence | Z41: Greene | AA41: Powell | AB41: Garden | AG41: Schenectady | AH41: Granville | AI41: Richland | AJ41: Holmes | AK41: Latimer | AM41: Lehigh | AO41: Pickens | AP41: Lake | AQ41: Henderson | AR41: Cochran | AU41: Frederick, Winchester City | AV41: Yakima | AW41: Raleigh | AX41: Marquette
A42: South Dakota | B42: SouthDakota | C42: Lawrence | F42: Lincoln | G42: Santa Clara | H42: Otero | K42: Saint Johns | L42: Crisp | M42: Teton | N42: Jasper | O42: Jennings | P42: Guthrie | Q42: Harvey | R42: Garrard | S42: Sabine | W42: Kalkaska | X42: Lake | Y42: Leake | Z42: Grundy | AA42: Prairie | AB42: Garfield | AG42: Schoharie | AH42: Greene | AI42: Rolette | AJ42: Huron | AK42: Le Flore | AM42: Luzerne | AO42: Richland | AP42: Lawrence | AQ42: Henry | AR42: Coke | AU42: Giles | AW42: Randolph | AX42: Menominee
A43: Tennessee | B43: Tennessee | C43: Lee | F43: Little River | G43: Santa Cruz | H43: Ouray | K43: Saint Lucie | L43: Dade | M43: Twin Falls | N43: Jefferson | O43: Johnson | P43: Hamilton | Q43: Haskell | R43: Grant | S43: St. Charles | W43: Kent | X43: Lake of the Woods | Y43: Lee | Z43: Harrison | AA43: Ravalli | AB43: Gosper | AG43: Schuyler | AH43: Guilford | AI43: Sargent | AJ43: Jackson | AK43: Lincoln | AM43: Lycoming | AO43: Saluda | AP43: Lincoln | AQ43: Hickman | AR43: Coleman | AU43: Gloucester | AW43: Ritchie | AX43: Milwaukee
A44: Texas | B44: Texas | C44: Limestone | F44: Logan | G44: Shasta | H44: Phillips | K44: Santa Rosa | L44: Dawson | M44: Valley | N44: Jersey | O44: Knox | P44: Hancock | Q44: Hodgeman | R44: Graves | S44: St. Helena | W44: Keweenaw | X44: Le Sueur | Y44: Leflore | Z44: Henry | AA44: Richland | AB44: Grant | AG44: Seneca | AH44: Halifax | AI44: Sheridan | AJ44: Jefferson | AK44: Logan | AM44: McKean | AO44: Spartanburg | AP44: Lyman | AQ44: Houston | AR44: Collin | AU44: Goochland | AW44: Roane | AX44: Monroe
A45: Utah | B45: Utah | C45: Lowndes | F45: Lonoke | G45: Sierra | H45: Pitkin | K45: Sarasota | L45: Decatur | M45: Washington | N45: Jo Daviess | O45: Kosciusko | P45: Hardin | Q45: Jackson | R45: Grayson | S45: St. James | W45: Lake | X45: Lincoln | Y45: Lincoln | Z45: Hickory | AA45: Roosevelt | AB45: Greeley | AG45: St. Lawrence | AH45: Harnett | AI45: Sioux | AJ45: Knox | AK45: Love | AM45: Mercer | AO45: Sumter | AP45: Marshall | AQ45: Humphreys | AR45: Collingsworth | AU45: Grayson, West Galax City | AW45: Summers | AX45: Oconto
A46: Vermont | B46: Vermont | C46: Macon | F46: Madison | G46: Siskiyou | H46: Prowers | K46: Seminole | L46: DeKalb | N46: Johnson | O46: LaGrange | P46: Harrison | Q46: Jefferson | R46: Green | S46: St. John the Baptist | W46: Lapeer | X46: Lyon | Y46: Lowndes | Z46: Holt | AA46: Rosebud | AB46: Hall | AG46: Steuben | AH46: Haywood | AI46: Slope | AJ46: Lake | AK46: Major | AM46: Mifflin | AO46: Union | AP46: McCook | AQ46: Jackson | AR46: Colorado | AU46: Greene | AW46: Taylor | AX46: Oneida
A47: Virginia | B47: Virginia | C47: Madison | F47: Marion | G47: Solano | H47: Pueblo | K47: Sumter | L47: Dodge | N47: Kane | O47: Lake | P47: Henry | Q47: Jewell | R47: Greenup | S47: St. Landry | W47: Leelanau | X47: Mahnomen | Y47: Madison | Z47: Howard | AA47: Sanders | AB47: Hamilton | AG47: Suffolk, Nassau | AH47: Henderson | AI47: Stark | AJ47: Lawrence | AK47: Marshall | AM47: Monroe | AO47: Williamsburg | AP47: McPherson | AQ47: Jefferson | AR47: Comal | AU47: Greensville, Emporia City | AW47: Tucker | AX47: Outagamie
A48: Washington | B48: Washington | C48: Marengo | F48: Miller | G48: Sonoma | H48: Rio Blanco | K48: Suwannee | L48: Dooly | N48: Kankakee | O48: LaPorte | P48: Howard | Q48: Johnson | R48: Hancock | S48: St. Martin | W48: Lenawee | X48: Marshall | Y48: Marion | Z48: Howell | AA48: Sheridan | AB48: Harlan | AG48: Sullivan | AH48: Hertford | AI48: Steele | AJ48: Licking | AK48: Mayes | AM48: Montgomery | AO48: York | AP48: Meade | AQ48: Johnson | AR48: Comanche | AU48: Halifax | AW48: Tyler | AX48: Ozaukee
A49: West Virginia | B49: WestVirginia | C49: Marion | F49: Mississippi | G49: Stanislaus | H49: Rio Grande | K49: Taylor | L49: Dougherty | N49: Kendall | O49: Lawrence | P49: Humboldt | Q49: Kearny | R49: Hardin | S49: St. Mary | W49: Livingston | X49: Martin | Y49: Marshall | Z49: Iron | AA49: Silver Bow | AB49: Hayes | AG49: Tioga | AH49: Hoke | AI49: Stutsman | AJ49: Logan | AK49: McClain | AM49: Montour | AP49: Mellette | AQ49: Knox | AR49: Concho | AU49: Hampton | AW49: Upshur | AX49: Pepin
A50: Wisconsin | B50: Wisconsin | C50: Marshall | F50: Monroe | G50: Sutter | H50: Routt | K50: Union | L50: Douglas | N50: Knox | O50: Madison | P50: Ida | Q50: Kingman | R50: Harlan | S50: St. Tammany | W50: Luce | X50: McLeod | Y50: Monroe | Z50: Jackson | AA50: Stillwater | AB50: Hitchcock | AG50: Tompkins | AH50: Hyde | AI50: Towner | AJ50: Lorain | AK50: McCurtain | AM50: Northampton | AP50: Miner | AQ50: Lake | AR50: Cooke | AU50: Hanover | AW50: Wayne | AX50: Pierce
A51: Wyoming | B51: Wyoming | C51: Mobile | F51: Montgomery | G51: Tehama | H51: Saguache | K51: Volusia | L51: Early | N51: Lake | O51: Marion | P51: Iowa | Q51: Kiowa | R51: Harrison | S51: Tangipahoa | W51: Mackinac | X51: Meeker | Y51: Montgomery | Z51: Jasper | AA51: Sweet Grass | AB51: Holt | AG51: Ulster | AH51: Iredell | AI51: Traill | AJ51: Madison | AK51: McIntosh | AM51: Northumberland | AP51: Minnehaha | AQ51: Lauderdale | AR51: Coryell | AU51: Henrico, Richmond City | AW51: Webster | AX51: Polk
C52: Monroe | F52: Nevada | G52: Trinity | H52: San Juan | K52: Wakulla | L52: Echols | N52: LaSalle | O52: Marshall | P52: Jackson | Q52: Labette | R52: Hart | S52: Tensas | W52: Macomb | X52: Mille Lacs | Y52: Neshoba | Z52: Jefferson | AA52: Teton | AB52: Hooker | AG52: Warren | AH52: Jackson | AI52: Walsh | AJ52: Mahoning | AK52: Murray | AM52: Perry | AP52: Moody | AQ52: Lawrence | AR52: Cottle | AU52: Henry, Martinsville City | AW52: Wetzel | AX52: Portage
C53: Montgomery | F53: Newton | G53: Tulare | H53: San Miguel | K53: Walton | L53: Effingham | N53: Lawrence | O53: Martin | P53: Jasper | Q53: Lane | R53: Henderson | S53: Terrebonne | W53: Manistee | X53: Morrison | Y53: Newton | Z53: Johnson | AA53: Toole | AB53: Howard | AG53: Washington | AH53: Johnston | AI53: Ward | AJ53: Marion | AK53: Muskogee | AM53: Philadelphia | AP53: Pennington | AQ53: Lewis | AR53: Crockett | AU53: Highland | AW53: Wirt | AX53: Price
C54: Morgan | F54: Ouachita | G54: Tuolumne | H54: Sedgwick | K54: Washington | L54: Elbert | N54: Lee | O54: Miami | P54: Jefferson | Q54: Leavenworth | R54: Henry | S54: Union | W54: Marquette | X54: Mower | Y54: Noxubee | Z54: Knox | AA54: Treasure | AB54: Humboldt | AG54: Wayne | AH54: Jones | AI54: Wells | AJ54: Medina | AK54: Noble | AM54: Pike | AP54: Perkins | AQ54: Lincoln | AR54: Crosby | AU54: Hopewell | AW54: Wood | AX54: Racine
C55: Perry | F55: Perry | G55: Ventura | H55: Washington | L55: Emanuel | N55: Livingston | O55: Monroe | P55: Johnson | Q55: Lincoln | R55: Hickman | S55: Vermilion | W55: Mason | X55: Murray | Y55: Oktibbeha | Z55: Laclede | AA55: Valley | AB55: Jefferson | AG55: Westchester | AH55: Lee | AI55: Williams | AJ55: Meigs | AK55: Nowata | AM55: Potter | AP55: Potter | AQ55: Loudon | AR55: Culberson | AU55: Isle of Wight | AW55: Wyoming | AX55: Richland
C56: Pickens | F56: Phillips | G56: Yolo | H56: Weld | L56: Evans | N56: Logan | O56: Montgomery | P56: Jones | Q56: Linn | R56: Hopkins | S56: Vernon | W56: Mecosta | X56: Nicollet | Y56: Panola | Z56: Lafayette | AA56: Wheatland | AB56: Johnson | AG56: Wyoming | AH56: Lenoir | AJ56: Mercer | AK56: Okfuskee | AM56: Schuylkill | AP56: Roberts | AQ56: Macon | AR56: Dallam | AU56: James City, Williamsburg City | AX56: Rock
C57: Pike | F57: Pike | G57: Yuba | H57: Yuma | L57: Fannin | N57: Macon | O57: Morgan | P57: Keokuk | Q57: Logan | R57: Jackson | S57: Washington | W57: Menominee | X57: Nobles | Y57: Pearl River | Z57: Lawrence | AA57: Wibaux | AB57: Kearney | AG57: Yates | AH57: Lincoln | AJ57: Miami | AK57: Oklahoma | AM57: Snyder | AP57: Sanborn | AQ57: Madison | AR57: Dallas | AU57: King and Queen | AX57: Rusk
C58: Randolph | F58: Poinsett | G58: Ventura | H58: Saguache | L58: Fayette | N58: Macoupin | O58: Newton | P58: Kossuth | Q58: Lyon | R58: Jefferson | S58: Webster | W58: Midland | X58: Norman | Y58: Perry | Z58: Lewis | AA58: Yellowstone | AB58: Keith | AH58: Macon | AJ58: Monroe | AK58: Okmulgee | AM58: Somerset | AP58: Shannon | AQ58: Marion | AR58: Dawson | AU58: King George | AX58: Sauk
C59: Russell | F59: Polk | G59: Yolo | H59: San Juan | L59: Floyd | N59: Madison | O59: Noble | P59: Lee | Q59: Marion | R59: Jessamine | S59: West Baton Rouge | W59: Missaukee | X59: North St. Louis | Y59: Pike | Z59: Lincoln | AB59: Keya Paha | AH59: Madison | AJ59: Montgomery | AK59: Osage | AM59: Sullivan | AP59: Spink | AQ59: Marshall | AR59: Deaf Smith | AU59: King William | AX59: Sawyer
C60: Shelby | F60: Pope | G60: Yuba | H60: San Miguel | L60: Forsyth | N60: Marion | O60: Ohio | P60: Linn | Q60: Marshall | R60: Johnson | S60: West Carroll | W60: Monroe | X60: Olmsted | Y60: Pontotoc | Z60: Linn | AB60: Kimball | AH60: Martin | AJ60: Morgan | AK60: Ottawa | AM60: Susquehanna | AP60: Stanley | AQ60: Maury | AR60: Delta | AU60: Lancaster | AX60: Shawano
C61: St. Clair | F61: Prairie | H61: Sedgwick | L61: Franklin | N61: Marshall | O61: Orange | P61: Louisa | Q61: McPherson | R61: Kenton | S61: West Feliciana | W61: Montcalm | X61: Pennington | Y61: Prentiss | Z61: Livingston | AB61: Knox | AH61: McDowell | AJ61: Morrow | AK61: Pawnee | AM61: Tioga | AP61: Sully | AQ61: McMinn | AR61: Denton | AU61: Lee | AX61: Sheboygan
C62: Sumter | F62: Pulaski | H62: Summit | L62: Fulton | N62: Mason | O62: Owen | P62: Lucas | Q62: Meade | R62: Knott | S62: Winn | W62: Montmorency | X62: Pine | Y62: Quitman | Z62: Macon | AB62: Lancaster | AH62: Mecklenburg | AJ62: Muskingum | AK62: Payne | AM62: Union | AP62: Todd | AQ62: McNairy | AR62: DeWitt | AU62: Loudoun | AX62: St. Croix
C63: Talladega | F63: Randolph | H63: Teller | L63: Gilmer | N63: Massac | O63: Parke | P63: Lyon | Q63: Miami | R63: Knox | W63: Muskegon | X63: Pipestone | Y63: Rankin | Z63: Madison | AB63: Lander | AH63: Mitchell | AJ63: Noble | AK63: Pittsburg | AM63: Venango | AP63: Tripp | AQ63: Meigs | AR63: Dickens | AU63: Louisa | AX63: Taylor
C64: Tallapoosa | F64: Saline | H64: Washington | L64: Glascock | N64: McDonough | O64: Perry | P64: Madison | Q64: Mitchell | R64: Larue | W64: Newaygo | X64: Pope | Y64: Scott | Z64: Maries | AB64: Lincoln | AH64: Montgomery | AJ64: Ottawa | AK64: Pontotoc | AM64: Warren | AP64: Turner | AQ64: Monroe | AR64: Dimmit | AU64: Lunenburg | AX64: Trempealeau
C65: Tuscaloosa | F65: Scott | H65: Weld | L65: Glynn | N65: McHenry | O65: Pike | P65: Mahaska | Q65: Montgomery | R65: Laurel | W65: Oakland | X65: Ramsey | Y65: Sharkey | Z65: Marion | AB65: Logan | AH65: Moore | AJ65: Paulding | AK65: Pottawatomie | AM65: Washington | AP65: Union | AQ65: Montgomery | AR65: Donley | AU65: Madison | AX65: Vernon
C66: Walker | F66: Searcy | H66: Yuma | L66: Gordon | N66: McLean | O66: Porter | P66: Marion | Q66: Morris | R66: Lawrence | W66: Oceana | X66: Red Lake | Y66: Simpson | Z66: McDonald | AB66: Loup | AH66: Nash | AJ66: Perry | AK66: Pushmataha | AM66: Wayne | AP66: Walworth | AQ66: Moore | AR66: Duval | AU66: Manassas | AX66: Vilas
C67: Washington | F67: Sebastian | L67: Grady | N67: Menard | O67: Posey | P67: Marshall | Q67: Morton | R67: Lee | W67: Ogemaw | X67: Redwood | Y67: Smith | Z67: Mercer | AB67: Lyon | AH67: New Hanover | AJ67: Pickaway | AK67: Roger Mills | AM67: Westmoreland | AP67: Yankton | AQ67: Morgan | AR67: Eastland | AU67: Manassas Park | AX67: Walworth
C68: Wilcox | F68: Sevier | L68: Greene | N68: Mercer | O68: Pulaski | P68: Mills | Q68: Nemaha | R68: Leslie | W68: Ontonagon | X68: Renville | Y68: Stone | Z68: Miller | AB68: Madison | AH68: Northampton | AJ68: Pike | AK68: Rogers | AM68: Wyoming | AP68: Ziebach | AQ68: Obion | AR68: Edwards | AU68: Mathews | AX68: Washburn
C69: Winston | F69: Sharp | L69: Gwinnett | N69: Monroe | O69: Putnam | P69: Mitchell | Q69: Neosho | R69: Letcher | W69: Osceola | X69: Rice | Y69: Sunflower | Z69: Mississippi | AB69: McPherson | AH69: Onslow | AJ69: Portage | AK69: Seminole | AM69: York | AQ69: Overton | AR69: El Paso | AU69: Mecklenburg | AX69: Washington
F70: St. Francis | L70: Habersham | N70: Montgomery | O70: Randolph | P70: Monona | Q70: Ness | R70: Lewis | W70: Oscoda | X70: Rock | Y70: Tallahatchie | Z70: Moniteau | AB70: Merrick | AH70: Orange | AJ70: Preble | AK70: Sequoyah | AQ70: Perry | AR70: Ellis | AU70: Middlesex | AX70: Waukesha
F71: Stone | L71: Hall | N71: Morgan | O71: Ripley | P71: Monroe | Q71: Norton | R71: Lincoln | W71: Otsego | X71: Roseau | Y71: Tate | Z71: Monroe | AB71: Morrill | AH71: Pamlico | AJ71: Putnam | AK71: Stephens | AQ71: Pickett | AR71: Erath | AU71: Montgomery, Radford City | AX71: Waupaca
F72: Union | L72: Hancock | N72: Moultrie | O72: Rush | P72: Montgomery | Q72: Osage | R72: Livingston | W72: Ottawa | X72: Scott | Y72: Tippah | Z72: Montgomery | AB72: Nance | AH72: Pasquotank | AJ72: Richland | AK72: Texas | AQ72: Polk | AR72: Falls | AU72: Nelson | AX72: Waushara
F73: Van Buren | L73: Haralson | N73: Ogle | O73: Scott | P73: Muscatine | Q73: Osborne | R73: Logan | W73: Presque Isle | X73: Sherburne | Y73: Tishomingo | Z73: Morgan | AB73: Nemaha | AH73: Pender | AJ73: Ross | AK73: Tillman | AQ73: Putnam | AR73: Fannin | AU73: New Kent | AX73: Winnebago
F74: Washington | L74: Harris | N74: Peoria | O74: Shelby | P74: O'Brien | Q74: Ottawa | R74: Lyon | W74: Roscommon | X74: Sibley | Y74: Tunica | Z74: New Madrid | AB74: Northwest Nye | AH74: Perquimans | AJ74: Sandusky | AK74: Tulsa | AQ74: Rhea | AR74: Fayette | AU74: Newport News | AX74: Wood
F75: White | L75: Hart | N75: Perry | O75: Spencer | P75: Osceola | Q75: Pawnee | R75: Madison | W75: Saginaw | X75: South St. Louis | Y75: Union | Z75: Newton | AB75: Nuckolls | AH75: Person | AJ75: Scioto | AK75: Wagoner | AQ75: Roane | AR75: Fisher | AU75: Norfolk
F76: Woodruff | L76: Heard | N76: Piatt | O76: St. Joseph | P76: Page | Q76: Phillips | R76: Magoffin | W76: Sanilac | X76: Stearns | Y76: Walthall | Z76: Nodaway | AB76: Otoe | AH76: Pitt | AJ76: Seneca | AK76: Washington | AQ76: Robertson | AR76: Floyd | AU76: Northampton
F77: Yell | L77: Henry | N77: Pike | O77: Starke | P77: Palo Alto | Q77: Pottawatomie | R77: Marion | W77: Schoolcraft | X77: Steele | Y77: Warren | Z77: Oregon | AB77: Pawnee | AH77: Polk | AJ77: Shelby | AK77: Washita | AQ77: Rutherford | AR77: Foard | AU77: Northumberland
L78: Houston | N78: Pope | O78: Steuben | P78: Plymouth | Q78: Pratt | R78: Marshall | W78: Shiawassee | X78: Stevens | Y78: Washington | Z78: Osage | AB78: Perkins | AH78: Randolph | AJ78: Stark | AK78: Woods | AQ78: Scott | AR78: Fort Bend | AU78: Norton
L79: Irwin | N79: Pulaski | O79: Sullivan | P79: Pocahontas | Q79: Rawlins | R79: Martin | W79: St. Clair | X79: Swift | Y79: Wayne | Z79: Ozark | AB79: Pershing | AH79: Richmond | AJ79: Summit | AK79: Woodward | AQ79: Sequatchie | AR79: Franklin | AU79: Nottoway
L80: Jackson | N80: Putnam | O80: Switzerland | P80: Polk | Q80: Reno | R80: Mason | W80: St. Joseph | X80: Todd | Y80: Webster | Z80: Pemiscot | AB80: Phelps | AH80: Robeson | AJ80: Trumbull | AQ80: Sevier | AR80: Frio | AU80: Orange
L81: Jasper | N81: Randolph | O81: Tippecanoe | P81: Poweshiek | Q81: Republic | R81: McCracken | W81: Tuscola | X81: Traverse | Y81: Wilkinson | Z81: Perry | AB81: Pierce | AH81: Rockingham | AJ81: Tuscarawas | AQ81: Shelby | AR81: Gaines | AU81: Page
L82: Jeff Davis | N82: Richland | O82: Tipton | P82: Ringgold | Q82: Rice | R82: McCreary | W82: Van Buren | X82: Wabasha | Y82: Winston | Z82: Pettis | AB82: Platte | AH82: Rowan | AJ82: Union | AQ82: Smith | AR82: Galveston | AU82: Patrick
L83: Jefferson | N83: Rock Island | O83: Union | P83: Sac | Q83: Riley | R83: McLean | W83: Washtenaw | X83: Wadena | Y83: Yalobusha | Z83: Phelps | AB83: Polk | AH83: Rutherford | AJ83: Van Wert | AQ83: Stewart | AR83: Garza | AU83: Pittsylvania
L84: Jenkins | N84: Saline | O84: Vanderburgh | P84: Scott | Q84: Rooks | R84: Meade | W84: Wayne | X84: Waseca | Y84: Yazoo | Z84: Pike | AB84: Red Willow | AH84: Sampson | AJ84: Vinton | AQ84: Sullivan | AR84: Gillespie | AU84: Portsmouth
L85: Johnson | N85: Sangamon | O85: Vermillion | P85: Shelby | Q85: Rush | R85: Menifee | W85: Wexford | X85: Washington | Z85: Platte | AB85: Richardson | AH85: Scotland | AJ85: Warren | AQ85: Sumner | AR85: Glasscock | AU85: Powhatan
L86: Jones | N86: Schuyler | O86: Vigo | P86: Sioux | Q86: Russell | R86: Mercer | X86: Watonwan | Z86: Polk | AB86: Rock | AH86: Stanly | AJ86: Washington | AQ86: Tipton | AR86: Goliad | AU86: Prince Edward
L87: Lamar | N87: Scott | O87: Wabash | P87: Story | Q87: Saline | R87: Metcalfe | X87: West Otter Tail | Z87: Pulaski | AB87: Saline | AH87: Stokes | AJ87: Wayne | AQ87: Trousdale | AR87: Gonzales | AU87: Prince George
L88: Lanier | N88: Shelby | O88: Warren | P88: Tama | Q88: Scott | R88: Monroe | X88: West Polk | Z88: Putnam | AB88: Sarpy | AH88: Surry | AJ88: West Lucas | AQ88: Unicoi | AR88: Gray | AU88: Prince William
L89: Laurens | N89: St. Clair | O89: Warrick | P89: Taylor | Q89: Sedgwick | R89: Montgomery | X89: Wilkin | Z89: Ralls | AB89: Saunders | AH89: Swain | AJ89: Williams | AQ89: Union | AR89: Grayson | AU89: Pulaski
L90: Lee | N90: Stark | O90: Washington | P90: Union | Q90: Seward | R90: Morgan | X90: Winona | Z90: Randolph | AB90: Scotts Bluff | AH90: Transylvania | AJ90: Wood | AQ90: Van Buren | AR90: Gregg | AU90: Rappahannock
L91: Liberty | N91: Stephenson | O91: Wayne | P91: Van Buren | Q91: Shawnee | R91: Muhlenberg | X91: Wright | Z91: Ray | AB91: Seward | AH91: Tyrrell | AJ91: Wyandot | AQ91: Warren | AR91: Grimes | AU91: Richmond
L92: Lincoln | N92: Tazewell | O92: Wells | P92: Wapello | Q92: Sheridan | R92: Nelson | X92: Yellow Medicine | Z92: Reynolds | AB92: Sheridan | AH92: Union | AQ92: Washington | AR92: Guadalupe | AU92: Roanoke, Roanoke City, Salem City
L93: Long | N93: Union | O93: White | P93: Warren | Q93: Sherman | R93: Nicholas | Z93: Ripley | AB93: Sherman | AH93: Vance | AQ93: Wayne | AR93: Hale | AU93: Rockbridge, Buena Vista City, Lexington City
L94: Lowndes | N94: Vermilion | O94: Whitley | P94: Washington | Q94: Smith | R94: Ohio | Z94: Saline | AB94: South Sioux | AH94: Wake | AQ94: Weakley | AR94: Hall | AU94: Rockingham, Harrisonburg City
L95: Lumpkin | N95: Wabash | P95: Wayne | Q95: Stafford | R95: Oldham | Z95: Schuyler | AB95: Southeast Nye | AH95: Warren | AQ95: White | AR95: Hamilton | AU95: Russell
L96: Macon | N96: Warren | P96: Webster | Q96: Stanton | R96: Owen | Z96: Scotland | AB96: Stanton | AH96: Washington | AQ96: Williamson | AR96: Hansford | AU96: Scott
L97: Madison | N97: Washington | P97: West Pottawattamie | Q97: Stevens | R97: Owsley | Z97: Scott | AB97: Storey | AH97: Watauga | AQ97: Wilson | AR97: Hardeman | AU97: Shenandoah
L98: Marion | N98: Wayne | P98: Winnebago | Q98: Sumner | R98: Pendleton | Z98: Shannon | AB98: Thayer | AH98: Wayne | AR98: Hardin | AU98: Smyth
L99: McDuffie | N99: White | P99: Winneshiek | Q99: Thomas | R99: Perry | Z99: Shelby | AB99: Thomas | AH99: Wilkes | AR99: Harris | AU99: Southampton, Franklin City
L100: McIntosh | N100: Whiteside | P100: Woodbury | Q100: Trego | R100: Pike | Z100: St. Charles | AB100: Thurston | AH100: Wilson | AR100: Harrison | AU100: Spotsylvania, Fredericksburg City
L101: Meriwether | N101: Will | P101: Worth | Q101: Wabaunsee | R101: Powell | Z101: St. Clair | AB101: Valley | AH101: Yadkin | AR101: Hartley | AU101: Stafford
L102: Miller | N102: Williamson | P102: Wright | Q102: Wallace | R102: Pulaski | Z102: St. Francois | AB102: Washington | AH102: Yancey | AR102: Haskell | AU102: Staunton
L103: Mitchell | N103: Winnebago | Q103: Washington | R103: Robertson | Z103: St. Louis | AB103: Washoe | AR103: Hays | AU103: Suffolk
L104: Monroe | N104: Woodford | Q104: Wichita | R104: Rockcastle | Z104: Ste. Genevieve | AB104: Wayne | AR104: Hemphill | AU104: Surry
L105: Montgomery | Q105: Wilson | R105: Rowan | Z105: Stoddard | AB105: Webster | AR105: Henderson | AU105: Sussex
L106: Morgan | Q106: Woodson | R106: Russell | Z106: Stone | AB106: Wheeler | AR106: Hidalgo | AU106: Tazewell
L107: Murray | Q107: Wyandotte | R107: Scott | Z107: Sullivan | AB107: White Pine | AR107: Hill | AU107: Virginia Beach
L108: Muscogee | R108: Shelby | Z108: Taney | AB108: York | AR108: Hockley | AU108: Warren
L109: Newton | R109: Simpson | Z109: Texas | AR109: Hood | AU109: Washington, Bristol City
L110: Oconee | R110: Spencer | Z110: Vernon | AR110: Hopkins | AU110: Waynesboro
L111: Oglethorpe | R111: Taylor | Z111: Warren | AR111: Houston | AU111: Westmoreland
L112: Paulding | R112: Todd | Z112: Washington | AR112: Howard | AU112: Wise
L113: Peach | R113: Trigg | Z113: Wayne | AR113: Hudspeth | AU113: Wythe
L114: Pickens | R114: Trimble | Z114: Webster | AR114: Hunt | AU114: York, Poquoson City
L115: Pierce | R115: Union | Z115: Worth | AR115: Hutchinson
L116: Pike | R116: Warren | Z116: Wright | AR116: Irion
L117: Polk | R117: Washington | AR117: Jack
L118: Pulaski | R118: Wayne | AR118: Jackson
L119: Putnam | R119: Webster | AR119: Jeff Davis
L120: Quitman | R120: Whitley | AR120: Jefferson
L121: Rabun | R121: Wolfe | AR121: Jim Hogg
L122: Randolph | R122: Woodford | AR122: Jim Wells
L123: Richmond | AR123: Johnson
L124: Rockdale | AR124: Jones
L125: Schley | AR125: Karnes
L126: Screven | AR126: Kaufman
L127: Seminole | AR127: Kendall
L128: Spalding | AR128: Kenedy
L129: Stephens | AR129: Kent
L130: Stewart | AR130: Kerr
L131: Sumter | AR131: Kimble
L132: Talbot | AR132: King
L133: Taliaferro | AR133: Kinney
L134: Tattnall | AR134: Kleberg
L135: Taylor | AR135: Knox
L136: Telfair | AR136: La Salle
L137: Terrell | AR137: Lamar
L138: Thomas | AR138: Lamb
L139: Tift | AR139: Lampasas
L140: Toombs | AR140: Lavaca
L141: Towns | AR141: Lee
L142: Treutlen | AR142: Leon
L143: Troup | AR143: Liberty
L144: Turner | AR144: Limestone
L145: Twiggs | AR145: Lipscomb
L146: Union | AR146: Live Oak
L147: Upson | AR147: Llano
L148: Walker | AR148: Lubbock
L149: Walton | AR149: Lynn
L150: Ware | AR150: Madison
L151: Warren | AR151: Martin
L152: Washington | AR152: Mason
L153: Wayne | AR153: Matagorda
L154: Webster | AR154: Maverick
L155: Wheeler | AR155: McCulloch
L156: White | AR156: McLennan
L157: Whitfield | AR157: McMullen
L158: Wilcox | AR158: Medina
L159: Wilkes | AR159: Menard
L160: Wilkinson | AR160: Midland
L161: Worth | AR161: Milam
AR162: Mills
AR163: Mitchell
AR164: Montague
AR165: Moore
AR166: Morris
AR167: Motley
AR168: Nacogdoches
AR169: Navarro
AR170: Nolan
AR171: Nueces
AR172: Ochiltree
AR173: Oldham
AR174: Orange
AR175: Palo Pinto
AR176: Panola
AR177: Parker
AR178: Parmer
AR179: Pecos
AR180: Polk
AR181: Potter
AR182: Rains
AR183: Randall
AR184: Reagan
AR185: Real
AR186: Red River
AR187: Reeves
AR188: Refugio
AR189: Roberts
AR190: Robertson
AR191: Rockwall
AR192: Runnels
AR193: Rusk
AR194: San Jacinto
AR195: San Patricio
AR196: San Saba
AR197: Schleicher
AR198: Scurry
AR199: Shackelford
AR200: Sherman
... 38 more rows

Sheet Model (hidden)
B2: 2016 | C2: Alabama | D2: Cherokee | E2: Corn | F2: Non-Irrigated | G2: ALL | H2: Grain | I2: No Organic Practice Specified | J2: 3.81 | K2: 121.2 | L2: 461.77 | M2: 3.23 | N2: =IFERROR(IF(O2<>"N/A",O2,(IF(OR(K1=K2,K3=K2),P2,(IF(AND(K2>P2*$Q$5,K2<P2*$Q$4),P2,"N/A"))))),"N/A") -> N/A | O2: =IFERROR(INDEX(yields!$B$5:$G$5259,MATCH(1,(yields!$B$5:$B$5259=C2)*(yields!$C$5:$C$5259=D2)*(yields!$D$5:$D$5259=E2)*(yields!$E$5:$E$5259=H2)*(yields!$F$5:$F$5259=F2),0),6),"N/A") -> N/A | P2: =IFERROR(INDEX(yields!$B$5:$G$5259,MATCH(1,(yields!$B$5:$B$5259=C2)*(yields!$C$5:$C$5259=D2)*(yields!$D$5:$D$5259=E2)*(yields!$E$5:$E$5259=H2)*(yields!$F$5:$F$5259=G2),0),6),"N/A") -> 92.3 | Q2: =IFERROR(MAX(MIN((0.86-((M2*N2)/(MAX(J2,J2)*K2)))/(0.86-$Q$8),1),0),"N/A") -> N/A | R2: =IFERROR(MAX(MIN((0.86-((M2*N2)/(MAX(J2,M2)*K2)))/(0.86-$R$8),1),0),"N/A") -> N/A | S2: =IFERROR(MAX(MIN((0.86-((J2*N2)/(MAX(J2,J2)*K2)))/(0.86-$S$8),1),0),"N/A") -> N/A | T2: =IFERROR((0.86-$T$8)*(K2*1.05)*MAX(J2,J2)*Q2,"N/A") -> N/A | U2: =IFERROR((0.86-$U$8)*(K2*1.05)*MAX(J2,M2)*R2,"N/A") -> N/A | V2: =IFERROR((0.86-$V$8)*(K2*1.05)*MAX(J2,J2)*S2,"N/A") -> N/A
C4: Change No Type Specified to Grain | P4: 1.3 | Q4: 1.2
C5: Changed commodity to Grain | P5: 0.8 | Q5: 0.7
B7: Year | C7: State | D7: County | E7: Commodity | F7: Practice | G7: Comb-ined yields | H7: Type | I7: Organic Practice | J7: Projected Price | K7: Expected County Yield | L7: Expected Revenue | M7: Harvest Price | N7: Adjusted NASS YIELD | O7: NASS Irr & Dry | P7: Raw NASS ALL Pract | Q7: SCO-RP-HPE Factor | R7: SCO-RP Factor | S7: SCO-YP Factor | T7: SCO-RP-HPE | U7: SCO-RP | V7: SCO-YP
Q8: 0.75 | R8: 0.75 | S8: 0.75 | T8: 0.75 | U8: 0.75 | V8: 0.75
A10: 1 | B10: 2016 | C10: Alabama | D10: Autauga | E10: Corn | F10: Non-Irrigated | G10: ALL | H10: Grain | I10: No Organic Practice Specified | J10: 3.81 | K10: 90.6 | L10: 345.19 | M10: 3.23 | N10: N/A | O10: N/A | P10: N/A | Q10: N/A | R10: N/A | S10: N/A | T10: N/A | U10: N/A | V10: N/A
A11: 2 | B11: 2016 | C11: Alabama | D11: Autauga | E11: Corn | F11: Irrigated | G11: ALL | H11: Grain | I11: No Organic Practice Specified | J11: 3.81 | K11: 167.7 | L11: 638.94 | M11: 3.23 | N11: N/A | O11: N/A | P11: N/A | Q11: N/A | R11: N/A | S11: N/A | T11: N/A | U11: N/A | V11: N/A
A12: 3 | B12: 2016 | C12: Alabama | D12: Baldwin | E12: Corn | F12: Non-Irrigated | G12: ALL | H12: Grain | I12: No Organic Practice Specified | J12: 3.81 | K12: 120.8 | L12: 460.25 | M12: 3.23 | N12: 152.9 | O12: N/A | P12: 152.9 | Q12: 0 | R12: 0 | S12: 0 | T12: 0 | U12: 0 | V12: 0
A13: 4 | B13: 2016 | C13: Alabama | D13: Baldwin | E13: Corn | F13: Irrigated | G13: ALL | H13: Grain | I13: No Organic Practice Specified | J13: 3.81 | K13: 120.8 | L13: 460.25 | M13: 3.23 | N13: 152.9 | O13: N/A | P13: 152.9 | Q13: 0 | R13: 0 | S13: 0 | T13: 0 | U13: 0 | V13: 0
A14: 5 | B14: 2016 | C14: Alabama | D14: Barbour | E14: Corn | F14: Non-Irrigated | G14: ALL | H14: Grain | I14: No Organic Practice Specified | J14: 3.81 | K14: 62.3 | L14: 237.36 | M14: 3.23 | N14: N/A | O14: N/A | P14: 188.9 | Q14: N/A | R14: N/A | S14: N/A | T14: N/A | U14: N/A | V14: N/A
A15: 6 | B15: 2016 | C15: Alabama | D15: Barbour | E15: Corn | F15: Irrigated | G15: ALL | H15: Grain | I15: No Organic Practice Specified | J15: 3.81 | K15: 186.3 | L15: 709.8 | M15: 3.23 | N15: 188.9 | O15: N/A | P15: 188.9 | Q15: 0.003631993666 | R15: 0.003631993666 | S15: 0 | T15: 0.297759 | U15: 0.297759 | V15: 0
A16: 7 | B16: 2016 | C16: Alabama | D16: Bibb | E16: Corn | F16: Non-Irrigated | G16: ALL | H16: Grain | I16: No Organic Practice Specified | J16: 3.81 | K16: 84 | L16: 320.04 | M16: 3.23 | N16: N/A | O16: N/A | P16: N/A | Q16: N/A | R16: N/A | S16: N/A | T16: N/A | U16: N/A | V16: N/A
A17: 8 | B17: 2016 | C17: Alabama | D17: Bibb | E17: Corn | F17: Irrigated | G17: ALL | H17: Grain | I17: No Organic Practice Specified | J17: 3.81 | K17: 175 | L17: 666.75 | M17: 3.23 | N17: N/A | O17: N/A | P17: N/A | Q17: N/A | R17: N/A | S17: N/A | T17: N/A | U17: N/A | V17: N/A
A18: 9 | B18: 2016 | C18: Alabama | D18: Blount | E18: Corn | F18: Non-Irrigated | G18: ALL | H18: Grain | I18: No Organic Practice Specified | J18: 3.81 | K18: 117 | L18: 445.77 | M18: 3.23 | N18: N/A | O18: N/A | P18: N/A | Q18: N/A | R18: N/A | S18: N/A | T18: N/A | U18: N/A | V18: N/A
A19: 10 | B19: 2016 | C19: Alabama | D19: Blount | E19: Corn | F19: Irrigated | G19: ALL | H19: Grain | I19: No Organic Practice Specified | J19: 3.81 | K19: 189.9 | L19: 723.52 | M19: 3.23 | N19: N/A | O19: N/A | P19: N/A | Q19: N/A | R19: N/A | S19: N/A | T19: N/A | U19: N/A | V19: N/A
A20: 11 | B20: 2016 | C20: Alabama | D20: Bullock | E20: Corn | F20: Non-Irrigated | G20: ALL | H20: Grain | I20: No Organic Practice Specified | J20: 3.81 | K20: 72.8 | L20: 277.37 | M20: 3.23 | N20: N/A | O20: N/A | P20: N/A | Q20: N/A | R20: N/A | S20: N/A | T20: N/A | U20: N/A | V20: N/A
A21: 12 | B21: 2016 | C21: Alabama | D21: Bullock | E21: Corn | F21: Irrigated | G21: ALL | H21: Grain | I21: No Organic Practice Specified | J21: 3.81 | K21: 170.1 | L21: 648.08 | M21: 3.23 | N21: N/A | O21: N/A | P21: N/A | Q21: N/A | R21: N/A | S21: N/A | T21: N/A | U21: N/A | V21: N/A
A22: 13 | B22: 2016 | C22: Alabama | D22: Butler | E22: Corn | F22: Non-Irrigated | G22: ALL | H22: Grain | I22: No Organic Practice Specified | J22: 3.81 | K22: 73.4 | L22: 279.65 | M22: 3.23 | N22: N/A | O22: N/A | P22: N/A | Q22: N/A | R22: N/A | S22: N/A | T22: N/A | U22: N/A | V22: N/A
A23: 14 | B23: 2016 | C23: Alabama | D23: Butler | E23: Corn | F23: Irrigated | G23: ALL | H23: Grain | I23: No Organic Practice Specified | J23: 3.81 | K23: 73.4 | L23: 279.65 | M23: 3.23 | N23: N/A | O23: N/A | P23: N/A | Q23: N/A | R23: N/A | S23: N/A | T23: N/A | U23: N/A | V23: N/A
A24: 15 | B24: 2016 | C24: Alabama | D24: Calhoun | E24: Corn | F24: Non-Irrigated | G24: ALL | H24: Grain | I24: No Organic Practice Specified | J24: 3.81 | K24: 116.8 | L24: 445.01 | M24: 3.23 | N24: N/A | O24: N/A | P24: N/A | Q24: N/A | R24: N/A | S24: N/A | T24: N/A | U24: N/A | V24: N/A
A25: 16 | B25: 2016 | C25: Alabama | D25: Calhoun | E25: Corn | F25: Irrigated | G25: ALL | H25: Grain | I25: No Organic Practice Specified | J25: 3.81 | K25: 116.8 | L25: 445.01 | M25: 3.23 | N25: N/A | O25: N/A | P25: N/A | Q25: N/A | R25: N/A | S25: N/A | T25: N/A | U25: N/A | V25: N/A
A26: 17 | B26: 2016 | C26: Alabama | D26: Chambers | E26: Corn | F26: Non-Irrigated | G26: ALL | H26: Grain | I26: No Organic Practice Specified | J26: 3.81 | K26: 96.6 | L26: 368.05 | M26: 3.23 | N26: N/A | O26: N/A | P26: N/A | Q26: N/A | R26: N/A | S26: N/A | T26: N/A | U26: N/A | V26: N/A
A27: 18 | B27: 2016 | C27: Alabama | D27: Chambers | E27: Corn | F27: Irrigated | G27: ALL | H27: Grain | I27: No Organic Practice Specified | J27: 3.81 | K27: 173 | L27: 659.13 | M27: 3.23 | N27: N/A | O27: N/A | P27: N/A | Q27: N/A | R27: N/A | S27: N/A | T27: N/A | U27: N/A | V27: N/A
A28: 19 | B28: 2016 | C28: Alabama | D28: Cherokee | E28: Corn | F28: Non-Irrigated | G28: ALL | H28: Grain | I28: No Organic Practice Specified | J28: 3.81 | K28: 121.2 | L28: 461.77 | M28: 3.23 | N28: 92.3 | O28: N/A | P28: 92.3 | Q28: 1 | R28: 1 | S28: 0.8949894989 | T28: 53.334666 | U28: 53.334666 | V28: 47.733966
A29: 20 | B29: 2016 | C29: Alabama | D29: Cherokee | E29: Corn | F29: Irrigated | G29: ALL | H29: Grain | I29: No Organic Practice Specified | J29: 3.81 | K29: 121.2 | L29: 461.77 | M29: 3.23 | N29: 92.3 | O29: N/A | P29: 92.3 | Q29: 1 | R29: 1 | S29: 0.8949894989 | T29: 53.334666 | U29: 53.334666 | V29: 47.733966
A30: 21 | B30: 2016 | C30: Alabama | D30: Chilton | E30: Corn | F30: Non-Irrigated | G30: ALL | H30: Grain | I30: No Organic Practice Specified | J30: 3.81 | K30: 86.1 | L30: 328.04 | M30: 3.23 | N30: N/A | O30: N/A | P30: N/A | Q30: N/A | R30: N/A | S30: N/A | T30: N/A | U30: N/A | V30: N/A
A31: 22 | B31: 2016 | C31: Alabama | D31: Chilton | E31: Corn | F31: Irrigated | G31: ALL | H31: Grain | I31: No Organic Practice Specified | J31: 3.81 | K31: 172.9 | L31: 658.75 | M31: 3.23 | N31: N/A | O31: N/A | P31: N/A | Q31: N/A | R31: N/A | S31: N/A | T31: N/A | U31: N/A | V31: N/A
A32: 23 | B32: 2016 | C32: Alabama | D32: Choctaw | E32: Corn | F32: Non-Irrigated | G32: ALL | H32: Grain | I32: No Organic Practice Specified | J32: 3.81 | K32: 127.8 | L32: 486.92 | M32: 3.23 | N32: N/A | O32: N/A | P32: N/A | Q32: N/A | R32: N/A | S32: N/A | T32: N/A | U32: N/A | V32: N/A
A33: 24 | B33: 2016 | C33: Alabama | D33: Choctaw | E33: Corn | F33: Irrigated | G33: ALL | H33: Grain | I33: No Organic Practice Specified | J33: 3.81 | K33: 170 | L33: 647.7 | M33: 3.23 | N33: N/A | O33: N/A | P33: N/A | Q33: N/A | R33: N/A | S33: N/A | T33: N/A | U33: N/A | V33: N/A
A34: 25 | B34: 2016 | C34: Alabama | D34: Clarke | E34: Corn | F34: Non-Irrigated | G34: ALL | H34: Grain | I34: No Organic Practice Specified | J34: 3.81 | K34: 113.8 | L34: 433.58 | M34: 3.23 | N34: N/A | O34: N/A | P34: N/A | Q34: N/A | R34: N/A | S34: N/A | T34: N/A | U34: N/A | V34: N/A
A35: 26 | B35: 2016 | C35: Alabama | D35: Clarke | E35: Corn | F35: Irrigated | G35: ALL | H35: Grain | I35: No Organic Practice Specified | J35: 3.81 | K35: 170.9 | L35: 651.13 | M35: 3.23 | N35: N/A | O35: N/A | P35: N/A | Q35: N/A | R35: N/A | S35: N/A | T35: N/A | U35: N/A | V35: N/A
A36: 27 | B36: 2016 | C36: Alabama | D36: Clay | E36: Corn | F36: Non-Irrigated | G36: ALL | H36: Grain | I36: No Organic Practice Specified | J36: 3.81 | K36: 107.1 | L36: 408.05 | M36: 3.23 | N36: N/A | O36: N/A | P36: N/A | Q36: N/A | R36: N/A | S36: N/A | T36: N/A | U36: N/A | V36: N/A
A37: 28 | B37: 2016 | C37: Alabama | D37: Clay | E37: Corn | F37: Irrigated | G37: ALL | H37: Grain | I37: No Organic Practice Specified | J37: 3.81 | K37: 173 | L37: 659.13 | M37: 3.23 | N37: N/A | O37: N/A | P37: N/A | Q37: N/A | R37: N/A | S37: N/A | T37: N/A | U37: N/A | V37: N/A
A38: 29 | B38: 2016 | C38: Alabama | D38: Cleburne | E38: Corn | F38: Non-Irrigated | G38: ALL | H38: Grain | I38: No Organic Practice Specified | J38: 3.81 | K38: 104.5 | L38: 398.15 | M38: 3.23 | N38: 125 | O38: N/A | P38: 125 | Q38: 0 | R38: 0 | S38: 0 | T38: 0 | U38: 0 | V38: 0
A39: 30 | B39: 2016 | C39: Alabama | D39: Cleburne | E39: Corn | F39: Irrigated | G39: ALL | H39: Grain | I39: No Organic Practice Specified | J39: 3.81 | K39: 104.5 | L39: 398.15 | M39: 3.23 | N39: 125 | O39: N/A | P39: 125 | Q39: 0 | R39: 0 | S39: 0 | T39: 0 | U39: 0 | V39: 0
A40: 31 | B40: 2016 | C40: Alabama | D40: Coffee | E40: Corn | F40: Non-Irrigated | G40: ALL | H40: Grain | I40: No Organic Practice Specified | J40: 3.81 | K40: 69.5 | L40: 264.8 | M40: 3.23 | N40: N/A | O40: N/A | P40: 104.5 | Q40: N/A | R40: N/A | S40: N/A | T40: N/A | U40: N/A | V40: N/A
A41: 32 | B41: 2016 | C41: Alabama | D41: Coffee | E41: Corn | F41: Irrigated | G41: ALL | H41: Grain | I41: No Organic Practice Specified | J41: 3.81 | K41: 170.5 | L41: 649.61 | M41: 3.23 | N41: N/A | O41: N/A | P41: 104.5 | Q41: N/A | R41: N/A | S41: N/A | T41: N/A | U41: N/A | V41: N/A
A42: 33 | B42: 2016 | C42: Alabama | D42: Colbert | E42: Corn | F42: Non-Irrigated | G42: ALL | H42: Grain | I42: No Organic Practice Specified | J42: 3.81 | K42: 130.3 | L42: 496.44 | M42: 3.23 | N42: 126.2 | O42: N/A | P42: 126.2 | Q42: 0.3536976597 | R42: 0.3536976597 | S42: 0 | T42: 20.280729 | U42: 20.280729 | V42: 0
A43: 34 | B43: 2016 | C43: Alabama | D43: Colbert | E43: Corn | F43: Irrigated | G43: ALL | H43: Grain | I43: No Organic Practice Specified | J43: 3.81 | K43: 179.1 | L43: 682.37 | M43: 3.23 | N43: N/A | O43: N/A | P43: 126.2 | Q43: N/A | R43: N/A | S43: N/A | T43: N/A | U43: N/A | V43: N/A
A44: 35 | B44: 2016 | C44: Alabama | D44: Conecuh | E44: Corn | F44: Non-Irrigated | G44: ALL | H44: Grain | I44: No Organic Practice Specified | J44: 3.81 | K44: 78.6 | L44: 299.47 | M44: 3.23 | N44: 116.7 | O44: N/A | P44: 116.7 | Q44: 0 | R44: 0 | S44: 0 | T44: 0 | U44: 0 | V44: 0
A45: 36 | B45: 2016 | C45: Alabama | D45: Conecuh | E45: Corn | F45: Irrigated | G45: ALL | H45: Grain | I45: No Organic Practice Specified | J45: 3.81 | K45: 78.6 | L45: 299.47 | M45: 3.23 | N45: 116.7 | O45: N/A | P45: 116.7 | Q45: 0 | R45: 0 | S45: 0 | T45: 0 | U45: 0 | V45: 0
A46: 37 | B46: 2016 | C46: Alabama | D46: Covington | E46: Corn | F46: Non-Irrigated | G46: ALL | H46: Grain | I46: No Organic Practice Specified | J46: 3.81 | K46: 75.7 | L46: 288.42 | M46: 3.23 | N46: 108.1 | O46: N/A | P46: 108.1 | Q46: 0 | R46: 0 | S46: 0 | T46: 0 | U46: 0 | V46: 0
A47: 38 | B47: 2016 | C47: Alabama | D47: Covington | E47: Corn | F47: Irrigated | G47: ALL | H47: Grain | I47: No Organic Practice Specified | J47: 3.81 | K47: 167.4 | L47: 637.79 | M47: 3.23 | N47: N/A | O47: N/A | P47: 108.1 | Q47: N/A | R47: N/A | S47: N/A | T47: N/A | U47: N/A | V47: N/A
A48: 39 | B48: 2016 | C48: Alabama | D48: Crenshaw | E48: Corn | F48: Non-Irrigated | G48: ALL | H48: Grain | I48: No Organic Practice Specified | J48: 3.81 | K48: 73.1 | L48: 278.51 | M48: 3.23 | N48: N/A | O48: N/A | P48: N/A | Q48: N/A | R48: N/A | S48: N/A | T48: N/A | U48: N/A | V48: N/A
A49: 40 | B49: 2016 | C49: Alabama | D49: Crenshaw | E49: Corn | F49: Irrigated | G49: ALL | H49: Grain | I49: No Organic Practice Specified | J49: 3.81 | K49: 166.4 | L49: 633.98 | M49: 3.23 | N49: N/A | O49: N/A | P49: N/A | Q49: N/A | R49: N/A | S49: N/A | T49: N/A | U49: N/A | V49: N/A
A50: 41 | B50: 2016 | C50: Alabama | D50: Cullman | E50: Corn | F50: Non-Irrigated | G50: ALL | H50: Grain | I50: No Organic Practice Specified | J50: 3.81 | K50: 129.4 | L50: 493.01 | M50: 3.23 | N50: 117.2 | O50: N/A | P50: 117.2 | Q50: 0.8378157803 | R50: 0.8378157803 | S50: 0 | T50: 47.707842 | U50: 47.707842 | V50: 0
A51: 42 | B51: 2016 | C51: Alabama | D51: Cullman | E51: Corn | F51: Irrigated | G51: ALL | H51: Grain | I51: No Organic Practice Specified | J51: 3.81 | K51: 179.7 | L51: 684.66 | M51: 3.23 | N51: N/A | O51: N/A | P51: 117.2 | Q51: N/A | R51: N/A | S51: N/A | T51: N/A | U51: N/A | V51: N/A
A52: 43 | B52: 2016 | C52: Alabama | D52: Dale | E52: Corn | F52: Non-Irrigated | G52: ALL | H52: Grain | I52: No Organic Practice Specified | J52: 3.81 | K52: 66.4 | L52: 252.98 | M52: 3.23 | N52: N/A | O52: N/A | P52: 145 | Q52: N/A | R52: N/A | S52: N/A | T52: N/A | U52: N/A | V52: N/A
A53: 44 | B53: 2016 | C53: Alabama | D53: Dale | E53: Corn | F53: Irrigated | G53: ALL | H53: Grain | I53: No Organic Practice Specified | J53: 3.81 | K53: 191.2 | L53: 728.47 | M53: 3.23 | N53: N/A | O53: N/A | P53: 145 | Q53: N/A | R53: N/A | S53: N/A | T53: N/A | U53: N/A | V53: N/A
A54: 45 | B54: 2016 | C54: Alabama | D54: Dallas | E54: Corn | F54: Non-Irrigated | G54: ALL | H54: Grain | I54: No Organic Practice Specified | J54: 3.81 | K54: 76.8 | L54: 292.61 | M54: 3.23 | N54: N/A | O54: N/A | P54: 118.8 | Q54: N/A | R54: N/A | S54: N/A | T54: N/A | U54: N/A | V54: N/A
A55: 46 | B55: 2016 | C55: Alabama | D55: Dallas | E55: Corn | F55: Irrigated | G55: ALL | H55: Grain | I55: No Organic Practice Specified | J55: 3.81 | K55: 168.8 | L55: 643.13 | M55: 3.23 | N55: N/A | O55: N/A | P55: 118.8 | Q55: N/A | R55: N/A | S55: N/A | T55: N/A | U55: N/A | V55: N/A
A56: 47 | B56: 2016 | C56: Alabama | D56: De Kalb | E56: Corn | F56: Non-Irrigated | G56: ALL | H56: Grain | I56: No Organic Practice Specified | J56: 3.81 | K56: 125 | L56: 476.25 | M56: 3.23 | N56: N/A | O56: N/A | P56: 96.8 | Q56: N/A | R56: N/A | S56: N/A | T56: N/A | U56: N/A | V56: N/A
A57: 48 | B57: 2016 | C57: Alabama | D57: De Kalb | E57: Corn | F57: Irrigated | G57: ALL | H57: Grain | I57: No Organic Practice Specified | J57: 3.81 | K57: 206 | L57: 784.86 | M57: 3.23 | N57: N/A | O57: N/A | P57: 96.8 | Q57: N/A | R57: N/A | S57: N/A | T57: N/A | U57: N/A | V57: N/A
A58: 49 | B58: 2016 | C58: Alabama | D58: Elmore | E58: Corn | F58: Non-Irrigated | G58: ALL | H58: Grain | I58: No Organic Practice Specified | J58: 3.81 | K58: 85.9 | L58: 327.28 | M58: 3.23 | N58: N/A | O58: N/A | P58: 151.8 | Q58: N/A | R58: N/A | S58: N/A | T58: N/A | U58: N/A | V58: N/A
A59: 50 | B59: 2016 | C59: Alabama | D59: Elmore | E59: Corn | F59: Irrigated | G59: ALL | H59: Grain | I59: No Organic Practice Specified | J59: 3.81 | K59: 167 | L59: 636.27 | M59: 3.23 | N59: 151.8 | O59: N/A | P59: 151.8 | Q59: 0.8126652922 | R59: 0.8126652922 | S59: 0 | T59: 59.72211 | U59: 59.72211 | V59: 0
A60: 51 | B60: 2016 | C60: Alabama | D60: Escambia | E60: Corn | F60: Non-Irrigated | G60: ALL | H60: Grain | I60: No Organic Practice Specified | J60: 3.81 | K60: 107.4 | L60: 409.19 | M60: 3.23 | N60: 143.5 | O60: N/A | P60: 143.5 | Q60: 0 | R60: 0 | S60: 0 | T60: 0 | U60: 0 | V60: 0
A61: 52 | B61: 2016 | C61: Alabama | D61: Escambia | E61: Corn | F61: Irrigated | G61: ALL | H61: Grain | I61: No Organic Practice Specified | J61: 3.81 | K61: 107.4 | L61: 409.19 | M61: 3.23 | N61: 143.5 | O61: N/A | P61: 143.5 | Q61: 0 | R61: 0 | S61: 0 | T61: 0 | U61: 0 | V61: 0
A62: 53 | B62: 2016 | C62: Alabama | D62: Etowah | E62: Corn | F62: Non-Irrigated | G62: ALL | H62: Grain | I62: No Organic Practice Specified | J62: 3.81 | K62: 123.3 | L62: 469.77 | M62: 3.23 | N62: N/A | O62: N/A | P62: 92.2 | Q62: N/A | R62: N/A | S62: N/A | T62: N/A | U62: N/A | V62: N/A
A63: 54 | B63: 2016 | C63: Alabama | D63: Etowah | E63: Corn | F63: Irrigated | G63: ALL | H63: Grain | I63: No Organic Practice Specified | J63: 3.81 | K63: 201.9 | L63: 769.24 | M63: 3.23 | N63: N/A | O63: N/A | P63: 92.2 | Q63: N/A | R63: N/A | S63: N/A | T63: N/A | U63: N/A | V63: N/A
A64: 55 | B64: 2016 | C64: Alabama | D64: Fayette | E64: Corn | F64: Non-Irrigated | G64: ALL | H64: Grain | I64: No Organic Practice Specified | J64: 3.81 | K64: 101.7 | L64: 387.48 | M64: 3.23 | N64: 85 | O64: N/A | P64: 85 | Q64: 1 | R64: 1 | S64: 0.2200768749 | T64: 44.7535935 | U64: 44.7535935 | V64: 9.849231
A65: 56 | B65: 2016 | C65: Alabama | D65: Fayette | E65: Corn | F65: Irrigated | G65: ALL | H65: Grain | I65: No Organic Practice Specified | J65: 3.81 | K65: 170.9 | L65: 651.13 | M65: 3.23 | N65: N/A | O65: N/A | P65: 85 | Q65: N/A | R65: N/A | S65: N/A | T65: N/A | U65: N/A | V65: N/A
A66: 57 | B66: 2016 | C66: Alabama | D66: Franklin | E66: Corn | F66: Non-Irrigated | G66: ALL | H66: Grain | I66: No Organic Practice Specified | J66: 3.81 | K66: 129.2 | L66: 492.25 | M66: 3.23 | N66: N/A | O66: N/A | P66: 85.7 | Q66: N/A | R66: N/A | S66: N/A | T66: N/A | U66: N/A | V66: N/A
A67: 58 | B67: 2016 | C67: Alabama | D67: Franklin | E67: Corn | F67: Irrigated | G67: ALL | H67: Grain | I67: No Organic Practice Specified | J67: 3.81 | K67: 179.1 | L67: 682.37 | M67: 3.23 | N67: N/A | O67: N/A | P67: 85.7 | Q67: N/A | R67: N/A | S67: N/A | T67: N/A | U67: N/A | V67: N/A
A68: 59 | B68: 2016 | C68: Alabama | D68: Geneva | E68: Corn | F68: Non-Irrigated | G68: ALL | H68: Grain | I68: No Organic Practice Specified | J68: 3.81 | K68: 68.8 | L68: 262.13 | M68: 3.23 | N68: N/A | O68: N/A | P68: 129.4 | Q68: N/A | R68: N/A | S68: N/A | T68: N/A | U68: N/A | V68: N/A
A69: 60 | B69: 2016 | C69: Alabama | D69: Geneva | E69: Corn | F69: Irrigated | G69: ALL | H69: Grain | I69: No Organic Practice Specified | J69: 3.81 | K69: 181.4 | L69: 691.13 | M69: 3.23 | N69: N/A | O69: N/A | P69: 129.4 | Q69: N/A | R69: N/A | S69: N/A | T69: N/A | U69: N/A | V69: N/A
A70: 61 | B70: 2016 | C70: Alabama | D70: Greene | E70: Corn | F70: Non-Irrigated | G70: ALL | H70: Grain | I70: No Organic Practice Specified | J70: 3.81 | K70: 82.7 | L70: 315.09 | M70: 3.23 | N70: N/A | O70: N/A | P70: N/A | Q70: N/A | R70: N/A | S70: N/A | T70: N/A | U70: N/A | V70: N/A
A71: 62 | B71: 2016 | C71: Alabama | D71: Greene | E71: Corn | F71: Irrigated | G71: ALL | H71: Grain | I71: No Organic Practice Specified | J71: 3.81 | K71: 169.5 | L71: 645.8 | M71: 3.23 | N71: N/A | O71: N/A | P71: N/A | Q71: N/A | R71: N/A | S71: N/A | T71: N/A | U71: N/A | V71: N/A
A72: 63 | B72: 2016 | C72: Alabama | D72: Hale | E72: Corn | F72: Non-Irrigated | G72: ALL | H72: Grain | I72: No Organic Practice Specified | J72: 3.81 | K72: 81 | L72: 308.61 | M72: 3.23 | N72: N/A | O72: N/A | P72: N/A | Q72: N/A | R72: N/A | S72: N/A | T72: N/A | U72: N/A | V72: N/A
A73: 64 | B73: 2016 | C73: Alabama | D73: Hale | E73: Corn | F73: Irrigated | G73: ALL | H73: Grain | I73: No Organic Practice Specified | J73: 3.81 | K73: 168.2 | L73: 640.84 | M73: 3.23 | N73: N/A | O73: N/A | P73: N/A | Q73: N/A | R73: N/A | S73: N/A | T73: N/A | U73: N/A | V73: N/A
A74: 65 | B74: 2016 | C74: Alabama | D74: Henry | E74: Corn | F74: Non-Irrigated | G74: ALL | H74: Grain | I74: No Organic Practice Specified | J74: 3.81 | K74: 65.6 | L74: 249.94 | M74: 3.23 | N74: N/A | O74: N/A | P74: 142.9 | Q74: N/A | R74: N/A | S74: N/A | T74: N/A | U74: N/A | V74: N/A
A75: 66 | B75: 2016 | C75: Alabama | D75: Henry | E75: Corn | F75: Irrigated | G75: ALL | H75: Grain | I75: No Organic Practice Specified | J75: 3.81 | K75: 181 | L75: 689.61 | M75: 3.23 | N75: N/A | O75: N/A | P75: 142.9 | Q75: N/A | R75: N/A | S75: N/A | T75: N/A | U75: N/A | V75: N/A
A76: 67 | B76: 2016 | C76: Alabama | D76: Houston | E76: Corn | F76: Non-Irrigated | G76: ALL | H76: Grain | I76: No Organic Practice Specified | J76: 3.81 | K76: 69 | L76: 262.89 | M76: 3.23 | N76: N/A | O76: N/A | P76: N/A | Q76: N/A | R76: N/A | S76: N/A | T76: N/A | U76: N/A | V76: N/A
A77: 68 | B77: 2016 | C77: Alabama | D77: Houston | E77: Corn | F77: Irrigated | G77: ALL | H77: Grain | I77: No Organic Practice Specified | J77: 3.81 | K77: 196.7 | L77: 749.43 | M77: 3.23 | N77: N/A | O77: N/A | P77: N/A | Q77: N/A | R77: N/A | S77: N/A | T77: N/A | U77: N/A | V77: N/A
A78: 69 | B78: 2016 | C78: Alabama | D78: Jackson | E78: Corn | F78: Non-Irrigated | G78: ALL | H78: Grain | I78: No Organic Practice Specified | J78: 3.81 | K78: 120.1 | L78: 457.58 | M78: 3.23 | N78: N/A | O78: N/A | P78: 80.5 | Q78: N/A | R78: N/A | S78: N/A | T78: N/A | U78: N/A | V78: N/A
A79: 70 | B79: 2016 | C79: Alabama | D79: Jackson | E79: Corn | F79: Irrigated | G79: ALL | H79: Grain | I79: No Organic Practice Specified | J79: 3.81 | K79: 209.8 | L79: 799.34 | M79: 3.23 | N79: N/A | O79: N/A | P79: 80.5 | Q79: N/A | R79: N/A | S79: N/A | T79: N/A | U79: N/A | V79: N/A
A80: 71 | B80: 2016 | C80: Alabama | D80: Lamar | E80: Corn | F80: Non-Irrigated | G80: ALL | H80: Grain | I80: No Organic Practice Specified | J80: 3.81 | K80: 101.8 | L80: 387.86 | M80: 3.23 | N80: N/A | O80: N/A | P80: 78.6 | Q80: N/A | R80: N/A | S80: N/A | T80: N/A | U80: N/A | V80: N/A
A81: 72 | B81: 2016 | C81: Alabama | D81: Lamar | E81: Corn | F81: Irrigated | G81: ALL | H81: Grain | I81: No Organic Practice Specified | J81: 3.81 | K81: 170.6 | L81: 649.99 | M81: 3.23 | N81: N/A | O81: N/A | P81: 78.6 | Q81: N/A | R81: N/A | S81: N/A | T81: N/A | U81: N/A | V81: N/A
A82: 73 | B82: 2016 | C82: Alabama | D82: Lauderdale | E82: Corn | F82: Non-Irrigated | G82: ALL | H82: Grain | I82: No Organic Practice Specified | J82: 3.81 | K82: 131.5 | L82: 501.02 | M82: 3.23 | N82: N/A | O82: N/A | P82: 106.5 | Q82: N/A | R82: N/A | S82: N/A | T82: N/A | U82: N/A | V82: N/A
A83: 74 | B83: 2016 | C83: Alabama | D83: Lauderdale | E83: Corn | F83: Irrigated | G83: ALL | H83: Grain | I83: No Organic Practice Specified | J83: 3.81 | K83: 187.2 | L83: 713.23 | M83: 3.23 | N83: N/A | O83: N/A | P83: 106.5 | Q83: N/A | R83: N/A | S83: N/A | T83: N/A | U83: N/A | V83: N/A
A84: 75 | B84: 2016 | C84: Alabama | D84: Lawrence | E84: Corn | F84: Non-Irrigated | G84: ALL | H84: Grain | I84: No Organic Practice Specified | J84: 3.81 | K84: 131 | L84: 499.11 | M84: 3.23 | N84: 117.2 | O84: N/A | P84: 117.2 | Q84: 0.9230721594 | R84: 0.9230721594 | S84: 0 | T84: 53.21253 | U84: 53.21253 | V84: 0
A85: 76 | B85: 2016 | C85: Alabama | D85: Lawrence | E85: Corn | F85: Irrigated | G85: ALL | H85: Grain | I85: No Organic Practice Specified | J85: 3.81 | K85: 179.9 | L85: 685.42 | M85: 3.23 | N85: N/A | O85: N/A | P85: 117.2 | Q85: N/A | R85: N/A | S85: N/A | T85: N/A | U85: N/A | V85: N/A
A86: 77 | B86: 2016 | C86: Alabama | D86: Lee | E86: Corn | F86: Non-Irrigated | G86: ALL | H86: Grain | I86: No Organic Practice Specified | J86: 3.81 | K86: 81 | L86: 308.61 | M86: 3.23 | N86: N/A | O86: N/A | P86: N/A | Q86: N/A | R86: N/A | S86: N/A | T86: N/A | U86: N/A | V86: N/A
A87: 78 | B87: 2016 | C87: Alabama | D87: Lee | E87: Corn | F87: Irrigated | G87: ALL | H87: Grain | I87: No Organic Practice Specified | J87: 3.81 | K87: 182.7 | L87: 696.09 | M87: 3.23 | N87: N/A | O87: N/A | P87: N/A | Q87: N/A | R87: N/A | S87: N/A | T87: N/A | U87: N/A | V87: N/A
A88: 79 | B88: 2016 | C88: Alabama | D88: Limestone | E88: Corn | F88: Non-Irrigated | G88: ALL | H88: Grain | I88: No Organic Practice Specified | J88: 3.81 | K88: 126 | L88: 480.06 | M88: 3.23 | N88: 112.9 | O88: N/A | P88: 112.9 | Q88: 0.9124730621 | R88: 0.9124730621 | S88: 0 | T88: 50.59383 | U88: 50.59383 | V88: 0
A89: 80 | B89: 2016 | C89: Alabama | D89: Limestone | E89: Corn | F89: Irrigated | G89: ALL | H89: Grain | I89: No Organic Practice Specified | J89: 3.81 | K89: 187.2 | L89: 713.23 | M89: 3.23 | N89: N/A | O89: N/A | P89: 112.9 | Q89: N/A | R89: N/A | S89: N/A | T89: N/A | U89: N/A | V89: N/A
A90: 81 | B90: 2016 | C90: Alabama | D90: Lowndes | E90: Corn | F90: Non-Irrigated | G90: ALL | H90: Grain | I90: No Organic Practice Specified | J90: 3.81 | K90: 77.8 | L90: 296.42 | M90: 3.23 | N90: N/A | O90: N/A | P90: N/A | Q90: N/A | R90: N/A | S90: N/A | T90: N/A | U90: N/A | V90: N/A
A91: 82 | B91: 2016 | C91: Alabama | D91: Lowndes | E91: Corn | F91: Irrigated | G91: ALL | H91: Grain | I91: No Organic Practice Specified | J91: 3.81 | K91: 167.7 | L91: 638.94 | M91: 3.23 | N91: N/A | O91: N/A | P91: N/A | Q91: N/A | R91: N/A | S91: N/A | T91: N/A | U91: N/A | V91: N/A
A92: 83 | B92: 2016 | C92: Alabama | D92: Macon | E92: Corn | F92: Non-Irrigated | G92: ALL | H92: Grain | I92: No Organic Practice Specified | J92: 3.81 | K92: 75.2 | L92: 286.51 | M92: 3.23 | N92: N/A | O92: N/A | P92: 131.9 | Q92: N/A | R92: N/A | S92: N/A | T92: N/A | U92: N/A | V92: N/A
A93: 84 | B93: 2016 | C93: Alabama | D93: Macon | E93: Corn | F93: Irrigated | G93: ALL | H93: Grain | I93: No Organic Practice Specified | J93: 3.81 | K93: 184.2 | L93: 701.8 | M93: 3.23 | N93: N/A | O93: N/A | P93: 131.9 | Q93: N/A | R93: N/A | S93: N/A | T93: N/A | U93: N/A | V93: N/A
A94: 85 | B94: 2016 | C94: Alabama | D94: Madison | E94: Corn | F94: Non-Irrigated | G94: ALL | H94: Grain | I94: No Organic Practice Specified | J94: 3.81 | K94: 124.8 | L94: 475.49 | M94: 3.23 | N94: 150.7 | O94: N/A | P94: 150.7 | Q94: 0 | R94: 0 | S94: 0 | T94: 0 | U94: 0 | V94: 0
A95: 86 | B95: 2016 | C95: Alabama | D95: Madison | E95: Corn | F95: Irrigated | G95: ALL | H95: Grain | I95: No Organic Practice Specified | J95: 3.81 | K95: 199.4 | L95: 759.71 | M95: 3.23 | N95: N/A | O95: N/A | P95: 150.7 | Q95: N/A | R95: N/A | S95: N/A | T95: N/A | U95: N/A | V95: N/A
A96: 87 | B96: 2016 | C96: Alabama | D96: Marengo | E96: Corn | F96: Non-Irrigated | G96: ALL | H96: Grain | I96: No Organic Practice Specified | J96: 3.81 | K96: 74.7 | L96: 284.61 | M96: 3.23 | N96: N/A | O96: N/A | P96: 137.2 | Q96: N/A | R96: N/A | S96: N/A | T96: N/A | U96: N/A | V96: N/A
A97: 88 | B97: 2016 | C97: Alabama | D97: Marengo | E97: Corn | F97: Irrigated | G97: ALL | H97: Grain | I97: No Organic Practice Specified | J97: 3.81 | K97: 168.7 | L97: 642.75 | M97: 3.23 | N97: N/A | O97: N/A | P97: 137.2 | Q97: N/A | R97: N/A | S97: N/A | T97: N/A | U97: N/A | V97: N/A
A98: 89 | B98: 2016 | C98: Alabama | D98: Marion | E98: Corn | F98: Non-Irrigated | G98: ALL | H98: Grain | I98: No Organic Practice Specified | J98: 3.81 | K98: 105.3 | L98: 401.19 | M98: 3.23 | N98: N/A | O98: N/A | P98: N/A | Q98: N/A | R98: N/A | S98: N/A | T98: N/A | U98: N/A | V98: N/A
A99: 90 | B99: 2016 | C99: Alabama | D99: Marion | E99: Corn | F99: Irrigated | G99: ALL | H99: Grain | I99: No Organic Practice Specified | J99: 3.81 | K99: 169.1 | L99: 644.27 | M99: 3.23 | N99: N/A | O99: N/A | P99: N/A | Q99: N/A | R99: N/A | S99: N/A | T99: N/A | U99: N/A | V99: N/A
A100: 91 | B100: 2016 | C100: Alabama | D100: Marshall | E100: Corn | F100: Non-Irrigated | G100: ALL | H100: Grain | I100: No Organic Practice Specified | J100: 3.81 | K100: 123.4 | L100: 470.15 | M100: 3.23 | N100: N/A | O100: N/A | P100: N/A | Q100: N/A | R100: N/A | S100: N/A | T100: N/A | U100: N/A | V100: N/A
A101: 92 | B101: 2016 | C101: Alabama | D101: Marshall | E101: Corn | F101: Irrigated | G101: ALL | H101: Grain | I101: No Organic Practice Specified | J101: 3.81 | K101: 198.3 | L101: 755.52 | M101: 3.23 | N101: N/A | O101: N/A | P101: N/A | Q101: N/A | R101: N/A | S101: N/A | T101: N/A | U101: N/A | V101: N/A
A102: 93 | B102: 2016 | C102: Alabama | D102: Mobile | E102: Corn | F102: Non-Irrigated | G102: ALL | H102: Grain | I102: No Organic Practice Specified | J102: 3.81 | K102: 121.2 | L102: 461.77 | M102: 3.23 | N102: N/A | O102: N/A | P102: N/A | Q102: N/A | R102: N/A | S102: N/A | T102: N/A | U102: N/A | V102: N/A
A103: 94 | B103: 2016 | C103: Alabama | D103: Mobile | E103: Corn | F103: Irrigated | G103: ALL | H103: Grain | I103: No Organic Practice Specified | J103: 3.81 | K103: 121.2 | L103: 461.77 | M103: 3.23 | N103: N/A | O103: N/A | P103: N/A | Q103: N/A | R103: N/A | S103: N/A | T103: N/A | U103: N/A | V103: N/A
A104: 95 | B104: 2016 | C104: Alabama | D104: Monroe | E104: Corn | F104: Non-Irrigated | G104: ALL | H104: Grain | I104: No Organic Practice Specified | J104: 3.81 | K104: 107 | L104: 407.67 | M104: 3.23 | N104: 122.4 | O104: N/A | P104: 122.4 | Q104: 0 | R104: 0 | S104: 0 | T104: 0 | U104: 0 | V104: 0
A105: 96 | B105: 2016 | C105: Alabama | D105: Monroe | E105: Corn | F105: Irrigated | G105: ALL | H105: Grain | I105: No Organic Practice Specified | J105: 3.81 | K105: 107 | L105: 407.67 | M105: 3.23 | N105: 122.4 | O105: N/A | P105: 122.4 | Q105: 0 | R105: 0 | S105: 0 | T105: 0 | U105: 0 | V105: 0
A106: 97 | B106: 2016 | C106: Alabama | D106: Montgomery | E106: Corn | F106: Non-Irrigated | G106: ALL | H106: Grain | I106: No Organic Practice Specified | J106: 3.81 | K106: 78.3 | L106: 298.32 | M106: 3.23 | N106: N/A | O106: N/A | P106: N/A | Q106: N/A | R106: N/A | S106: N/A | T106: N/A | U106: N/A | V106: N/A
A107: 98 | B107: 2016 | C107: Alabama | D107: Montgomery | E107: Corn | F107: Irrigated | G107: ALL | H107: Grain | I107: No Organic Practice Specified | J107: 3.81 | K107: 167.7 | L107: 638.94 | M107: 3.23 | N107: N/A | O107: N/A | P107: N/A | Q107: N/A | R107: N/A | S107: N/A | T107: N/A | U107: N/A | V107: N/A
A108: 99 | B108: 2016 | C108: Alabama | D108: Morgan | E108: Corn | F108: Non-Irrigated | G108: ALL | H108: Grain | I108: No Organic Practice Specified | J108: 3.81 | K108: 122.2 | L108: 465.58 | M108: 3.23 | N108: 107 | O108: N/A | P108: 107 | Q108: 1 | R108: 1 | S108: 0 | T108: 53.774721 | U108: 53.774721 | V108: 0
A109: 100 | B109: 2016 | C109: Alabama | D109: Morgan | E109: Corn | F109: Irrigated | G109: ALL | H109: Grain | I109: No Organic Practice Specified | J109: 3.81 | K109: 186.8 | L109: 711.71 | M109: 3.23 | N109: N/A | O109: N/A | P109: 107 | Q109: N/A | R109: N/A | S109: N/A | T109: N/A | U109: N/A | V109: N/A
A110: 101 | B110: 2016 | C110: Alabama | D110: Perry | E110: Corn | F110: Non-Irrigated | G110: ALL | H110: Grain | I110: No Organic Practice Specified | J110: 3.81 | K110: 75.9 | L110: 289.18 | M110: 3.23 | N110: N/A | O110: N/A | P110: 123.7 | Q110: N/A | R110: N/A | S110: N/A | T110: N/A | U110: N/A | V110: N/A
A111: 102 | B111: 2016 | C111: Alabama | D111: Perry | E111: Corn | F111: Irrigated | G111: ALL | H111: Grain | I111: No Organic Practice Specified | J111: 3.81 | K111: 167.6 | L111: 638.56 | M111: 3.23 | N111: N/A | O111: N/A | P111: 123.7 | Q111: N/A | R111: N/A | S111: N/A | T111: N/A | U111: N/A | V111: N/A
A112: 103 | B112: 2016 | C112: Alabama | D112: Pickens | E112: Corn | F112: Non-Irrigated | G112: ALL | H112: Grain | I112: No Organic Practice Specified | J112: 3.81 | K112: 130.7 | L112: 497.97 | M112: 3.23 | N112: N/A | O112: N/A | P112: N/A | Q112: N/A | R112: N/A | S112: N/A | T112: N/A | U112: N/A | V112: N/A
A113: 104 | B113: 2016 | C113: Alabama | D113: Pickens | E113: Corn | F113: Irrigated | G113: ALL | H113: Grain | I113: No Organic Practice Specified | J113: 3.81 | K113: 170.9 | L113: 651.13 | M113: 3.23 | N113: N/A | O113: N/A | P113: N/A | Q113: N/A | R113: N/A | S113: N/A | T113: N/A | U113: N/A | V113: N/A
A114: 105 | B114: 2016 | C114: Alabama | D114: Pike | E114: Corn | F114: Non-Irrigated | G114: ALL | H114: Grain | I114: No Organic Practice Specified | J114: 3.81 | K114: 71.5 | L114: 272.42 | M114: 3.23 | N114: N/A | O114: N/A | P114: 123.9 | Q114: N/A | R114: N/A | S114: N/A | T114: N/A | U114: N/A | V114: N/A
A115: 106 | B115: 2016 | C115: Alabama | D115: Pike | E115: Corn | F115: Irrigated | G115: ALL | H115: Grain | I115: No Organic Practice Specified | J115: 3.81 | K115: 167.9 | L115: 639.7 | M115: 3.23 | N115: N/A | O115: N/A | P115: 123.9 | Q115: N/A | R115: N/A | S115: N/A | T115: N/A | U115: N/A | V115: N/A
A116: 107 | B116: 2016 | C116: Alabama | D116: Randolph | E116: Corn | F116: Non-Irrigated | G116: ALL | H116: Grain | I116: No Organic Practice Specified | J116: 3.81 | K116: 102.7 | L116: 391.29 | M116: 3.23 | N116: 97 | O116: N/A | P116: 97 | Q116: 0.5389399132 | R116: 0.5389399132 | S116: 0 | T116: 24.356661 | U116: 24.356661 | V116: 0
A117: 108 | B117: 2016 | C117: Alabama | D117: Randolph | E117: Corn | F117: Irrigated | G117: ALL | H117: Grain | I117: No Organic Practice Specified | J117: 3.81 | K117: 173 | L117: 659.13 | M117: 3.23 | N117: N/A | O117: N/A | P117: 97 | Q117: N/A | R117: N/A | S117: N/A | T117: N/A | U117: N/A | V117: N/A
A118: 109 | B118: 2016 | C118: Alabama | D118: Russell | E118: Corn | F118: Non-Irrigated | G118: ALL | H118: Grain | I118: No Organic Practice Specified | J118: 3.81 | K118: 69.5 | L118: 264.8 | M118: 3.23 | N118: N/A | O118: N/A | P118: N/A | Q118: N/A | R118: N/A | S118: N/A | T118: N/A | U118: N/A | V118: N/A
A119: 110 | B119: 2016 | C119: Alabama | D119: Russell | E119: Corn | F119: Irrigated | G119: ALL | H119: Grain | I119: No Organic Practice Specified | J119: 3.81 | K119: 185.5 | L119: 706.76 | M119: 3.23 | N119: N/A | O119: N/A | P119: N/A | Q119: N/A | R119: N/A | S119: N/A | T119: N/A | U119: N/A | V119: N/A
A120: 111 | B120: 2016 | C120: Alabama | D120: Shelby | E120: Corn | F120: Non-Irrigated | G120: ALL | H120: Grain | I120: No Organic Practice Specified | J120: 3.81 | K120: 103.6 | L120: 394.72 | M120: 3.23 | N120: 93.6 | O120: N/A | P120: 93.6 | Q120: 0.8551087134 | R120: 0.8551087134 | S120: 0 | T120: 38.984148 | U120: 38.984148 | V120: 0
A121: 112 | B121: 2016 | C121: Alabama | D121: Shelby | E121: Corn | F121: Irrigated | G121: ALL | H121: Grain | I121: No Organic Practice Specified | J121: 3.81 | K121: 173 | L121: 659.13 | M121: 3.23 | N121: N/A | O121: N/A | P121: 93.6 | Q121: N/A | R121: N/A | S121: N/A | T121: N/A | U121: N/A | V121: N/A
A122: 113 | B122: 2016 | C122: Alabama | D122: St Clair | E122: Corn | F122: Non-Irrigated | G122: ALL | H122: Grain | I122: No Organic Practice Specified | J122: 3.81 | K122: 105.9 | L122: 403.48 | M122: 3.23 | N122: N/A | O122: N/A | P122: N/A | Q122: N/A | R122: N/A | S122: N/A | T122: N/A | U122: N/A | V122: N/A
A123: 114 | B123: 2016 | C123: Alabama | D123: St Clair | E123: Corn | F123: Irrigated | G123: ALL | H123: Grain | I123: No Organic Practice Specified | J123: 3.81 | K123: 105.9 | L123: 403.48 | M123: 3.23 | N123: N/A | O123: N/A | P123: N/A | Q123: N/A | R123: N/A | S123: N/A | T123: N/A | U123: N/A | V123: N/A
A124: 115 | B124: 2016 | C124: Alabama | D124: Sumter | E124: Corn | F124: Non-Irrigated | G124: ALL | H124: Grain | I124: No Organic Practice Specified | J124: 3.81 | K124: 131 | L124: 499.11 | M124: 3.23 | N124: N/A | O124: N/A | P124: N/A | Q124: N/A | R124: N/A | S124: N/A | T124: N/A | U124: N/A | V124: N/A
A125: 116 | B125: 2016 | C125: Alabama | D125: Sumter | E125: Corn | F125: Irrigated | G125: ALL | H125: Grain | I125: No Organic Practice Specified | J125: 3.81 | K125: 170 | L125: 647.7 | M125: 3.23 | N125: N/A | O125: N/A | P125: N/A | Q125: N/A | R125: N/A | S125: N/A | T125: N/A | U125: N/A | V125: N/A
A126: 117 | B126: 2016 | C126: Alabama | D126: Talladega | E126: Corn | F126: Non-Irrigated | G126: ALL | H126: Grain | I126: No Organic Practice Specified | J126: 3.81 | K126: 106.8 | L126: 406.91 | M126: 3.23 | N126: N/A | O126: N/A | P126: N/A | Q126: N/A | R126: N/A | S126: N/A | T126: N/A | U126: N/A | V126: N/A
A127: 118 | B127: 2016 | C127: Alabama | D127: Talladega | E127: Corn | F127: Irrigated | G127: ALL | H127: Grain | I127: No Organic Practice Specified | J127: 3.81 | K127: 173 | L127: 659.13 | M127: 3.23 | N127: N/A | O127: N/A | P127: N/A | Q127: N/A | R127: N/A | S127: N/A | T127: N/A | U127: N/A | V127: N/A
A128: 119 | B128: 2016 | C128: Alabama | D128: Tallapoosa | E128: Corn | F128: Non-Irrigated | G128: ALL | H128: Grain | I128: No Organic Practice Specified | J128: 3.81 | K128: 94.6 | L128: 360.43 | M128: 3.23 | N128: N/A | O128: N/A | P128: 173 | Q128: N/A | R128: N/A | S128: N/A | T128: N/A | U128: N/A | V128: N/A
A129: 120 | B129: 2016 | C129: Alabama | D129: Tallapoosa | E129: Corn | F129: Irrigated | G129: ALL | H129: Grain | I129: No Organic Practice Specified | J129: 3.81 | K129: 173 | L129: 659.13 | M129: 3.23 | N129: 173 | O129: N/A | P129: 173 | Q129: 0.1111906466 | R129: 0.1111906466 | S129: 0 | T129: 8.46489 | U129: 8.46489 | V129: 0
A130: 121 | B130: 2016 | C130: Alabama | D130: Tuscaloosa | E130: Corn | F130: Non-Irrigated | G130: ALL | H130: Grain | I130: No Organic Practice Specified | J130: 3.81 | K130: 84.6 | L130: 322.33 | M130: 3.23 | N130: N/A | O130: N/A | P130: 132.2 | Q130: N/A | R130: N/A | S130: N/A | T130: N/A | U130: N/A | V130: N/A
A131: 122 | B131: 2016 | C131: Alabama | D131: Tuscaloosa | E131: Corn | F131: Irrigated | G131: ALL | H131: Grain | I131: No Organic Practice Specified | J131: 3.81 | K131: 170.8 | L131: 650.75 | M131: 3.23 | N131: N/A | O131: N/A | P131: 132.2 | Q131: N/A | R131: N/A | S131: N/A | T131: N/A | U131: N/A | V131: N/A
A132: 123 | B132: 2016 | C132: Alabama | D132: Washington | E132: Corn | F132: Non-Irrigated | G132: ALL | H132: Grain | I132: No Organic Practice Specified | J132: 3.81 | K132: 129.1 | L132: 491.87 | M132: 3.23 | N132: N/A | O132: N/A | P132: N/A | Q132: N/A | R132: N/A | S132: N/A | T132: N/A | U132: N/A | V132: N/A
A133: 124 | B133: 2016 | C133: Alabama | D133: Washington | E133: Corn | F133: Irrigated | G133: ALL | H133: Grain | I133: No Organic Practice Specified | J133: 3.81 | K133: 169.2 | L133: 644.65 | M133: 3.23 | N133: N/A | O133: N/A | P133: N/A | Q133: N/A | R133: N/A | S133: N/A | T133: N/A | U133: N/A | V133: N/A
A134: 125 | B134: 2016 | C134: Alabama | D134: Wilcox | E134: Corn | F134: Non-Irrigated | G134: ALL | H134: Grain | I134: No Organic Practice Specified | J134: 3.81 | K134: 75.2 | L134: 286.51 | M134: 3.23 | N134: N/A | O134: N/A | P134: N/A | Q134: N/A | R134: N/A | S134: N/A | T134: N/A | U134: N/A | V134: N/A
A135: 126 | B135: 2016 | C135: Alabama | D135: Wilcox | E135: Corn | F135: Irrigated | G135: ALL | H135: Grain | I135: No Organic Practice Specified | J135: 3.81 | K135: 170.2 | L135: 648.46 | M135: 3.23 | N135: N/A | O135: N/A | P135: N/A | Q135: N/A | R135: N/A | S135: N/A | T135: N/A | U135: N/A | V135: N/A
A136: 127 | B136: 2016 | C136: Alabama | D136: Winston | E136: Corn | F136: Non-Irrigated | G136: ALL | H136: Grain | I136: No Organic Practice Specified | J136: 3.81 | K136: 131 | L136: 499.11 | M136: 3.23 | N136: N/A | O136: N/A | P136: N/A | Q136: N/A | R136: N/A | S136: N/A | T136: N/A | U136: N/A | V136: N/A
A137: 128 | B137: 2016 | C137: Alabama | D137: Winston | E137: Corn | F137: Irrigated | G137: ALL | H137: Grain | I137: No Organic Practice Specified | J137: 3.81 | K137: 179.7 | L137: 684.66 | M137: 3.23 | N137: N/A | O137: N/A | P137: N/A | Q137: N/A | R137: N/A | S137: N/A | T137: N/A | U137: N/A | V137: N/A
A138: 129 | B138: 2016 | C138: Arizona | D138: Cochise | E138: Corn | F138: Irrigated | G138: ALL | H138: Grain | I138: No Organic Practice Specified | J138: 3.89 | K138: 191.7 | L138: 745.71 | M138: 3.49 | N138: N/A | O138: N/A | P138: N/A | Q138: N/A | R138: N/A | S138: N/A | T138: N/A | U138: N/A | V138: N/A
A139: 130 | B139: 2016 | C139: Arizona | D139: Graham | E139: Corn | F139: Irrigated | G139: ALL | H139: Grain | I139: No Organic Practice Specified | J139: 3.89 | K139: 205.9 | L139: 800.95 | M139: 3.49 | N139: N/A | O139: N/A | P139: N/A | Q139: N/A | R139: N/A | S139: N/A | T139: N/A | U139: N/A | V139: N/A
A140: 131 | B140: 2016 | C140: Arizona | D140: Maricopa | E140: Corn | F140: Irrigated | G140: ALL | H140: Grain | I140: No Organic Practice Specified | J140: 3.89 | K140: 210 | L140: 816.9 | M140: 3.49 | N140: N/A | O140: N/A | P140: N/A | Q140: N/A | R140: N/A | S140: N/A | T140: N/A | U140: N/A | V140: N/A
A141: 132 | B141: 2016 | C141: Arizona | D141: Pinal | E141: Corn | F141: Irrigated | G141: ALL | H141: Grain | I141: No Organic Practice Specified | J141: 3.89 | K141: 216.1 | L141: 840.63 | M141: 3.49 | N141: N/A | O141: N/A | P141: N/A | Q141: N/A | R141: N/A | S141: N/A | T141: N/A | U141: N/A | V141: N/A
A142: 133 | B142: 2016 | C142: Arkansas | D142: Arkansas | E142: Corn | F142: Non-Irrigated | G142: ALL | H142: Grain | I142: No Organic Practice Specified | J142: 3.89 | K142: 119.2 | L142: 463.69 | M142: 3.33 | N142: N/A | O142: N/A | P142: 182 | Q142: N/A | R142: N/A | S142: N/A | T142: N/A | U142: N/A | V142: N/A
A143: 134 | B143: 2016 | C143: Arkansas | D143: Arkansas | E143: Corn | F143: Irrigated | G143: ALL | H143: Grain | I143: No Organic Practice Specified | J143: 3.89 | K143: 194.1 | L143: 755.05 | M143: 3.33 | N143: 182 | O143: N/A | P143: 182 | Q143: 0.5211237946 | R143: 0.5211237946 | S143: 0 | T143: 45.446247 | U143: 45.446247 | V143: 0
A144: 135 | B144: 2016 | C144: Arkansas | D144: Ashley | E144: Corn | F144: Non-Irrigated | G144: ALL | H144: Grain | I144: No Organic Practice Specified | J144: 3.89 | K144: 93 | L144: 361.77 | M144: 3.33 | N144: N/A | O144: N/A | P144: 189 | Q144: N/A | R144: N/A | S144: N/A | T144: N/A | U144: N/A | V144: N/A
A145: 136 | B145: 2016 | C145: Arkansas | D145: Ashley | E145: Corn | F145: Irrigated | G145: ALL | H145: Grain | I145: No Organic Practice Specified | J145: 3.89 | K145: 180.6 | L145: 702.53 | M145: 3.33 | N145: 189 | O145: N/A | P145: 189 | Q145: 0 | R145: 0 | S145: 0 | T145: 0 | U145: 0 | V145: 0
A146: 137 | B146: 2016 | C146: Arkansas | D146: Benton | E146: Corn | F146: Non-Irrigated | G146: ALL | H146: Grain | I146: No Organic Practice Specified | J146: 3.89 | K146: 107.1 | L146: 416.62 | M146: 3.33 | N146: N/A | O146: N/A | P146: N/A | Q146: N/A | R146: N/A | S146: N/A | T146: N/A | U146: N/A | V146: N/A
A147: 138 | B147: 2016 | C147: Arkansas | D147: Benton | E147: Corn | F147: Irrigated | G147: ALL | H147: Grain | I147: No Organic Practice Specified | J147: 3.89 | K147: 150.9 | L147: 587 | M147: 3.33 | N147: N/A | O147: N/A | P147: N/A | Q147: N/A | R147: N/A | S147: N/A | T147: N/A | U147: N/A | V147: N/A
A148: 139 | B148: 2016 | C148: Arkansas | D148: Bradley | E148: Corn | F148: Non-Irrigated | G148: ALL | H148: Grain | I148: No Organic Practice Specified | J148: 3.89 | K148: 93.8 | L148: 364.88 | M148: 3.33 | N148: N/A | O148: N/A | P148: N/A | Q148: N/A | R148: N/A | S148: N/A | T148: N/A | U148: N/A | V148: N/A
A149: 140 | B149: 2016 | C149: Arkansas | D149: Bradley | E149: Corn | F149: Irrigated | G149: ALL | H149: Grain | I149: No Organic Practice Specified | J149: 3.89 | K149: 176.6 | L149: 686.97 | M149: 3.33 | N149: N/A | O149: N/A | P149: N/A | Q149: N/A | R149: N/A | S149: N/A | T149: N/A | U149: N/A | V149: N/A
A150: 141 | B150: 2016 | C150: Arkansas | D150: Chicot | E150: Corn | F150: Non-Irrigated | G150: ALL | H150: Grain | I150: No Organic Practice Specified | J150: 3.89 | K150: 103.2 | L150: 401.45 | M150: 3.33 | N150: N/A | O150: N/A | P150: 184.4 | Q150: N/A | R150: N/A | S150: N/A | T150: N/A | U150: N/A | V150: N/A
A151: 142 | B151: 2016 | C151: Arkansas | D151: Chicot | E151: Corn | F151: Irrigated | G151: ALL | H151: Grain | I151: No Organic Practice Specified | J151: 3.89 | K151: 175.5 | L151: 682.7 | M151: 3.33 | N151: 184.4 | O151: N/A | P151: 184.4 | Q151: 0 | R151: 0 | S151: 0 | T151: 0 | U151: 0 | V151: 0
A152: 143 | B152: 2016 | C152: Arkansas | D152: Clark | E152: Corn | F152: Non-Irrigated | G152: ALL | H152: Grain | I152: No Organic Practice Specified | J152: 3.89 | K152: 123.9 | L152: 481.97 | M152: 3.33 | N152: N/A | O152: N/A | P152: N/A | Q152: N/A | R152: N/A | S152: N/A | T152: N/A | U152: N/A | V152: N/A
A153: 144 | B153: 2016 | C153: Arkansas | D153: Clark | E153: Corn | F153: Irrigated | G153: ALL | H153: Grain | I153: No Organic Practice Specified | J153: 3.89 | K153: 154.6 | L153: 601.39 | M153: 3.33 | N153: N/A | O153: N/A | P153: N/A | Q153: N/A | R153: N/A | S153: N/A | T153: N/A | U153: N/A | V153: N/A
A154: 145 | B154: 2016 | C154: Arkansas | D154: Clay | E154: Corn | F154: Non-Irrigated | G154: ALL | H154: Grain | I154: No Organic Practice Specified | J154: 3.89 | K154: 136.2 | L154: 529.82 | M154: 3.33 | N154: 172.9 | O154: N/A | P154: 172.9 | Q154: 0 | R154: 0 | S154: 0 | T154: 0 | U154: 0 | V154: 0
A155: 146 | B155: 2016 | C155: Arkansas | D155: Clay | E155: Corn | F155: Irrigated | G155: ALL | H155: Grain | I155: No Organic Practice Specified | J155: 3.89 | K155: 177.4 | L155: 690.09 | M155: 3.33 | N155: 172.9 | O155: N/A | P155: 172.9 | Q155: 0.233395943 | R155: 0.233395943 | S155: 0 | T155: 18.602808 | U155: 18.602808 | V155: 0
A156: 147 | B156: 2016 | C156: Arkansas | D156: Conway | E156: Corn | F156: Non-Irrigated | G156: ALL | H156: Grain | I156: No Organic Practice Specified | J156: 3.89 | K156: 90.3 | L156: 351.27 | M156: 3.33 | N156: N/A | O156: N/A | P156: N/A | Q156: N/A | R156: N/A | S156: N/A | T156: N/A | U156: N/A | V156: N/A
A157: 148 | B157: 2016 | C157: Arkansas | D157: Conway | E157: Corn | F157: Irrigated | G157: ALL | H157: Grain | I157: No Organic Practice Specified | J157: 3.89 | K157: 178 | L157: 692.42 | M157: 3.33 | N157: N/A | O157: N/A | P157: N/A | Q157: N/A | R157: N/A | S157: N/A | T157: N/A | U157: N/A | V157: N/A
A158: 149 | B158: 2016 | C158: Arkansas | D158: Craighead | E158: Corn | F158: Non-Irrigated | G158: ALL | H158: Grain | I158: No Organic Practice Specified | J158: 3.89 | K158: 134.9 | L158: 524.76 | M158: 3.33 | N158: 184.4 | O158: N/A | P158: 184.4 | Q158: 0 | R158: 0 | S158: 0 | T158: 0 | U158: 0 | V158: 0
A159: 150 | B159: 2016 | C159: Arkansas | D159: Craighead | E159: Corn | F159: Irrigated | G159: ALL | H159: Grain | I159: No Organic Practice Specified | J159: 3.89 | K159: 187.4 | L159: 728.99 | M159: 3.33 | N159: 184.4 | O159: N/A | P159: 184.4 | Q159: 0.1605712343 | R159: 0.1605712343 | S159: 0 | T159: 13.519758 | U159: 13.519758 | V159: 0
A160: 151 | B160: 2016 | C160: Arkansas | D160: Crawford | E160: Corn | F160: Non-Irrigated | G160: ALL | H160: Grain | I160: No Organic Practice Specified | J160: 3.89 | K160: 85 | L160: 330.65 | M160: 3.33 | N160: 110 | O160: N/A | P160: 110 | Q160: 0 | R160: 0 | S160: 0 | T160: 0 | U160: 0 | V160: 0
A161: 152 | B161: 2016 | C161: Arkansas | D161: Crawford | E161: Corn | F161: Irrigated | G161: ALL | H161: Grain | I161: No Organic Practice Specified | J161: 3.89 | K161: 141.4 | L161: 550.05 | M161: 3.33 | N161: N/A | O161: N/A | P161: 110 | Q161: N/A | R161: N/A | S161: N/A | T161: N/A | U161: N/A | V161: N/A
A162: 153 | B162: 2016 | C162: Arkansas | D162: Crittenden | E162: Corn | F162: Non-Irrigated | G162: ALL | H162: Grain | I162: No Organic Practice Specified | J162: 3.89 | K162: 119.3 | L162: 464.08 | M162: 3.33 | N162: 142.9 | O162: N/A | P162: 142.9 | Q162: 0 | R162: 0 | S162: 0 | T162: 0 | U162: 0 | V162: 0
A163: 154 | B163: 2016 | C163: Arkansas | D163: Crittenden | E163: Corn | F163: Irrigated | G163: ALL | H163: Grain | I163: No Organic Practice Specified | J163: 3.89 | K163: 164.3 | L163: 639.13 | M163: 3.33 | N163: 142.9 | O163: N/A | P163: 142.9 | Q163: 1 | R163: 1 | S163: 0 | T163: 73.8191685 | U163: 73.8191685 | V163: 0
A164: 155 | B164: 2016 | C164: Arkansas | D164: Cross | E164: Corn | F164: Non-Irrigated | G164: ALL | H164: Grain | I164: No Organic Practice Specified | J164: 3.89 | K164: 121.9 | L164: 474.19 | M164: 3.33 | N164: N/A | O164: N/A | P164: N/A | Q164: N/A | R164: N/A | S164: N/A | T164: N/A | U164: N/A | V164: N/A
A165: 156 | B165: 2016 | C165: Arkansas | D165: Cross | E165: Corn | F165: Irrigated | G165: ALL | H165: Grain | I165: No Organic Practice Specified | J165: 3.89 | K165: 180.5 | L165: 702.15 | M165: 3.33 | N165: N/A | O165: N/A | P165: N/A | Q165: N/A | R165: N/A | S165: N/A | T165: N/A | U165: N/A | V165: N/A
A166: 157 | B166: 2016 | C166: Arkansas | D166: Desha | E166: Corn | F166: Non-Irrigated | G166: ALL | H166: Grain | I166: No Organic Practice Specified | J166: 3.89 | K166: 122.8 | L166: 477.69 | M166: 3.33 | N166: N/A | O166: N/A | P166: 186 | Q166: N/A | R166: N/A | S166: N/A | T166: N/A | U166: N/A | V166: N/A
A167: 158 | B167: 2016 | C167: Arkansas | D167: Desha | E167: Corn | F167: Irrigated | G167: ALL | H167: Grain | I167: No Organic Practice Specified | J167: 3.89 | K167: 200.7 | L167: 780.72 | M167: 3.33 | N167: 186 | O167: N/A | P167: 186 | Q167: 0.6059858502 | R167: 0.6059858502 | S167: 0 | T167: 54.643869 | U167: 54.643869 | V167: 0
A168: 159 | B168: 2016 | C168: Arkansas | D168: Drew | E168: Corn | F168: Non-Irrigated | G168: ALL | H168: Grain | I168: No Organic Practice Specified | J168: 3.89 | K168: 103.1 | L168: 401.06 | M168: 3.33 | N168: N/A | O168: N/A | P168: 188.1 | Q168: N/A | R168: N/A | S168: N/A | T168: N/A | U168: N/A | V168: N/A
A169: 160 | B169: 2016 | C169: Arkansas | D169: Drew | E169: Corn | F169: Irrigated | G169: ALL | H169: Grain | I169: No Organic Practice Specified | J169: 3.89 | K169: 176.7 | L169: 687.36 | M169: 3.33 | N169: 188.1 | O169: N/A | P169: 188.1 | Q169: 0 | R169: 0 | S169: 0 | T169: 0 | U169: 0 | V169: 0
A170: 161 | B170: 2016 | C170: Arkansas | D170: Faulkner | E170: Corn | F170: Non-Irrigated | G170: ALL | H170: Grain | I170: No Organic Practice Specified | J170: 3.89 | K170: 104.6 | L170: 406.89 | M170: 3.33 | N170: N/A | O170: N/A | P170: N/A | Q170: N/A | R170: N/A | S170: N/A | T170: N/A | U170: N/A | V170: N/A
A171: 162 | B171: 2016 | C171: Arkansas | D171: Faulkner | E171: Corn | F171: Irrigated | G171: ALL | H171: Grain | I171: No Organic Practice Specified | J171: 3.89 | K171: 185.9 | L171: 723.15 | M171: 3.33 | N171: N/A | O171: N/A | P171: N/A | Q171: N/A | R171: N/A | S171: N/A | T171: N/A | U171: N/A | V171: N/A
A172: 163 | B172: 2016 | C172: Arkansas | D172: Franklin | E172: Corn | F172: Non-Irrigated | G172: ALL | H172: Grain | I172: No Organic Practice Specified | J172: 3.89 | K172: 92.2 | L172: 358.66 | M172: 3.33 | N172: N/A | O172: N/A | P172: N/A | Q172: N/A | R172: N/A | S172: N/A | T172: N/A | U172: N/A | V172: N/A
A173: 164 | B173: 2016 | C173: Arkansas | D173: Franklin | E173: Corn | F173: Irrigated | G173: ALL | H173: Grain | I173: No Organic Practice Specified | J173: 3.89 | K173: 116.5 | L173: 453.19 | M173: 3.33 | N173: N/A | O173: N/A | P173: N/A | Q173: N/A | R173: N/A | S173: N/A | T173: N/A | U173: N/A | V173: N/A
A174: 165 | B174: 2016 | C174: Arkansas | D174: Greene | E174: Corn | F174: Non-Irrigated | G174: ALL | H174: Grain | I174: No Organic Practice Specified | J174: 3.89 | K174: 134.4 | L174: 522.82 | M174: 3.33 | N174: 168.8 | O174: N/A | P174: 168.8 | Q174: 0 | R174: 0 | S174: 0 | T174: 0 | U174: 0 | V174: 0
A175: 166 | B175: 2016 | C175: Arkansas | D175: Greene | E175: Corn | F175: Irrigated | G175: ALL | H175: Grain | I175: No Organic Practice Specified | J175: 3.89 | K175: 183.9 | L175: 715.37 | M175: 3.33 | N175: 168.8 | O175: N/A | P175: 168.8 | Q175: 0.6749842834 | R175: 0.6749842834 | S175: 0 | T175: 55.770813 | U175: 55.770813 | V175: 0
A176: 167 | B176: 2016 | C176: Arkansas | D176: Hempstead | E176: Corn | F176: Non-Irrigated | G176: ALL | H176: Grain | I176: No Organic Practice Specified | J176: 3.89 | K176: 71 | L176: 276.19 | M176: 3.33 | N176: N/A | O176: N/A | P176: N/A | Q176: N/A | R176: N/A | S176: N/A | T176: N/A | U176: N/A | V176: N/A
A177: 168 | B177: 2016 | C177: Arkansas | D177: Hempstead | E177: Corn | F177: Irrigated | G177: ALL | H177: Grain | I177: No Organic Practice Specified | J177: 3.89 | K177: 161.5 | L177: 628.24 | M177: 3.33 | N177: N/A | O177: N/A | P177: N/A | Q177: N/A | R177: N/A | S177: N/A | T177: N/A | U177: N/A | V177: N/A
A178: 169 | B178: 2016 | C178: Arkansas | D178: Hot Spring | E178: Corn | F178: Non-Irrigated | G178: ALL | H178: Grain | I178: No Organic Practice Specified | J178: 3.89 | K178: 100.1 | L178: 389.39 | M178: 3.33 | N178: N/A | O178: N/A | P178: N/A | Q178: N/A | R178: N/A | S178: N/A | T178: N/A | U178: N/A | V178: N/A
A179: 170 | B179: 2016 | C179: Arkansas | D179: Hot Spring | E179: Corn | F179: Irrigated | G179: ALL | H179: Grain | I179: No Organic Practice Specified | J179: 3.89 | K179: 169.1 | L179: 657.8 | M179: 3.33 | N179: N/A | O179: N/A | P179: N/A | Q179: N/A | R179: N/A | S179: N/A | T179: N/A | U179: N/A | V179: N/A
A180: 171 | B180: 2016 | C180: Arkansas | D180: Independence | E180: Corn | F180: Non-Irrigated | G180: ALL | H180: Grain | I180: No Organic Practice Specified | J180: 3.89 | K180: 114.7 | L180: 446.18 | M180: 3.33 | N180: N/A | O180: N/A | P180: N/A | Q180: N/A | R180: N/A | S180: N/A | T180: N/A | U180: N/A | V180: N/A
A181: 172 | B181: 2016 | C181: Arkansas | D181: Independence | E181: Corn | F181: Irrigated | G181: ALL | H181: Grain | I181: No Organic Practice Specified | J181: 3.89 | K181: 148.8 | L181: 578.83 | M181: 3.33 | N181: N/A | O181: N/A | P181: N/A | Q181: N/A | R181: N/A | S181: N/A | T181: N/A | U181: N/A | V181: N/A
A182: 173 | B182: 2016 | C182: Arkansas | D182: Jackson | E182: Corn | F182: Non-Irrigated | G182: ALL | H182: Grain | I182: No Organic Practice Specified | J182: 3.89 | K182: 127.5 | L182: 495.98 | M182: 3.33 | N182: 147.3 | O182: N/A | P182: 147.3 | Q182: 0 | R182: 0 | S182: 0 | T182: 0 | U182: 0 | V182: 0
A183: 174 | B183: 2016 | C183: Arkansas | D183: Jackson | E183: Corn | F183: Irrigated | G183: ALL | H183: Grain | I183: No Organic Practice Specified | J183: 3.89 | K183: 152.3 | L183: 592.45 | M183: 3.33 | N183: 147.3 | O183: N/A | P183: 147.3 | Q183: 0.291478624 | R183: 0.291478624 | S183: 0 | T183: 19.945191 | U183: 19.945191 | V183: 0
A184: 175 | B184: 2016 | C184: Arkansas | D184: Jefferson | E184: Corn | F184: Non-Irrigated | G184: ALL | H184: Grain | I184: No Organic Practice Specified | J184: 3.89 | K184: 114.5 | L184: 445.41 | M184: 3.33 | N184: N/A | O184: N/A | P184: 190.9 | Q184: N/A | R184: N/A | S184: N/A | T184: N/A | U184: N/A | V184: N/A
A185: 176 | B185: 2016 | C185: Arkansas | D185: Jefferson | E185: Corn | F185: Irrigated | G185: ALL | H185: Grain | I185: No Organic Practice Specified | J185: 3.89 | K185: 176.8 | L185: 687.75 | M185: 3.33 | N185: 190.9 | O185: N/A | P185: 190.9 | Q185: 0 | R185: 0 | S185: 0 | T185: 0 | U185: 0 | V185: 0
A186: 177 | B186: 2016 | C186: Arkansas | D186: Johnson | E186: Corn | F186: Non-Irrigated | G186: ALL | H186: Grain | I186: No Organic Practice Specified | J186: 3.89 | K186: 81.1 | L186: 315.48 | M186: 3.33 | N186: N/A | O186: N/A | P186: 143.7 | Q186: N/A | R186: N/A | S186: N/A | T186: N/A | U186: N/A | V186: N/A
A187: 178 | B187: 2016 | C187: Arkansas | D187: Johnson | E187: Corn | F187: Irrigated | G187: ALL | H187: Grain | I187: No Organic Practice Specified | J187: 3.89 | K187: 132.7 | L187: 516.2 | M187: 3.33 | N187: 143.7 | O187: N/A | P187: 143.7 | Q187: 0 | R187: 0 | S187: 0 | T187: 0 | U187: 0 | V187: 0
A188: 179 | B188: 2016 | C188: Arkansas | D188: Lafayette | E188: Corn | F188: Non-Irrigated | G188: ALL | H188: Grain | I188: No Organic Practice Specified | J188: 3.89 | K188: 127 | L188: 494.03 | M188: 3.33 | N188: N/A | O188: N/A | P188: N/A | Q188: N/A | R188: N/A | S188: N/A | T188: N/A | U188: N/A | V188: N/A
A189: 180 | B189: 2016 | C189: Arkansas | D189: Lafayette | E189: Corn | F189: Irrigated | G189: ALL | H189: Grain | I189: No Organic Practice Specified | J189: 3.89 | K189: 161.5 | L189: 628.24 | M189: 3.33 | N189: N/A | O189: N/A | P189: N/A | Q189: N/A | R189: N/A | S189: N/A | T189: N/A | U189: N/A | V189: N/A
A190: 181 | B190: 2016 | C190: Arkansas | D190: Lawrence | E190: Corn | F190: Non-Irrigated | G190: ALL | H190: Grain | I190: No Organic Practice Specified | J190: 3.89 | K190: 128.3 | L190: 499.09 | M190: 3.33 | N190: 167.5 | O190: N/A | P190: 167.5 | Q190: 0 | R190: 0 | S190: 0 | T190: 0 | U190: 0 | V190: 0
A191: 182 | B191: 2016 | C191: Arkansas | D191: Lawrence | E191: Corn | F191: Irrigated | G191: ALL | H191: Grain | I191: No Organic Practice Specified | J191: 3.89 | K191: 153.9 | L191: 598.67 | M191: 3.33 | N191: 167.5 | O191: N/A | P191: 167.5 | Q191: 0 | R191: 0 | S191: 0 | T191: 0 | U191: 0 | V191: 0
A192: 183 | B192: 2016 | C192: Arkansas | D192: Lee | E192: Corn | F192: Non-Irrigated | G192: ALL | H192: Grain | I192: No Organic Practice Specified | J192: 3.89 | K192: 94.7 | L192: 368.38 | M192: 3.33 | N192: N/A | O192: N/A | P192: 149.5 | Q192: N/A | R192: N/A | S192: N/A | T192: N/A | U192: N/A | V192: N/A
A193: 184 | B193: 2016 | C193: Arkansas | D193: Lee | E193: Corn | F193: Irrigated | G193: ALL | H193: Grain | I193: No Organic Practice Specified | J193: 3.89 | K193: 167.6 | L193: 651.96 | M193: 3.33 | N193: 149.5 | O193: N/A | P193: 149.5 | Q193: 0.8764293176 | R193: 0.8764293176 | S193: 0 | T193: 65.996742 | U193: 65.996742 | V193: 0
A194: 185 | B194: 2016 | C194: Arkansas | D194: Lincoln | E194: Corn | F194: Non-Irrigated | G194: ALL | H194: Grain | I194: No Organic Practice Specified | J194: 3.89 | K194: 126.1 | L194: 490.53 | M194: 3.33 | N194: N/A | O194: N/A | P194: 181.2 | Q194: N/A | R194: N/A | S194: N/A | T194: N/A | U194: N/A | V194: N/A
A195: 186 | B195: 2016 | C195: Arkansas | D195: Lincoln | E195: Corn | F195: Irrigated | G195: ALL | H195: Grain | I195: No Organic Practice Specified | J195: 3.89 | K195: 186.1 | L195: 723.93 | M195: 3.33 | N195: 181.2 | O195: N/A | P195: 181.2 | Q195: 0.2408942916 | R195: 0.2408942916 | S195: 0 | T195: 20.142087 | U195: 20.142087 | V195: 0
A196: 187 | B196: 2016 | C196: Arkansas | D196: Little River | E196: Corn | F196: Non-Irrigated | G196: ALL | H196: Grain | I196: No Organic Practice Specified | J196: 3.89 | K196: 73.1 | L196: 284.36 | M196: 3.33 | N196: N/A | O196: N/A | P196: N/A | Q196: N/A | R196: N/A | S196: N/A | T196: N/A | U196: N/A | V196: N/A
A197: 188 | B197: 2016 | C197: Arkansas | D197: Little River | E197: Corn | F197: Irrigated | G197: ALL | H197: Grain | I197: No Organic Practice Specified | J197: 3.89 | K197: 145.6 | L197: 566.38 | M197: 3.33 | N197: N/A | O197: N/A | P197: N/A | Q197: N/A | R197: N/A | S197: N/A | T197: N/A | U197: N/A | V197: N/A
A198: 189 | B198: 2016 | C198: Arkansas | D198: Logan | E198: Corn | F198: Non-Irrigated | G198: ALL | H198: Grain | I198: No Organic Practice Specified | J198: 3.89 | K198: 80.7 | L198: 313.92 | M198: 3.33 | N198: N/A | O198: N/A | P198: N/A | Q198: N/A | R198: N/A | S198: N/A | T198: N/A | U198: N/A | V198: N/A
A199: 190 | B199: 2016 | C199: Arkansas | D199: Logan | E199: Corn | F199: Irrigated | G199: ALL | H199: Grain | I199: No Organic Practice Specified | J199: 3.89 | K199: 134.3 | L199: 522.43 | M199: 3.33 | N199: N/A | O199: N/A | P199: N/A | Q199: N/A | R199: N/A | S199: N/A | T199: N/A | U199: N/A | V199: N/A
A200: 191 | B200: 2016 | C200: Arkansas | D200: Lonoke | E200: Corn | F200: Non-Irrigated | G200: ALL | H200: Grain | I200: No Organic Practice Specified | J200: 3.89 | K200: 111.5 | L200: 433.74 | M200: 3.33 | N200: N/A | O200: N/A | P200: 173.7 | Q200: N/A | R200: N/A | S200: N/A | T200: N/A | U200: N/A | V200: N/A
A201: 192 | B201: 2016 | C201: Arkansas | D201: Lonoke | E201: Corn | F201: Irrigated | G201: ALL | H201: Grain | I201: No Organic Practice Specified | J201: 3.89 | K201: 187.2 | L201: 728.21 | M201: 3.33 | N201: 173.7 | O201: N/A | P201: 173.7 | Q201: 0.5972054937 | R201: 0.5972054937 | S201: 0 | T201: 50.229774 | U201: 50.229774 | V201: 0
A202: 193 | B202: 2016 | C202: Arkansas | D202: Miller | E202: Corn | F202: Non-Irrigated | G202: ALL | H202: Grain | I202: No Organic Practice Specified | J202: 3.89 | K202: 71.1 | L202: 276.58 | M202: 3.33 | N202: N/A | O202: N/A | P202: N/A | Q202: N/A | R202: N/A | S202: N/A | T202: N/A | U202: N/A | V202: N/A
A203: 194 | B203: 2016 | C203: Arkansas | D203: Miller | E203: Corn | F203: Irrigated | G203: ALL | H203: Grain | I203: No Organic Practice Specified | J203: 3.89 | K203: 151.7 | L203: 590.11 | M203: 3.33 | N203: N/A | O203: N/A | P203: N/A | Q203: N/A | R203: N/A | S203: N/A | T203: N/A | U203: N/A | V203: N/A
A204: 195 | B204: 2016 | C204: Arkansas | D204: Mississippi | E204: Corn | F204: Non-Irrigated | G204: ALL | H204: Grain | I204: No Organic Practice Specified | J204: 3.89 | K204: 133.5 | L204: 519.32 | M204: 3.33 | N204: N/A | O204: N/A | P204: N/A | Q204: N/A | R204: N/A | S204: N/A | T204: N/A | U204: N/A | V204: N/A
... 4296 more rows

Sheet yields (hidden)
A5: 1 | B5: ALABAMA | C5: BALDWIN | D5: Corn | E5: Grain | F5: All | G5: 152.9
A6: 2 | B6: ALABAMA | C6: BARBOUR | D6: Corn | E6: Grain | F6: All | G6: 188.9
A7: 3 | B7: ALABAMA | C7: CHEROKEE | D7: Corn | E7: Grain | F7: All | G7: 92.3
A8: 4 | B8: ALABAMA | C8: CLEBURNE | D8: Corn | E8: Grain | F8: All | G8: 125
A9: 5 | B9: ALABAMA | C9: COFFEE | D9: Corn | E9: Grain | F9: All | G9: 104.5
A10: 6 | B10: ALABAMA | C10: COLBERT | D10: Corn | E10: Grain | F10: All | G10: 126.2
A11: 7 | B11: ALABAMA | C11: CONECUH | D11: Corn | E11: Grain | F11: All | G11: 116.7
A12: 8 | B12: ALABAMA | C12: COVINGTON | D12: Corn | E12: Grain | F12: All | G12: 108.1
A13: 9 | B13: ALABAMA | C13: CULLMAN | D13: Corn | E13: Grain | F13: All | G13: 117.2
A14: 10 | B14: ALABAMA | C14: DALE | D14: Corn | E14: Grain | F14: All | G14: 145
A15: 11 | B15: ALABAMA | C15: DALLAS | D15: Corn | E15: Grain | F15: All | G15: 118.8
A16: 12 | B16: ALABAMA | C16: DE KALB | D16: Corn | E16: Grain | F16: All | G16: 96.8
A17: 13 | B17: ALABAMA | C17: ELMORE | D17: Corn | E17: Grain | F17: All | G17: 151.8
A18: 14 | B18: ALABAMA | C18: ESCAMBIA | D18: Corn | E18: Grain | F18: All | G18: 143.5
A19: 15 | B19: ALABAMA | C19: ETOWAH | D19: Corn | E19: Grain | F19: All | G19: 92.2
A20: 16 | B20: ALABAMA | C20: FAYETTE | D20: Corn | E20: Grain | F20: All | G20: 85
A21: 17 | B21: ALABAMA | C21: FRANKLIN | D21: Corn | E21: Grain | F21: All | G21: 85.7
A22: 18 | B22: ALABAMA | C22: GENEVA | D22: Corn | E22: Grain | F22: All | G22: 129.4
A23: 19 | B23: ALABAMA | C23: HENRY | D23: Corn | E23: Grain | F23: All | G23: 142.9
A24: 20 | B24: ALABAMA | C24: JACKSON | D24: Corn | E24: Grain | F24: All | G24: 80.5
A25: 21 | B25: ALABAMA | C25: LAMAR | D25: Corn | E25: Grain | F25: All | G25: 78.6
A26: 22 | B26: ALABAMA | C26: LAUDERDALE | D26: Corn | E26: Grain | F26: All | G26: 106.5
A27: 23 | B27: ALABAMA | C27: LAWRENCE | D27: Corn | E27: Grain | F27: All | G27: 117.2
A28: 24 | B28: ALABAMA | C28: LIMESTONE | D28: Corn | E28: Grain | F28: All | G28: 112.9
A29: 25 | B29: ALABAMA | C29: MACON | D29: Corn | E29: Grain | F29: All | G29: 131.9
A30: 26 | B30: ALABAMA | C30: MADISON | D30: Corn | E30: Grain | F30: All | G30: 150.7
A31: 27 | B31: ALABAMA | C31: MARENGO | D31: Corn | E31: Grain | F31: All | G31: 137.2
A32: 28 | B32: ALABAMA | C32: MONROE | D32: Corn | E32: Grain | F32: All | G32: 122.4
A33: 29 | B33: ALABAMA | C33: MORGAN | D33: Corn | E33: Grain | F33: All | G33: 107
A34: 30 | B34: ALABAMA | C34: PERRY | D34: Corn | E34: Grain | F34: All | G34: 123.7
A35: 31 | B35: ALABAMA | C35: PIKE | D35: Corn | E35: Grain | F35: All | G35: 123.9
A36: 32 | B36: ALABAMA | C36: RANDOLPH | D36: Corn | E36: Grain | F36: All | G36: 97
A37: 33 | B37: ALABAMA | C37: SHELBY | D37: Corn | E37: Grain | F37: All | G37: 93.6
A38: 34 | B38: ALABAMA | C38: TALLAPOOSA | D38: Corn | E38: Grain | F38: All | G38: 173
A39: 35 | B39: ALABAMA | C39: TUSCALOOSA | D39: Corn | E39: Grain | F39: All | G39: 132.2
A40: 36 | B40: ARKANSAS | C40: ARKANSAS | D40: Corn | E40: Grain | F40: All | G40: 182
A41: 37 | B41: ARKANSAS | C41: ASHLEY | D41: Corn | E41: Grain | F41: All | G41: 189
A42: 38 | B42: ARKANSAS | C42: CHICOT | D42: Corn | E42: Grain | F42: All | G42: 184.4
A43: 39 | B43: ARKANSAS | C43: CLAY | D43: Corn | E43: Grain | F43: All | G43: 172.9
A44: 40 | B44: ARKANSAS | C44: CRAIGHEAD | D44: Corn | E44: Grain | F44: All | G44: 184.4
A45: 41 | B45: ARKANSAS | C45: CRAWFORD | D45: Corn | E45: Grain | F45: All | G45: 110
A46: 42 | B46: ARKANSAS | C46: CRITTENDEN | D46: Corn | E46: Grain | F46: All | G46: 142.9
A47: 43 | B47: ARKANSAS | C47: DESHA | D47: Corn | E47: Grain | F47: All | G47: 186
A48: 44 | B48: ARKANSAS | C48: DREW | D48: Corn | E48: Grain | F48: All | G48: 188.1
A49: 45 | B49: ARKANSAS | C49: GREENE | D49: Corn | E49: Grain | F49: All | G49: 168.8
A50: 46 | B50: ARKANSAS | C50: JACKSON | D50: Corn | E50: Grain | F50: All | G50: 147.3
A51: 47 | B51: ARKANSAS | C51: JEFFERSON | D51: Corn | E51: Grain | F51: All | G51: 190.9
A52: 48 | B52: ARKANSAS | C52: JOHNSON | D52: Corn | E52: Grain | F52: All | G52: 143.7
A53: 49 | B53: ARKANSAS | C53: LAWRENCE | D53: Corn | E53: Grain | F53: All | G53: 167.5
A54: 50 | B54: ARKANSAS | C54: LEE | D54: Corn | E54: Grain | F54: All | G54: 149.5
A55: 51 | B55: ARKANSAS | C55: LINCOLN | D55: Corn | E55: Grain | F55: All | G55: 181.2
A56: 52 | B56: ARKANSAS | C56: LONOKE | D56: Corn | E56: Grain | F56: All | G56: 173.7
A57: 53 | B57: ARKANSAS | C57: MONROE | D57: Corn | E57: Grain | F57: All | G57: 163.4
A58: 54 | B58: ARKANSAS | C58: PHILLIPS | D58: Corn | E58: Grain | F58: All | G58: 169.8
A59: 55 | B59: ARKANSAS | C59: POINSETT | D59: Corn | E59: Grain | F59: All | G59: 176.7
A60: 56 | B60: ARKANSAS | C60: PRAIRIE | D60: Corn | E60: Grain | F60: All | G60: 182.5
A61: 57 | B61: ARKANSAS | C61: RANDOLPH | D61: Corn | E61: Grain | F61: All | G61: 173.6
A62: 58 | B62: ARKANSAS | C62: WOODRUFF | D62: Corn | E62: Grain | F62: All | G62: 159.6
A63: 59 | B63: ARKANSAS | C63: YELL | D63: Corn | E63: Grain | F63: All | G63: 156.7
A64: 60 | B64: CALIFORNIA | C64: FRESNO | D64: Corn | E64: Grain | F64: All | G64: 166
A65: 61 | B65: CALIFORNIA | C65: GLENN | D65: Corn | E65: Grain | F65: All | G65: 255.4
A66: 62 | B66: CALIFORNIA | C66: KERN | D66: Corn | E66: Grain | F66: All | G66: 156.8
A67: 63 | B67: CALIFORNIA | C67: MERCED | D67: Corn | E67: Grain | F67: All | G67: 113.3
A68: 64 | B68: CALIFORNIA | C68: SACRAMENTO | D68: Corn | E68: Grain | F68: All | G68: 213.5
A69: 65 | B69: CALIFORNIA | C69: SAN JOAQUIN | D69: Corn | E69: Grain | F69: All | G69: 181.2
A70: 66 | B70: CALIFORNIA | C70: SOLANO | D70: Corn | E70: Grain | F70: All | G70: 193.9
A71: 67 | B71: CALIFORNIA | C71: SUTTER | D71: Corn | E71: Grain | F71: All | G71: 264.1
A72: 68 | B72: CALIFORNIA | C72: YOLO | D72: Corn | E72: Grain | F72: All | G72: 210
A73: 69 | B73: COLORADO | C73: ADAMS | D73: Corn | E73: Grain | F73: NON-IRRIGATED | G73: 50.8
A74: 70 | B74: COLORADO | C74: ADAMS | D74: Corn | E74: Grain | F74: IRRIGATED | G74: 183.4
A75: 71 | B75: COLORADO | C75: ADAMS | D75: Corn | E75: Grain | F75: All | G75: 90.1
A76: 72 | B76: COLORADO | C76: BACA | D76: Corn | E76: Grain | F76: NON-IRRIGATED | G76: 58.3
A77: 73 | B77: COLORADO | C77: BACA | D77: Corn | E77: Grain | F77: IRRIGATED | G77: 165.1
A78: 74 | B78: COLORADO | C78: BACA | D78: Corn | E78: Grain | F78: All | G78: 128.2
A79: 75 | B79: COLORADO | C79: BENT | D79: Corn | E79: Grain | F79: IRRIGATED | G79: 155.4
A80: 76 | B80: COLORADO | C80: BENT | D80: Corn | E80: Grain | F80: All | G80: 155.4
A81: 77 | B81: COLORADO | C81: BOULDER | D81: Corn | E81: Grain | F81: All | G81: 153.1
A82: 78 | B82: COLORADO | C82: CHEYENNE | D82: Corn | E82: Grain | F82: NON-IRRIGATED | G82: 54.8
A83: 79 | B83: COLORADO | C83: CHEYENNE | D83: Corn | E83: Grain | F83: IRRIGATED | G83: 179.1
A84: 80 | B84: COLORADO | C84: CHEYENNE | D84: Corn | E84: Grain | F84: All | G84: 81.8
A85: 81 | B85: COLORADO | C85: ELBERT | D85: Corn | E85: Grain | F85: All | G85: 40.4
A86: 82 | B86: COLORADO | C86: KIOWA | D86: Corn | E86: Grain | F86: All | G86: 50.7
A87: 83 | B87: COLORADO | C87: KIT CARSON | D87: Corn | E87: Grain | F87: NON-IRRIGATED | G87: 75.2
A88: 84 | B88: COLORADO | C88: KIT CARSON | D88: Corn | E88: Grain | F88: IRRIGATED | G88: 187.6
A89: 85 | B89: COLORADO | C89: KIT CARSON | D89: Corn | E89: Grain | F89: All | G89: 116.7
A90: 86 | B90: COLORADO | C90: LARIMER | D90: Corn | E90: Grain | F90: All | G90: 101.2
A91: 87 | B91: COLORADO | C91: LINCOLN | D91: Corn | E91: Grain | F91: NON-IRRIGATED | G91: 55.2
A92: 88 | B92: COLORADO | C92: LINCOLN | D92: Corn | E92: Grain | F92: IRRIGATED | G92: 168.3
A93: 89 | B93: COLORADO | C93: LINCOLN | D93: Corn | E93: Grain | F93: All | G93: 64.2
A94: 90 | B94: COLORADO | C94: OTERO | D94: Corn | E94: Grain | F94: IRRIGATED | G94: 187.7
A95: 91 | B95: COLORADO | C95: OTERO | D95: Corn | E95: Grain | F95: All | G95: 187.7
A96: 92 | B96: COLORADO | C96: PHILLIPS | D96: Corn | E96: Grain | F96: NON-IRRIGATED | G96: 86.6
A97: 93 | B97: COLORADO | C97: PHILLIPS | D97: Corn | E97: Grain | F97: IRRIGATED | G97: 191.5
A98: 94 | B98: COLORADO | C98: PHILLIPS | D98: Corn | E98: Grain | F98: All | G98: 142.9
A99: 95 | B99: COLORADO | C99: SEDGWICK | D99: Corn | E99: Grain | F99: NON-IRRIGATED | G99: 79.9
A100: 96 | B100: COLORADO | C100: SEDGWICK | D100: Corn | E100: Grain | F100: IRRIGATED | G100: 161.4
A101: 97 | B101: COLORADO | C101: SEDGWICK | D101: Corn | E101: Grain | F101: All | G101: 122.2
A102: 98 | B102: COLORADO | C102: WELD | D102: Corn | E102: Grain | F102: NON-IRRIGATED | G102: 28
A103: 99 | B103: COLORADO | C103: WELD | D103: Corn | E103: Grain | F103: IRRIGATED | G103: 172.1
A104: 100 | B104: COLORADO | C104: WELD | D104: Corn | E104: Grain | F104: All | G104: 157.4
A105: 101 | B105: COLORADO | C105: YUMA | D105: Corn | E105: Grain | F105: All | G105: 183.5
A106: 102 | B106: DELAWARE | C106: KENT | D106: Corn | E106: Grain | F106: NON-IRRIGATED | G106: 162.5
A107: 103 | B107: DELAWARE | C107: KENT | D107: Corn | E107: Grain | F107: IRRIGATED | G107: 208.8
A108: 104 | B108: DELAWARE | C108: KENT | D108: Corn | E108: Grain | F108: All | G108: 181.8
A109: 105 | B109: DELAWARE | C109: NEW CASTLE | D109: Corn | E109: Grain | F109: NON-IRRIGATED | G109: 153.6
A110: 106 | B110: DELAWARE | C110: NEW CASTLE | D110: Corn | E110: Grain | F110: IRRIGATED | G110: 222.5
A111: 107 | B111: DELAWARE | C111: NEW CASTLE | D111: Corn | E111: Grain | F111: All | G111: 161.5
A112: 108 | B112: DELAWARE | C112: SUSSEX | D112: Corn | E112: Grain | F112: NON-IRRIGATED | G112: 131.2
A113: 109 | B113: DELAWARE | C113: SUSSEX | D113: Corn | E113: Grain | F113: IRRIGATED | G113: 194.5
A114: 110 | B114: DELAWARE | C114: SUSSEX | D114: Corn | E114: Grain | F114: All | G114: 165.4
A115: 111 | B115: GEORGIA | C115: APPLING | D115: Corn | E115: Grain | F115: All | G115: 201.5
A116: 112 | B116: GEORGIA | C116: ATKINSON | D116: Corn | E116: Grain | F116: All | G116: 123.5
A117: 113 | B117: GEORGIA | C117: BACON | D117: Corn | E117: Grain | F117: All | G117: 145
A118: 114 | B118: GEORGIA | C118: BAKER | D118: Corn | E118: Grain | F118: All | G118: 184.6
A119: 115 | B119: GEORGIA | C119: BURKE | D119: Corn | E119: Grain | F119: All | G119: 186.8
A120: 116 | B120: GEORGIA | C120: CALHOUN | D120: Corn | E120: Grain | F120: All | G120: 197.2
A121: 117 | B121: GEORGIA | C121: COFFEE | D121: Corn | E121: Grain | F121: All | G121: 162.9
A122: 118 | B122: GEORGIA | C122: COLQUITT | D122: Corn | E122: Grain | F122: All | G122: 179.3
A123: 119 | B123: GEORGIA | C123: COOK | D123: Corn | E123: Grain | F123: All | G123: 165.6
A124: 120 | B124: GEORGIA | C124: DECATUR | D124: Corn | E124: Grain | F124: All | G124: 192.6
A125: 121 | B125: GEORGIA | C125: EMANUEL | D125: Corn | E125: Grain | F125: All | G125: 145.9
A126: 122 | B126: GEORGIA | C126: FLOYD | D126: Corn | E126: Grain | F126: All | G126: 86.4
A127: 123 | B127: GEORGIA | C127: FRANKLIN | D127: Corn | E127: Grain | F127: All | G127: 118
A128: 124 | B128: GEORGIA | C128: GORDON | D128: Corn | E128: Grain | F128: All | G128: 43
A129: 125 | B129: GEORGIA | C129: GRADY | D129: Corn | E129: Grain | F129: All | G129: 147.9
A130: 126 | B130: GEORGIA | C130: HABERSHAM | D130: Corn | E130: Grain | F130: All | G130: 87
A131: 127 | B131: GEORGIA | C131: HART | D131: Corn | E131: Grain | F131: All | G131: 127
A132: 128 | B132: GEORGIA | C132: HOUSTON | D132: Corn | E132: Grain | F132: All | G132: 143.8
A133: 129 | B133: GEORGIA | C133: IRWIN | D133: Corn | E133: Grain | F133: All | G133: 187.5
A134: 130 | B134: GEORGIA | C134: JEFF DAVIS | D134: Corn | E134: Grain | F134: All | G134: 174.1
A135: 131 | B135: GEORGIA | C135: JEFFERSON | D135: Corn | E135: Grain | F135: All | G135: 202.9
A136: 132 | B136: GEORGIA | C136: JENKINS | D136: Corn | E136: Grain | F136: All | G136: 164.6
A137: 133 | B137: GEORGIA | C137: JOHNSON | D137: Corn | E137: Grain | F137: All | G137: 183.9
A138: 134 | B138: GEORGIA | C138: LANIER | D138: Corn | E138: Grain | F138: All | G138: 154.4
A139: 135 | B139: GEORGIA | C139: MACON | D139: Corn | E139: Grain | F139: All | G139: 168.6
A140: 136 | B140: GEORGIA | C140: MARION | D140: Corn | E140: Grain | F140: All | G140: 88.4
A141: 137 | B141: GEORGIA | C141: MILLER | D141: Corn | E141: Grain | F141: All | G141: 178.5
A142: 138 | B142: GEORGIA | C142: MITCHELL | D142: Corn | E142: Grain | F142: All | G142: 192.1
A143: 139 | B143: GEORGIA | C143: PEACH | D143: Corn | E143: Grain | F143: All | G143: 175.5
A144: 140 | B144: GEORGIA | C144: PIERCE | D144: Corn | E144: Grain | F144: All | G144: 131.2
A145: 141 | B145: GEORGIA | C145: POLK | D145: Corn | E145: Grain | F145: All | G145: 118.5
A146: 142 | B146: GEORGIA | C146: SCREVEN | D146: Corn | E146: Grain | F146: All | G146: 163.5
A147: 143 | B147: GEORGIA | C147: SEMINOLE | D147: Corn | E147: Grain | F147: All | G147: 205
A148: 144 | B148: GEORGIA | C148: SUMTER | D148: Corn | E148: Grain | F148: All | G148: 192.1
A149: 145 | B149: GEORGIA | C149: TATTNALL | D149: Corn | E149: Grain | F149: All | G149: 186.2
A150: 146 | B150: GEORGIA | C150: TERRELL | D150: Corn | E150: Grain | F150: All | G150: 161.9
A151: 147 | B151: GEORGIA | C151: THOMAS | D151: Corn | E151: Grain | F151: All | G151: 130.6
A152: 148 | B152: GEORGIA | C152: WARE | D152: Corn | E152: Grain | F152: All | G152: 145.3
A153: 149 | B153: GEORGIA | C153: WILCOX | D153: Corn | E153: Grain | F153: All | G153: 190
A154: 150 | B154: GEORGIA | C154: WORTH | D154: Corn | E154: Grain | F154: All | G154: 170
A155: 151 | B155: IDAHO | C155: CANYON | D155: Corn | E155: Grain | F155: All | G155: 168.3
A156: 152 | B156: IDAHO | C156: GEM | D156: Corn | E156: Grain | F156: All | G156: 191.5
A157: 153 | B157: IDAHO | C157: JEROME | D157: Corn | E157: Grain | F157: All | G157: 192.9
A158: 154 | B158: IDAHO | C158: LINCOLN | D158: Corn | E158: Grain | F158: All | G158: 200
A159: 155 | B159: IDAHO | C159: OWYHEE | D159: Corn | E159: Grain | F159: All | G159: 198.4
A160: 156 | B160: IDAHO | C160: PAYETTE | D160: Corn | E160: Grain | F160: All | G160: 221.2
A161: 157 | B161: ILLINOIS | C161: ADAMS | D161: Corn | E161: Grain | F161: All | G161: 193.1
A162: 158 | B162: ILLINOIS | C162: ALEXANDER | D162: Corn | E162: Grain | F162: All | G162: 131.5
A163: 159 | B163: ILLINOIS | C163: BOONE | D163: Corn | E163: Grain | F163: All | G163: 197.5
A164: 160 | B164: ILLINOIS | C164: BROWN | D164: Corn | E164: Grain | F164: All | G164: 182.3
A165: 161 | B165: ILLINOIS | C165: BUREAU | D165: Corn | E165: Grain | F165: All | G165: 203.9
A166: 162 | B166: ILLINOIS | C166: CARROLL | D166: Corn | E166: Grain | F166: All | G166: 231.9
A167: 163 | B167: ILLINOIS | C167: CASS | D167: Corn | E167: Grain | F167: All | G167: 202.3
A168: 164 | B168: ILLINOIS | C168: CHAMPAIGN | D168: Corn | E168: Grain | F168: All | G168: 210.2
A169: 165 | B169: ILLINOIS | C169: CHRISTIAN | D169: Corn | E169: Grain | F169: All | G169: 203.2
A170: 166 | B170: ILLINOIS | C170: CLAY | D170: Corn | E170: Grain | F170: All | G170: 154.2
A171: 167 | B171: ILLINOIS | C171: CLINTON | D171: Corn | E171: Grain | F171: All | G171: 154.9
A172: 168 | B172: ILLINOIS | C172: COOK | D172: Corn | E172: Grain | F172: All | G172: 170
A173: 169 | B173: ILLINOIS | C173: CUMBERLAND | D173: Corn | E173: Grain | F173: All | G173: 178.4
A174: 170 | B174: ILLINOIS | C174: DE KALB | D174: Corn | E174: Grain | F174: All | G174: 215.6
A175: 171 | B175: ILLINOIS | C175: DE WITT | D175: Corn | E175: Grain | F175: All | G175: 214.5
A176: 172 | B176: ILLINOIS | C176: DOUGLAS | D176: Corn | E176: Grain | F176: All | G176: 208.6
A177: 173 | B177: ILLINOIS | C177: EDGAR | D177: Corn | E177: Grain | F177: All | G177: 193.4
A178: 174 | B178: ILLINOIS | C178: EDWARDS | D178: Corn | E178: Grain | F178: All | G178: 141.6
A179: 175 | B179: ILLINOIS | C179: EFFINGHAM | D179: Corn | E179: Grain | F179: All | G179: 162.2
A180: 176 | B180: ILLINOIS | C180: FAYETTE | D180: Corn | E180: Grain | F180: All | G180: 163
A181: 177 | B181: ILLINOIS | C181: FORD | D181: Corn | E181: Grain | F181: All | G181: 204
A182: 178 | B182: ILLINOIS | C182: FRANKLIN | D182: Corn | E182: Grain | F182: All | G182: 115.6
A183: 179 | B183: ILLINOIS | C183: FULTON | D183: Corn | E183: Grain | F183: All | G183: 195.1
A184: 180 | B184: ILLINOIS | C184: GALLATIN | D184: Corn | E184: Grain | F184: All | G184: 159.4
A185: 181 | B185: ILLINOIS | C185: GREENE | D185: Corn | E185: Grain | F185: All | G185: 186.9
A186: 182 | B186: ILLINOIS | C186: GRUNDY | D186: Corn | E186: Grain | F186: All | G186: 212.4
A187: 183 | B187: ILLINOIS | C187: HAMILTON | D187: Corn | E187: Grain | F187: All | G187: 123.5
A188: 184 | B188: ILLINOIS | C188: HANCOCK | D188: Corn | E188: Grain | F188: All | G188: 207.6
A189: 185 | B189: ILLINOIS | C189: HENDERSON | D189: Corn | E189: Grain | F189: All | G189: 207
A190: 186 | B190: ILLINOIS | C190: HENRY | D190: Corn | E190: Grain | F190: All | G190: 207.9
A191: 187 | B191: ILLINOIS | C191: IROQUOIS | D191: Corn | E191: Grain | F191: All | G191: 193.6
A192: 188 | B192: ILLINOIS | C192: JACKSON | D192: Corn | E192: Grain | F192: All | G192: 136.7
A193: 189 | B193: ILLINOIS | C193: JASPER | D193: Corn | E193: Grain | F193: All | G193: 165.3
A194: 190 | B194: ILLINOIS | C194: JEFFERSON | D194: Corn | E194: Grain | F194: All | G194: 121.8
A195: 191 | B195: ILLINOIS | C195: JERSEY | D195: Corn | E195: Grain | F195: All | G195: 175.6
A196: 192 | B196: ILLINOIS | C196: JO DAVIESS | D196: Corn | E196: Grain | F196: All | G196: 204.9
A197: 193 | B197: ILLINOIS | C197: JOHNSON | D197: Corn | E197: Grain | F197: All | G197: 93.9
A198: 194 | B198: ILLINOIS | C198: KANE | D198: Corn | E198: Grain | F198: All | G198: 210.8
A199: 195 | B199: ILLINOIS | C199: KANKAKEE | D199: Corn | E199: Grain | F199: All | G199: 195.5
A200: 196 | B200: ILLINOIS | C200: KENDALL | D200: Corn | E200: Grain | F200: All | G200: 206.8
A201: 197 | B201: ILLINOIS | C201: KNOX | D201: Corn | E201: Grain | F201: All | G201: 223.3
A202: 198 | B202: ILLINOIS | C202: LA SALLE | D202: Corn | E202: Grain | F202: All | G202: 205.6
A203: 199 | B203: ILLINOIS | C203: LAKE | D203: Corn | E203: Grain | F203: All | G203: 154.8
A204: 200 | B204: ILLINOIS | C204: LEE | D204: Corn | E204: Grain | F204: All | G204: 200.9
... 4573 more rows

Sheet hist (hidden)
A10: 1 | B10: Alabama | C10: Autauga | D10: Corn | E10: Irrigated | F10: 1991 | G10: 74 | H10: 90
A11: 2 | B11: Alabama | C11: Autauga | D11: Corn | E11: Irrigated | F11: 1992 | G11: 116.7 | H11: 93.2
A12: 3 | B12: Alabama | C12: Autauga | D12: Corn | E12: Irrigated | F12: 1993 | G12: 93.4 | H12: 96.4
A13: 4 | B13: Alabama | C13: Autauga | D13: Corn | E13: Irrigated | F13: 1994 | G13: 134.2 | H13: 99.6
A14: 5 | B14: Alabama | C14: Autauga | D14: Corn | E14: Irrigated | F14: 1995 | G14: 87.1 | H14: 102.7
A15: 6 | B15: Alabama | C15: Autauga | D15: Corn | E15: Irrigated | F15: 1996 | G15: 138.2 | H15: 105.9
A16: 7 | B16: Alabama | C16: Autauga | D16: Corn | E16: Irrigated | F16: 1997 | G16: 115.4 | H16: 109.1
A17: 8 | B17: Alabama | C17: Autauga | D17: Corn | E17: Irrigated | F17: 1998 | G17: 109 | H17: 112.3
A18: 9 | B18: Alabama | C18: Autauga | D18: Corn | E18: Irrigated | F18: 1999 | G18: 141 | H18: 115.5
A19: 10 | B19: Alabama | C19: Autauga | D19: Corn | E19: Irrigated | F19: 2000 | G19: 88.4 | H19: 118.6
A20: 11 | B20: Alabama | C20: Autauga | D20: Corn | E20: Irrigated | F20: 2001 | G20: 134.8 | H20: 121.8
A21: 12 | B21: Alabama | C21: Autauga | D21: Corn | E21: Irrigated | F21: 2002 | G21: 117.1 | H21: 125
A22: 13 | B22: Alabama | C22: Autauga | D22: Corn | E22: Irrigated | F22: 2003 | G22: 124.1 | H22: 128.2
A23: 14 | B23: Alabama | C23: Autauga | D23: Corn | E23: Irrigated | F23: 2004 | G23: 145.2 | H23: 131.4
A24: 15 | B24: Alabama | C24: Autauga | D24: Corn | E24: Irrigated | F24: 2005 | G24: 130.6 | H24: 134.5
A25: 16 | B25: Alabama | C25: Autauga | D25: Corn | E25: Irrigated | F25: 2006 | G25: 104.5 | H25: 137.7
A26: 17 | B26: Alabama | C26: Autauga | D26: Corn | E26: Irrigated | F26: 2007 | G26: 139.9 | H26: 140.9
A27: 18 | B27: Alabama | C27: Autauga | D27: Corn | E27: Irrigated | F27: 2008 | G27: 162 | H27: 144.1
A28: 19 | B28: Alabama | C28: Autauga | D28: Corn | E28: Irrigated | F28: 2009 | G28: 137.3 | H28: 147.3
A29: 20 | B29: Alabama | C29: Autauga | D29: Corn | E29: Irrigated | F29: 2010 | G29: 147.6 | H29: 150.5
A30: 21 | B30: Alabama | C30: Autauga | D30: Corn | E30: Irrigated | F30: 2011 | G30: 155 | H30: 153.6
A31: 22 | B31: Alabama | C31: Autauga | D31: Corn | E31: Irrigated | F31: 2012 | G31: 191.5 | H31: 156.8
A32: 23 | B32: Alabama | C32: Autauga | D32: Corn | E32: Irrigated | F32: 2013 | G32: 183.7 | H32: 160
A33: 24 | B33: Alabama | C33: Autauga | D33: Corn | E33: Irrigated | F33: 2014 | G33: 192.1 | H33: 163.2
A34: 25 | B34: Alabama | C34: Autauga | D34: Corn | E34: Irrigated | F34: 2015 | G34: 182 | H34: 166.4
A35: 26 | B35: Alabama | C35: Autauga | D35: Corn | E35: Non-Irrigated | F35: 1991 | G35: 71.9 | H35: 57.8
A36: 27 | B36: Alabama | C36: Autauga | D36: Corn | E36: Non-Irrigated | F36: 1992 | G36: 77.9 | H36: 59.2
A37: 28 | B37: Alabama | C37: Autauga | D37: Corn | E37: Non-Irrigated | F37: 1993 | G37: 63.1 | H37: 60.5
A38: 29 | B38: Alabama | C38: Autauga | D38: Corn | E38: Non-Irrigated | F38: 1994 | G38: 71.5 | H38: 61.9
A39: 30 | B39: Alabama | C39: Autauga | D39: Corn | E39: Non-Irrigated | F39: 1995 | G39: 35.7 | H39: 63.3
A40: 31 | B40: Alabama | C40: Autauga | D40: Corn | E40: Non-Irrigated | F40: 1996 | G40: 61.2 | H40: 64.6
A41: 32 | B41: Alabama | C41: Autauga | D41: Corn | E41: Non-Irrigated | F41: 1997 | G41: 78.8 | H41: 66
A42: 33 | B42: Alabama | C42: Autauga | D42: Corn | E42: Non-Irrigated | F42: 1998 | G42: 39 | H42: 67.3
A43: 34 | B43: Alabama | C43: Autauga | D43: Corn | E43: Non-Irrigated | F43: 1999 | G43: 100.7 | H43: 68.7
A44: 35 | B44: Alabama | C44: Autauga | D44: Corn | E44: Non-Irrigated | F44: 2000 | G44: 29.3 | H44: 70.1
A45: 36 | B45: Alabama | C45: Autauga | D45: Corn | E45: Non-Irrigated | F45: 2001 | G45: 79.1 | H45: 71.4
A46: 37 | B46: Alabama | C46: Autauga | D46: Corn | E46: Non-Irrigated | F46: 2002 | G46: 66.3 | H46: 72.8
A47: 38 | B47: Alabama | C47: Autauga | D47: Corn | E47: Non-Irrigated | F47: 2003 | G47: 93.3 | H47: 74.2
A48: 39 | B48: Alabama | C48: Autauga | D48: Corn | E48: Non-Irrigated | F48: 2004 | G48: 115.7 | H48: 75.5
A49: 40 | B49: Alabama | C49: Autauga | D49: Corn | E49: Non-Irrigated | F49: 2005 | G49: 88.3 | H49: 76.9
A50: 41 | B50: Alabama | C50: Autauga | D50: Corn | E50: Non-Irrigated | F50: 2006 | G50: 50.1 | H50: 78.3
A51: 42 | B51: Alabama | C51: Autauga | D51: Corn | E51: Non-Irrigated | F51: 2007 | G51: 22.8 | H51: 79.6
A52: 43 | B52: Alabama | C52: Autauga | D52: Corn | E52: Non-Irrigated | F52: 2008 | G52: 96.8 | H52: 81
A53: 44 | B53: Alabama | C53: Autauga | D53: Corn | E53: Non-Irrigated | F53: 2009 | G53: 69.4 | H53: 82.3
A54: 45 | B54: Alabama | C54: Autauga | D54: Corn | E54: Non-Irrigated | F54: 2010 | G54: 89.5 | H54: 83.7
A55: 46 | B55: Alabama | C55: Autauga | D55: Corn | E55: Non-Irrigated | F55: 2011 | G55: 65.2 | H55: 85.1
A56: 47 | B56: Alabama | C56: Autauga | D56: Corn | E56: Non-Irrigated | F56: 2012 | G56: 98.5 | H56: 86.4
A57: 48 | B57: Alabama | C57: Autauga | D57: Corn | E57: Non-Irrigated | F57: 2013 | G57: 114.5 | H57: 87.8
A58: 49 | B58: Alabama | C58: Autauga | D58: Corn | E58: Non-Irrigated | F58: 2014 | G58: 108.9 | H58: 89.2
A59: 50 | B59: Alabama | C59: Autauga | D59: Corn | E59: Non-Irrigated | F59: 2015 | G59: 113.1 | H59: 90.5
A60: 51 | B60: Alabama | C60: Baldwin | D60: Corn | E60: Irrigated | F60: 1991 | G60: 78 | H60: 75.3
A61: 52 | B61: Alabama | C61: Baldwin | D61: Corn | E61: Irrigated | F61: 1992 | G61: 101.9 | H61: 77.2
A62: 53 | B62: Alabama | C62: Baldwin | D62: Corn | E62: Irrigated | F62: 1993 | G62: 49.8 | H62: 79.1
A63: 54 | B63: Alabama | C63: Baldwin | D63: Corn | E63: Irrigated | F63: 1994 | G63: 120.4 | H63: 81
A64: 55 | B64: Alabama | C64: Baldwin | D64: Corn | E64: Irrigated | F64: 1995 | G64: 96.5 | H64: 82.9
A65: 56 | B65: Alabama | C65: Baldwin | D65: Corn | E65: Irrigated | F65: 1996 | G65: 103.9 | H65: 84.8
A66: 57 | B66: Alabama | C66: Baldwin | D66: Corn | E66: Irrigated | F66: 1997 | G66: 107 | H66: 86.6
A67: 58 | B67: Alabama | C67: Baldwin | D67: Corn | E67: Irrigated | F67: 1998 | G67: 59.3 | H67: 88.5
A68: 59 | B68: Alabama | C68: Baldwin | D68: Corn | E68: Irrigated | F68: 1999 | G68: 108.8 | H68: 90.4
A69: 60 | B69: Alabama | C69: Baldwin | D69: Corn | E69: Irrigated | F69: 2000 | G69: 36.7 | H69: 92.3
A70: 61 | B70: Alabama | C70: Baldwin | D70: Corn | E70: Irrigated | F70: 2001 | G70: 93.7 | H70: 94.2
A71: 62 | B71: Alabama | C71: Baldwin | D71: Corn | E71: Irrigated | F71: 2002 | G71: 85.7 | H71: 96.1
A72: 63 | B72: Alabama | C72: Baldwin | D72: Corn | E72: Irrigated | F72: 2003 | G72: 108.9 | H72: 98
A73: 64 | B73: Alabama | C73: Baldwin | D73: Corn | E73: Irrigated | F73: 2004 | G73: 114.6 | H73: 99.9
A74: 65 | B74: Alabama | C74: Baldwin | D74: Corn | E74: Irrigated | F74: 2005 | G74: 90.7 | H74: 101.7
A75: 66 | B75: Alabama | C75: Baldwin | D75: Corn | E75: Irrigated | F75: 2006 | G75: 68.4 | H75: 103.6
A76: 67 | B76: Alabama | C76: Baldwin | D76: Corn | E76: Irrigated | F76: 2007 | G76: 107.5 | H76: 105.5
A77: 68 | B77: Alabama | C77: Baldwin | D77: Corn | E77: Irrigated | F77: 2008 | G77: 124.4 | H77: 107.4
A78: 69 | B78: Alabama | C78: Baldwin | D78: Corn | E78: Irrigated | F78: 2009 | G78: 88.9 | H78: 109.3
A79: 70 | B79: Alabama | C79: Baldwin | D79: Corn | E79: Irrigated | F79: 2010 | G79: 128.2 | H79: 111.2
A80: 71 | B80: Alabama | C80: Baldwin | D80: Corn | E80: Irrigated | F80: 2011 | G80: 55.4 | H80: 113.1
A81: 72 | B81: Alabama | C81: Baldwin | D81: Corn | E81: Irrigated | F81: 2012 | G81: 148.9 | H81: 115
A82: 73 | B82: Alabama | C82: Baldwin | D82: Corn | E82: Irrigated | F82: 2013 | G82: 148.8 | H82: 116.8
A83: 74 | B83: Alabama | C83: Baldwin | D83: Corn | E83: Irrigated | F83: 2014 | G83: 153.7 | H83: 118.7
A84: 75 | B84: Alabama | C84: Baldwin | D84: Corn | E84: Irrigated | F84: 2015 | G84: 146.1 | H84: 120.6
A85: 76 | B85: Alabama | C85: Baldwin | D85: Corn | E85: Non-Irrigated | F85: 1991 | G85: 78 | H85: 75.3
A86: 77 | B86: Alabama | C86: Baldwin | D86: Corn | E86: Non-Irrigated | F86: 1992 | G86: 101.9 | H86: 77.2
A87: 78 | B87: Alabama | C87: Baldwin | D87: Corn | E87: Non-Irrigated | F87: 1993 | G87: 49.8 | H87: 79.1
A88: 79 | B88: Alabama | C88: Baldwin | D88: Corn | E88: Non-Irrigated | F88: 1994 | G88: 120.4 | H88: 81
A89: 80 | B89: Alabama | C89: Baldwin | D89: Corn | E89: Non-Irrigated | F89: 1995 | G89: 96.5 | H89: 82.9
A90: 81 | B90: Alabama | C90: Baldwin | D90: Corn | E90: Non-Irrigated | F90: 1996 | G90: 103.9 | H90: 84.8
A91: 82 | B91: Alabama | C91: Baldwin | D91: Corn | E91: Non-Irrigated | F91: 1997 | G91: 107 | H91: 86.6
A92: 83 | B92: Alabama | C92: Baldwin | D92: Corn | E92: Non-Irrigated | F92: 1998 | G92: 59.3 | H92: 88.5
A93: 84 | B93: Alabama | C93: Baldwin | D93: Corn | E93: Non-Irrigated | F93: 1999 | G93: 108.8 | H93: 90.4
A94: 85 | B94: Alabama | C94: Baldwin | D94: Corn | E94: Non-Irrigated | F94: 2000 | G94: 36.7 | H94: 92.3
A95: 86 | B95: Alabama | C95: Baldwin | D95: Corn | E95: Non-Irrigated | F95: 2001 | G95: 93.7 | H95: 94.2
A96: 87 | B96: Alabama | C96: Baldwin | D96: Corn | E96: Non-Irrigated | F96: 2002 | G96: 85.7 | H96: 96.1
A97: 88 | B97: Alabama | C97: Baldwin | D97: Corn | E97: Non-Irrigated | F97: 2003 | G97: 108.9 | H97: 98
A98: 89 | B98: Alabama | C98: Baldwin | D98: Corn | E98: Non-Irrigated | F98: 2004 | G98: 114.6 | H98: 99.9
A99: 90 | B99: Alabama | C99: Baldwin | D99: Corn | E99: Non-Irrigated | F99: 2005 | G99: 90.7 | H99: 101.7
A100: 91 | B100: Alabama | C100: Baldwin | D100: Corn | E100: Non-Irrigated | F100: 2006 | G100: 68.4 | H100: 103.6
A101: 92 | B101: Alabama | C101: Baldwin | D101: Corn | E101: Non-Irrigated | F101: 2007 | G101: 107.5 | H101: 105.5
A102: 93 | B102: Alabama | C102: Baldwin | D102: Corn | E102: Non-Irrigated | F102: 2008 | G102: 124.4 | H102: 107.4
A103: 94 | B103: Alabama | C103: Baldwin | D103: Corn | E103: Non-Irrigated | F103: 2009 | G103: 88.9 | H103: 109.3
A104: 95 | B104: Alabama | C104: Baldwin | D104: Corn | E104: Non-Irrigated | F104: 2010 | G104: 128.2 | H104: 111.2
A105: 96 | B105: Alabama | C105: Baldwin | D105: Corn | E105: Non-Irrigated | F105: 2011 | G105: 55.4 | H105: 113.1
A106: 97 | B106: Alabama | C106: Baldwin | D106: Corn | E106: Non-Irrigated | F106: 2012 | G106: 148.9 | H106: 115
A107: 98 | B107: Alabama | C107: Baldwin | D107: Corn | E107: Non-Irrigated | F107: 2013 | G107: 148.8 | H107: 116.8
A108: 99 | B108: Alabama | C108: Baldwin | D108: Corn | E108: Non-Irrigated | F108: 2014 | G108: 153.7 | H108: 118.7
A109: 100 | B109: Alabama | C109: Baldwin | D109: Corn | E109: Non-Irrigated | F109: 2015 | G109: 146.1 | H109: 120.6
A110: 101 | B110: Alabama | C110: Barbour | D110: Corn | E110: Irrigated | F110: 1991 | G110: 143.1 | H110: 131
A111: 102 | B111: Alabama | C111: Barbour | D111: Corn | E111: Irrigated | F111: 1992 | G111: 127 | H111: 131.2
A112: 103 | B112: Alabama | C112: Barbour | D112: Corn | E112: Irrigated | F112: 1993 | G112: 124.8 | H112: 131.5
A113: 104 | B113: Alabama | C113: Barbour | D113: Corn | E113: Irrigated | F113: 1994 | G113: 130.8 | H113: 131.8
A114: 105 | B114: Alabama | C114: Barbour | D114: Corn | E114: Irrigated | F114: 1995 | G114: 128.2 | H114: 132.1
A115: 106 | B115: Alabama | C115: Barbour | D115: Corn | E115: Irrigated | F115: 1996 | G115: 141.7 | H115: 132.3
A116: 107 | B116: Alabama | C116: Barbour | D116: Corn | E116: Irrigated | F116: 1997 | G116: 129 | H116: 132.6
A117: 108 | B117: Alabama | C117: Barbour | D117: Corn | E117: Irrigated | F117: 1998 | G117: 113.8 | H117: 132.9
A118: 109 | B118: Alabama | C118: Barbour | D118: Corn | E118: Irrigated | F118: 1999 | G118: 146.6 | H118: 133.1
A119: 110 | B119: Alabama | C119: Barbour | D119: Corn | E119: Irrigated | F119: 2000 | G119: 119.9 | H119: 133.4
A120: 111 | B120: Alabama | C120: Barbour | D120: Corn | E120: Irrigated | F120: 2001 | G120: 159.9 | H120: 133.7
A121: 112 | B121: Alabama | C121: Barbour | D121: Corn | E121: Irrigated | F121: 2002 | G121: 137.9 | H121: 133.9
A122: 113 | B122: Alabama | C122: Barbour | D122: Corn | E122: Irrigated | F122: 2003 | G122: 158 | H122: 134.2
A123: 114 | B123: Alabama | C123: Barbour | D123: Corn | E123: Irrigated | F123: 2004 | G123: 139.6 | H123: 138.3
A124: 115 | B124: Alabama | C124: Barbour | D124: Corn | E124: Irrigated | F124: 2005 | G124: 136.2 | H124: 142.4
A125: 116 | B125: Alabama | C125: Barbour | D125: Corn | E125: Irrigated | F125: 2006 | G125: 131.2 | H125: 146.6
A126: 117 | B126: Alabama | C126: Barbour | D126: Corn | E126: Irrigated | F126: 2007 | G126: 167.7 | H126: 150.7
A127: 118 | B127: Alabama | C127: Barbour | D127: Corn | E127: Irrigated | F127: 2008 | G127: 157.4 | H127: 154.8
A128: 119 | B128: Alabama | C128: Barbour | D128: Corn | E128: Irrigated | F128: 2009 | G128: 158.1 | H128: 158.9
A129: 120 | B129: Alabama | C129: Barbour | D129: Corn | E129: Irrigated | F129: 2010 | G129: 174.2 | H129: 163
A130: 121 | B130: Alabama | C130: Barbour | D130: Corn | E130: Irrigated | F130: 2011 | G130: 172.9 | H130: 167.1
A131: 122 | B131: Alabama | C131: Barbour | D131: Corn | E131: Irrigated | F131: 2012 | G131: 203.8 | H131: 171.3
A132: 123 | B132: Alabama | C132: Barbour | D132: Corn | E132: Irrigated | F132: 2013 | G132: 197.7 | H132: 175.4
A133: 124 | B133: Alabama | C133: Barbour | D133: Corn | E133: Irrigated | F133: 2014 | G133: 201.4 | H133: 179.5
A134: 125 | B134: Alabama | C134: Barbour | D134: Corn | E134: Irrigated | F134: 2015 | G134: 213 | H134: 183.6
A135: 126 | B135: Alabama | C135: Barbour | D135: Corn | E135: Non-Irrigated | F135: 1991 | G135: 85.4 | H135: 63
A136: 127 | B136: Alabama | C136: Barbour | D136: Corn | E136: Non-Irrigated | F136: 1992 | G136: 78.1 | H136: 63
A137: 128 | B137: Alabama | C137: Barbour | D137: Corn | E137: Non-Irrigated | F137: 1993 | G137: 38 | H137: 63
A138: 129 | B138: Alabama | C138: Barbour | D138: Corn | E138: Non-Irrigated | F138: 1994 | G138: 84.7 | H138: 63
A139: 130 | B139: Alabama | C139: Barbour | D139: Corn | E139: Non-Irrigated | F139: 1995 | G139: 57.9 | H139: 63
A140: 131 | B140: Alabama | C140: Barbour | D140: Corn | E140: Non-Irrigated | F140: 1996 | G140: 61 | H140: 63
A141: 132 | B141: Alabama | C141: Barbour | D141: Corn | E141: Non-Irrigated | F141: 1997 | G141: 88 | H141: 63
A142: 133 | B142: Alabama | C142: Barbour | D142: Corn | E142: Non-Irrigated | F142: 1998 | G142: 8.7 | H142: 63
A143: 134 | B143: Alabama | C143: Barbour | D143: Corn | E143: Non-Irrigated | F143: 1999 | G143: 81 | H143: 63
A144: 135 | B144: Alabama | C144: Barbour | D144: Corn | E144: Non-Irrigated | F144: 2000 | G144: 6.2 | H144: 63
A145: 136 | B145: Alabama | C145: Barbour | D145: Corn | E145: Non-Irrigated | F145: 2001 | G145: 73.5 | H145: 63
A146: 137 | B146: Alabama | C146: Barbour | D146: Corn | E146: Non-Irrigated | F146: 2002 | G146: 60.8 | H146: 63
A147: 138 | B147: Alabama | C147: Barbour | D147: Corn | E147: Non-Irrigated | F147: 2003 | G147: 99.2 | H147: 63
A148: 139 | B148: Alabama | C148: Barbour | D148: Corn | E148: Non-Irrigated | F148: 2004 | G148: 89.1 | H148: 63
A149: 140 | B149: Alabama | C149: Barbour | D149: Corn | E149: Non-Irrigated | F149: 2005 | G149: 92.1 | H149: 63
A150: 141 | B150: Alabama | C150: Barbour | D150: Corn | E150: Non-Irrigated | F150: 2006 | G150: 16 | H150: 63
A151: 142 | B151: Alabama | C151: Barbour | D151: Corn | E151: Non-Irrigated | F151: 2007 | G151: 28.4 | H151: 63
A152: 143 | B152: Alabama | C152: Barbour | D152: Corn | E152: Non-Irrigated | F152: 2008 | G152: 38.6 | H152: 63
A153: 144 | B153: Alabama | C153: Barbour | D153: Corn | E153: Non-Irrigated | F153: 2009 | G153: 48.3 | H153: 63
A154: 145 | B154: Alabama | C154: Barbour | D154: Corn | E154: Non-Irrigated | F154: 2010 | G154: 76.1 | H154: 63
A155: 146 | B155: Alabama | C155: Barbour | D155: Corn | E155: Non-Irrigated | F155: 2011 | G155: 25 | H155: 63
A156: 147 | B156: Alabama | C156: Barbour | D156: Corn | E156: Non-Irrigated | F156: 2012 | G156: 79 | H156: 63
A157: 148 | B157: Alabama | C157: Barbour | D157: Corn | E157: Non-Irrigated | F157: 2013 | G157: 90.5 | H157: 63
A158: 149 | B158: Alabama | C158: Barbour | D158: Corn | E158: Non-Irrigated | F158: 2014 | G158: 90.2 | H158: 63
A159: 150 | B159: Alabama | C159: Barbour | D159: Corn | E159: Non-Irrigated | F159: 2015 | G159: 80.3 | H159: 63
A160: 151 | B160: Alabama | C160: Bibb | D160: Corn | E160: Irrigated | F160: 1991 | G160: 100.3 | H160: 113.5
A161: 152 | B161: Alabama | C161: Bibb | D161: Corn | E161: Irrigated | F161: 1992 | G161: 128.8 | H161: 116.1
A162: 153 | B162: Alabama | C162: Bibb | D162: Corn | E162: Irrigated | F162: 1993 | G162: 87.3 | H162: 118.6
A163: 154 | B163: Alabama | C163: Bibb | D163: Corn | E163: Irrigated | F163: 1994 | G163: 167.6 | H163: 121.2
A164: 155 | B164: Alabama | C164: Bibb | D164: Corn | E164: Irrigated | F164: 1995 | G164: 123.6 | H164: 123.8
A165: 156 | B165: Alabama | C165: Bibb | D165: Corn | E165: Irrigated | F165: 1996 | G165: 125 | H165: 126.3
A166: 157 | B166: Alabama | C166: Bibb | D166: Corn | E166: Irrigated | F166: 1997 | G166: 165.6 | H166: 128.9
A167: 158 | B167: Alabama | C167: Bibb | D167: Corn | E167: Irrigated | F167: 1998 | G167: 97.2 | H167: 131.5
A168: 159 | B168: Alabama | C168: Bibb | D168: Corn | E168: Irrigated | F168: 1999 | G168: 155.3 | H168: 134.1
A169: 160 | B169: Alabama | C169: Bibb | D169: Corn | E169: Irrigated | F169: 2000 | G169: 77.7 | H169: 136.6
A170: 161 | B170: Alabama | C170: Bibb | D170: Corn | E170: Irrigated | F170: 2001 | G170: 163.9 | H170: 139.2
A171: 162 | B171: Alabama | C171: Bibb | D171: Corn | E171: Irrigated | F171: 2002 | G171: 147.7 | H171: 141.8
A172: 163 | B172: Alabama | C172: Bibb | D172: Corn | E172: Irrigated | F172: 2003 | G172: 153 | H172: 144.3
A173: 164 | B173: Alabama | C173: Bibb | D173: Corn | E173: Irrigated | F173: 2004 | G173: 84.9 | H173: 146.9
A174: 165 | B174: Alabama | C174: Bibb | D174: Corn | E174: Irrigated | F174: 2005 | G174: 131.8 | H174: 149.5
A175: 166 | B175: Alabama | C175: Bibb | D175: Corn | E175: Irrigated | F175: 2006 | G175: 162.4 | H175: 152
A176: 167 | B176: Alabama | C176: Bibb | D176: Corn | E176: Irrigated | F176: 2007 | G176: 163.4 | H176: 154.6
A177: 168 | B177: Alabama | C177: Bibb | D177: Corn | E177: Irrigated | F177: 2008 | G177: 197.3 | H177: 157.2
A178: 169 | B178: Alabama | C178: Bibb | D178: Corn | E178: Irrigated | F178: 2009 | G178: 154.2 | H178: 159.8
A179: 170 | B179: Alabama | C179: Bibb | D179: Corn | E179: Irrigated | F179: 2010 | G179: 143.1 | H179: 162.3
A180: 171 | B180: Alabama | C180: Bibb | D180: Corn | E180: Irrigated | F180: 2011 | G180: 172 | H180: 164.9
A181: 172 | B181: Alabama | C181: Bibb | D181: Corn | E181: Irrigated | F181: 2012 | G181: 187.2 | H181: 167.5
A182: 173 | B182: Alabama | C182: Bibb | D182: Corn | E182: Irrigated | F182: 2013 | G182: 171.5 | H182: 170
A183: 174 | B183: Alabama | C183: Bibb | D183: Corn | E183: Irrigated | F183: 2014 | G183: 182 | H183: 172.6
A184: 175 | B184: Alabama | C184: Bibb | D184: Corn | E184: Irrigated | F184: 2015 | G184: 185.8 | H184: 175.2
A185: 176 | B185: Alabama | C185: Bibb | D185: Corn | E185: Non-Irrigated | F185: 1991 | G185: 85 | H185: 78.2
A186: 177 | B186: Alabama | C186: Bibb | D186: Corn | E186: Non-Irrigated | F186: 1992 | G186: 94.8 | H186: 78.5
A187: 178 | B187: Alabama | C187: Bibb | D187: Corn | E187: Non-Irrigated | F187: 1993 | G187: 70.4 | H187: 78.9
A188: 179 | B188: Alabama | C188: Bibb | D188: Corn | E188: Non-Irrigated | F188: 1994 | G188: 85.6 | H188: 79.2
A189: 180 | B189: Alabama | C189: Bibb | D189: Corn | E189: Non-Irrigated | F189: 1995 | G189: 73 | H189: 79.6
A190: 181 | B190: Alabama | C190: Bibb | D190: Corn | E190: Non-Irrigated | F190: 1996 | G190: 82.9 | H190: 79.9
A191: 182 | B191: Alabama | C191: Bibb | D191: Corn | E191: Non-Irrigated | F191: 1997 | G191: 95.2 | H191: 80.3
A192: 183 | B192: Alabama | C192: Bibb | D192: Corn | E192: Non-Irrigated | F192: 1998 | G192: 57.6 | H192: 80.7
A193: 184 | B193: Alabama | C193: Bibb | D193: Corn | E193: Non-Irrigated | F193: 1999 | G193: 107.5 | H193: 81
A194: 185 | B194: Alabama | C194: Bibb | D194: Corn | E194: Non-Irrigated | F194: 2000 | G194: 49.4 | H194: 81.4
A195: 186 | B195: Alabama | C195: Bibb | D195: Corn | E195: Non-Irrigated | F195: 2001 | G195: 95.4 | H195: 81.7
A196: 187 | B196: Alabama | C196: Bibb | D196: Corn | E196: Non-Irrigated | F196: 2002 | G196: 91 | H196: 82.1
A197: 188 | B197: Alabama | C197: Bibb | D197: Corn | E197: Non-Irrigated | F197: 2003 | G197: 95.8 | H197: 82.5
A198: 189 | B198: Alabama | C198: Bibb | D198: Corn | E198: Non-Irrigated | F198: 2004 | G198: 101.8 | H198: 82.8
A199: 190 | B199: Alabama | C199: Bibb | D199: Corn | E199: Non-Irrigated | F199: 2005 | G199: 82 | H199: 83.2
A200: 191 | B200: Alabama | C200: Bibb | D200: Corn | E200: Non-Irrigated | F200: 2006 | G200: 55.9 | H200: 83.5
A201: 192 | B201: Alabama | C201: Bibb | D201: Corn | E201: Non-Irrigated | F201: 2007 | G201: 38.5 | H201: 83.9
A202: 193 | B202: Alabama | C202: Bibb | D202: Corn | E202: Non-Irrigated | F202: 2008 | G202: 91.6 | H202: 84.2
A203: 194 | B203: Alabama | C203: Bibb | D203: Corn | E203: Non-Irrigated | F203: 2009 | G203: 81.6 | H203: 84.6
A204: 195 | B204: Alabama | C204: Bibb | D204: Corn | E204: Non-Irrigated | F204: 2010 | G204: 95 | H204: 85
A205: 196 | B205: Alabama | C205: Bibb | D205: Corn | E205: Non-Irrigated | F205: 2011 | G205: 56.1 | H205: 85.3
A206: 197 | B206: Alabama | C206: Bibb | D206: Corn | E206: Non-Irrigated | F206: 2012 | G206: 88.2 | H206: 85.7
A207: 198 | B207: Alabama | C207: Bibb | D207: Corn | E207: Non-Irrigated | F207: 2013 | G207: 120.7 | H207: 86
A208: 199 | B208: Alabama | C208: Bibb | D208: Corn | E208: Non-Irrigated | F208: 2014 | G208: 121.6 | H208: 86.4
A209: 200 | B209: Alabama | C209: Bibb | D209: Corn | E209: Non-Irrigated | F209: 2015 | G209: 106.5 | H209: 86.7
... 3727 more rows
